{"text_format":"1","workbook":"xlsx","n_sheets":9,"sheets":["CID Revision Project Overview","AOC Tracking Sheet","Column Instructions","AOC Sheet Layout1","Sample AOC Tracking","AOC Tracking","Dropdowns","For CGI-migration help","CID Validations"],"not_rendered":{"charts":0,"images":0,"macros":1,"external_links":0,"defined_names":62,"comments":1,"pivot_tables":0},"unopened":[],"bounds":{"document_bytes":16777216,"sheet_cells":100000,"rows_first":2000,"rows_last":500,"rows_between":2000,"halvings":0,"cell_chars":16384,"cell_head_chars":4096},"cells_cut":0,"cells_raw":0,"read":"whole","date_system":"1900"}

{"sheet":"CID Revision Project Overview","index":0,"n_rows":17,"n_cols":4,"rows_kept":17,"cut":false,"hidden":true,"merged":[]}
[null,"Develop Macro Enabled CID"]
[null,"The requirements here were built on a new sheet in an unlocked CID.  To get a current CID with restrictions and hidden sheets, download from SRP forms page.  In the new CID, the 'For CGI Migration' and 'Dropdowns' Tabs (if needed) should be hidden.  There should be visible tabs for AOC Tracking, Sample AOC Tracking, and Instructions.  Tabs with new CID Requirements are 'CID Revision Project Overview' and 'Sample AOC Tracking'. "]
[]
[null,"Requirement","Detail","Consequence"]
[1,"User can copy and paste and not corrupt hidden columns","User Will work on Sheet 2 which will not contain the hidden columns","All CIDs will need to be converted to New Format"]
[2,"All CIDs will need to be converted to New Format","User will email in CID and processor will convert and email back"]
[3,"Add Validate for Upload button at D1, conditionally change button to Enable for Editing, OR put Enable for Editing Button at D2","Vlookups CGI imports look like this in Col C \"=VLOOKUP(B6,Dropdowns!$A$2:$B$49,2,FALSE)\" , and Col G \"=VLOOKUP(F6,Dropdowns!$D$2:$E$23,2,FALSE)\"  They evaluate this to make sure they imported the code from the correct Row (these are from the first import row so reflect row 6 of the sheet)"]
[4,"Macros will populate user's data, corresponding codes and formulas to hidden Sheet 1 when user clicks Validate for Upload button","CGI uploads from sheet 1,starts at row 6"]
[5,"Macros build hidden formulas on sheet 1, col C and G"]
[6,"New user column 'Included in Fee Calculation', at Column F.  Col F will be saved to Sheet 1 Col W for CGI.","CGI uploads from sheet 1, CGI will be importing Col W but user should see at Col F","Consider in  the CID conversion email process."]
[7,"CID will have internal conditional validations/prevent upload until validations are run","User will click a button 'Validate for Upload' (possibly in Cell D1) which will run internal validations and populate cell C1 with current internal CID version number (which will be advanced to 1.3 (existing system option), preventing old CIDs from being uploaded).  User will click another button to clear C1 and enable editing.","Validations are described in the AOC tracking sheet.  Current error message says User has the wrong Version number.  Add to the error message\" \"or click the Validate for Upload\" button before loading.\""]
[8,"Add Activity Number to CID","Label in A3, value in B3, validate that it 'looks' like an activity number, format 'ABC123456'"]
[9,"Turn cell text Red if over 100 char in col AOC ID, 500 in AOC Description and 4000 in Activity Column."]
[9,"Remove existing directions  in E1, E2.  E3 is OK if we are turning text red for having too many characters."]
[10,"Row height will auto adjust to text entered."]
[11,"Type ahead for Dropdowns, especially AOC Type and Contaminants of Concern."]
[12,"Go to the sheet 'Sample AOC Tracking' for Column specs and Validations"]

{"sheet":"AOC Tracking Sheet","index":1,"n_rows":5,"n_cols":20,"rows_kept":5,"cut":false,"hidden":false,"merged":[]}
["Case Name:",null,"IMPORTANT: ","1) The CID must be FINALIZED prior to upload. After the CID has been populated, click the Validate for Upload button and follow the instructions."]
["PI #:",null,null,"2) You MUST SAVE after finalizing, and before upload. Click the Enable for Editing button after uploading to edit again."]
["Activity #:"]
["Case Inventory Document   Version  1.5.1   02/04/21"]
["AOC ID","AOC Type ","AOC Description","Confirmed Contamination","Exclude AOC from Billing","AOC Status Achieved","Status Achieved Date","Incident Communication Center #s Managed in Case","NJDEP ID","Contaminated Media","Contaminants of Concern ","Additional Contaminants of Concern ","Additional Contaminants of Concern ","Applicable Remediation Standard","Exposure Route","Additional\nExposure Route","RA Type","Additional\nRA Type","Was an Order of Magnitude Evaluation Conducted?","Activity"]

{"sheet":"Column Instructions","index":2,"n_rows":2,"n_cols":2,"rows_kept":2,"cut":false,"hidden":false,"merged":[]}
["CID Column","Instruction"]
["General Instructions","The CID must be kept in the .xlsm format.  Do not right click the CID file and use \"Save as...\".  The CID will not work if converted to another format.  The file CAN be copied and pasted, then renamed, but must retain the .xlsm extension.\nFor more detailed information and instructions, please click inside this cell."]

{"sheet":"AOC Sheet Layout1","index":3,"n_rows":13,"n_cols":24,"rows_kept":13,"cut":false,"hidden":true,"merged":[]}
[null,null,"This sheet will be in the CID with a few example rows"]
[null,null,"This is the guidance for building the new CID visible page, import page and validations."]
["Column\nPosition in Editable Sheet","A","B","Null","C","D","E","F","Null","G","H","I","J","K","L","M","N","O","P","Q","R","T-REMOVED","S","T"]
["Save to Column to hidden sheet 1 for upload by CGI","A","B","C","D","E","V","F","G","H","I","J","K","L","M","N","O","P","Q","R","S","REMOVED","T","U"]
["Column Name","AOC ID","AOC Type ","AOC Code"," AOC Description","Confirmed Contamination","Exclude AOC from Billing","AOC Status","AOC Status Code","Status Date","Incident #","DEP AOC Number","Contaminated Media","Contaminants of Concern ","Additional Contaminants of Concern ","Additional Contaminants of Concern ","Applicable Remediation Standard","Exposure Route","Additional Exposure Route","RA Type","Additional RA Type","Additional RA Type","Was an Order of Magnitude Evaluation Conducted?","Activity"]
["Example Row ","AOC1","Storage tank and appurtenance - State or Federal Regulated underground storage tank","ASUF","Current UST Field: 3/10,000-gallon unleaded gasoline; 2/4,000-gallon diesel","Yes","Yes","RI",82,"2014-12-12","11-07-09-1244-13",null,"Mixed Media","VO",null,null,"Remediation  Standards","Ingestion/Dermal",null,null,null,null,null,"Soil and ground water delineation has been completed. Benzene detected above GWQS but below VIGWSL. RAW being prepared.  February 2014 - Benzene detected above drinking water standard in on-site potable well.  March 2014 - POET installed on potable well.  Drinking water monitored and no exceedences were detected.  May 2015 - IEC source control report submitted."]
["Display in New version?","Yes","Yes","No","Yes","Yes","Yes","Yes","No","Yes","Yes","Yes","Yes","Yes","Yes","Yes","Yes","Yes","Yes","Yes","Yes","NO-Remove","Yes","Yes"]
["Column Type","Free Text ","Drop-Down.  ","Vlookup to\nAOC Type, saves Aoc Type code","Free Text","Drop-Down",null,"Drop-Down","Vlookup to\nAOC Status, saves AOC status code","Date","Free Text","Number ","Drop-Down","Drop-Down","Drop-Down","Drop-Down","Drop-Down","Drop-Down","Drop-Down","Drop-Down","Drop-Down","N/A","Drop-Down","Free Text"]
["Changes to DD Values","N/A","Current DD is a list of SI Category Desc || SI Type Desc.  LSRPs want DD to display only Type code, alphabetically with type -ahead. ","N/A","N/A","Add 'No Sampling Trigger'","New Column, Values Yes/No","Possibly adding a status for RAO ISRA Leasehold","N/A","N/A","N/A","N/A","N/A","N/A","N/A","N/A","N/A","N/A","N/A","N/A","N/A","N/A","N/A","N/A"]
["\nValidation 1","Not Empty if col b-i has any values","Not Empty if col\na-i has any values","Determine valid code","Not Empty if col\na-i has any values","Not Empty if col\na-i has any values","Not Empty if col\na-i has any values","Not Empty if col\na-i has any values","Determine valid code","Not Empty if col\na-i has any values","Can be null","Can be null","Can be null","Can be null","Can be null","Can be null","Can be null","Can be null","Can be null","Can be null","Can be null","N/A","Can be null","Not Empty if col\na-i has any values"]
["\nValidation 2","< 100 char","Valid Values",null,"< 500 char","Valid values","Valid values","Valid values",null,"Date in past","If Present, validate for allowed incident formats, seperated by a comma, (same as upload validation).  Make sure to check for leading and trailing spaces","> 1000000","Not null if Confirmed Contamination = Y","Not null if Confirmed Contamination = Y",null,null,"Not null if Confirmed Contamination = Y","Not null if Confirmed Contamination = Y",null,"Not null if Confirmed Contamination = Y AND (AOC Staus in ( RA, any RAO Type) )",null,null,"Not null if Confirmed Contamination = Y","< 4000 (or Warn), ee have to decide, CGI will only import 4000, BIR says if > 4000 it's too much"]
["\nValidation 3","No Duplicates in Col A","Check for AOC Description text for 'UST' or 'underground storage tank'  if AOC Type is not in (State or Federal Regulated underground storage tank OR Unregulated underground storage tank) WARN user they may have wrong AOC Type"]
["validation 4",null,"Check for AOC Description text for 'AST' or 'Aboveground storage tank'  if AOC Type is not in (Above ground storage tank) WARN user they may have wrong AOC Type"]

{"sheet":"Sample AOC Tracking","index":4,"n_rows":9,"n_cols":20,"rows_kept":9,"cut":false,"hidden":false,"merged":[]}
["Case Name:","Doe's Fuel Stop LLC"]
["PI #:","018467"]
["Activity #:","LSR120001"]
["Case Inventory Document   Version  1.4   02/23/17"]
["AOC ID","AOC Type "," AOC Description","Confirmed Contamination","Exclude AOC from Billing","AOC Status Achieved","Status Achieved Date","Incident Communication Center #s Managed in Case","NJDEP ID","Contaminated Media","Contaminants of Concern ","Additional Contaminants of Concern ","Additional Contaminants of Concern ","Applicable Remediation Standard","Exposure Route","Additional Exposure Route","RA Type","Additional RA Type","Was an Order of Magnitude Evaluation Conducted?","Activity"]
["AOC1","Storage tank and appurtenance - State or Federal Regulated underground storage tank","Current UST Field: 3/10,000-gallon unleaded gasoline; 2/4,000-gallon diesel","Yes","Yes","RI","2014-12-12","11-07-09-1244-13",null,"Mixed Media","VO",null,null,"Remediation  Standards","Ingestion/Dermal",null,null,null,null,"Soil and ground water delineation has been completed. Benzene detected above GWQS but below VIGWSL. RAW being prepared.  February 2014 - Benzene detected above drinking water standard in on-site potable well.  March 2014 - POET installed on potable well.  Drinking water monitored and no exceedences were detected.  May 2015 - IEC source control report submitted."]
["AOC2","Storage tank and appurtenance - Unregulated Under ground storage tank","Former 1/550-gallon #2 heating oil for on-site use","Yes",null,"NFA-A DEP Issued (Unrestricted Use)","1995-04-16","93-04-17-1544-22",null,"Soil","TPHC",null,null,"Soil Cleanup Criteria (RAW approved for AOC prior to 12/2/2008)","Ingestion/Dermal",null,"Excavation",null,"Yes","Soil contamination identified and excated. Post ex-sampling below soil standards. Ground Water was below the GWQS."]
["AOC3","Storage tank and appurtenance - Above ground storage tank","Current 1/1,000-gallon #2 heating oil AST for on-site use","No",null,"PA","2014-03-12",null,null,"None",null,null,null,"Remediation  Standards",null,null,null,null,null,"PA identified AST as potential AOC. No signs of a discharge, no staining around the AST. No further investigation recommended."]
["AOC4","Environmental media - Media Ground water","Chlorinated Contamination from Off-site Source","Yes","Yes","RAO-A (Unrestricted Use)","2015-05-19","14-01-19-1059-16",null,"Ground Water","VO",null,null,"Remediation  Standards","Ground Water",null,null,null,null,"Chlorinated VOC detected in ground water. Jan. 2014 - Department's hotline notified of chlorinated VOC contamination in gw. March 2014 - PA submitted and background investigation done. No onsite sources of chlorinated VOC discovered. Hotlin notified of verified unknown source (12-05-01-1201-52). RAO-A Unrestricted Use issued for verified unkown source of chlorinated VOC in gw."]

{"sheet":"AOC Tracking","index":5,"n_rows":1000,"n_cols":22,"rows_kept":1000,"cut":false,"hidden":true,"merged":[]}
["Case Name:"]
["PI #:"]
["Activity #:"]
["Case Inventory Document   Version  1.5.1   02/04/21"]
["AOC ID","AOC Type ","AOC Code"," AOC Description","Confirmed Contamination","AOC Status","AOC Status Code","Status Date","Incident #","DEP AOC Number","Contaminated Media","Contaminants of Concern ","Additional Contaminants of Concern ","Additional Contaminants of Concern ","Applicable Remediation Standard","Exposure Route","Additional\nExposure Route","RA Type","Additional\nRA Type","Was an Order of Magnitude Evaluation Conducted?","Activity","AOC in Billing"]
[null,null,{"$f":"VLOOKUP(B6,Dropdowns!$A$2:$B$49,2,FALSE)","v":{"$error":"#N/A"}},null,null,null,{"$f":"VLOOKUP(F6,Dropdowns!$D$2:$E$31,2,FALSE)","v":{"$error":"#N/A"}}]
[null,null,{"$f":"VLOOKUP(B7,Dropdowns!$A$2:$B$49,2,FALSE)","v":{"$error":"#N/A"}},null,null,null,{"$f":"VLOOKUP(F7,Dropdowns!$D$2:$E$31,2,FALSE)","v":{"$error":"#N/A"}}]
[null,null,{"$f":"VLOOKUP(B8,Dropdowns!$A$2:$B$49,2,FALSE)","v":{"$error":"#N/A"}},null,null,null,{"$f":"VLOOKUP(F8,Dropdowns!$D$2:$E$31,2,FALSE)","v":{"$error":"#N/A"}}]
[null,null,{"$f":"VLOOKUP(B9,Dropdowns!$A$2:$B$49,2,FALSE)","v":{"$error":"#N/A"}},null,null,null,{"$f":"VLOOKUP(F9,Dropdowns!$D$2:$E$31,2,FALSE)","v":{"$error":"#N/A"}}]
[null,null,{"$f":"VLOOKUP(B10,Dropdowns!$A$2:$B$49,2,FALSE)","v":{"$error":"#N/A"}},null,null,null,{"$f":"VLOOKUP(F10,Dropdowns!$D$2:$E$31,2,FALSE)","v":{"$error":"#N/A"}}]
[null,null,{"$f":"VLOOKUP(B11,Dropdowns!$A$2:$B$49,2,FALSE)","v":{"$error":"#N/A"}},null,null,null,{"$f":"VLOOKUP(F11,Dropdowns!$D$2:$E$31,2,FALSE)","v":{"$error":"#N/A"}}]
[null,null,{"$f":"VLOOKUP(B12,Dropdowns!$A$2:$B$49,2,FALSE)","v":{"$error":"#N/A"}},null,null,null,{"$f":"VLOOKUP(F12,Dropdowns!$D$2:$E$31,2,FALSE)","v":{"$error":"#N/A"}}]
[null,null,{"$f":"VLOOKUP(B13,Dropdowns!$A$2:$B$49,2,FALSE)","v":{"$error":"#N/A"}},null,null,null,{"$f":"VLOOKUP(F13,Dropdowns!$D$2:$E$31,2,FALSE)","v":{"$error":"#N/A"}}]
[null,null,{"$f":"VLOOKUP(B14,Dropdowns!$A$2:$B$49,2,FALSE)","v":{"$error":"#N/A"}},null,null,null,{"$f":"VLOOKUP(F14,Dropdowns!$D$2:$E$31,2,FALSE)","v":{"$error":"#N/A"}}]
[null,null,{"$f":"VLOOKUP(B15,Dropdowns!$A$2:$B$49,2,FALSE)","v":{"$error":"#N/A"}},null,null,null,{"$f":"VLOOKUP(F15,Dropdowns!$D$2:$E$31,2,FALSE)","v":{"$error":"#N/A"}}]
[null,null,{"$f":"VLOOKUP(B16,Dropdowns!$A$2:$B$49,2,FALSE)","v":{"$error":"#N/A"}},null,null,null,{"$f":"VLOOKUP(F16,Dropdowns!$D$2:$E$31,2,FALSE)","v":{"$error":"#N/A"}}]
[null,null,{"$f":"VLOOKUP(B17,Dropdowns!$A$2:$B$49,2,FALSE)","v":{"$error":"#N/A"}},null,null,null,{"$f":"VLOOKUP(F17,Dropdowns!$D$2:$E$31,2,FALSE)","v":{"$error":"#N/A"}}]
[null,null,{"$f":"VLOOKUP(B18,Dropdowns!$A$2:$B$49,2,FALSE)","v":{"$error":"#N/A"}},null,null,null,{"$f":"VLOOKUP(F18,Dropdowns!$D$2:$E$31,2,FALSE)","v":{"$error":"#N/A"}}]
[null,null,{"$f":"VLOOKUP(B19,Dropdowns!$A$2:$B$49,2,FALSE)","v":{"$error":"#N/A"}},null,null,null,{"$f":"VLOOKUP(F19,Dropdowns!$D$2:$E$31,2,FALSE)","v":{"$error":"#N/A"}}]
[null,null,{"$f":"VLOOKUP(B20,Dropdowns!$A$2:$B$49,2,FALSE)","v":{"$error":"#N/A"}},null,null,null,{"$f":"VLOOKUP(F20,Dropdowns!$D$2:$E$31,2,FALSE)","v":{"$error":"#N/A"}}]
[null,null,{"$f":"VLOOKUP(B21,Dropdowns!$A$2:$B$49,2,FALSE)","v":{"$error":"#N/A"}},null,null,null,{"$f":"VLOOKUP(F21,Dropdowns!$D$2:$E$31,2,FALSE)","v":{"$error":"#N/A"}}]
[null,null,{"$f":"VLOOKUP(B22,Dropdowns!$A$2:$B$49,2,FALSE)","v":{"$error":"#N/A"}},null,null,null,{"$f":"VLOOKUP(F22,Dropdowns!$D$2:$E$31,2,FALSE)","v":{"$error":"#N/A"}}]
[null,null,{"$f":"VLOOKUP(B23,Dropdowns!$A$2:$B$49,2,FALSE)","v":{"$error":"#N/A"}},null,null,null,{"$f":"VLOOKUP(F23,Dropdowns!$D$2:$E$31,2,FALSE)","v":{"$error":"#N/A"}}]
[null,null,{"$f":"VLOOKUP(B24,Dropdowns!$A$2:$B$49,2,FALSE)","v":{"$error":"#N/A"}},null,null,null,{"$f":"VLOOKUP(F24,Dropdowns!$D$2:$E$31,2,FALSE)","v":{"$error":"#N/A"}}]
[null,null,{"$f":"VLOOKUP(B25,Dropdowns!$A$2:$B$49,2,FALSE)","v":{"$error":"#N/A"}},null,null,null,{"$f":"VLOOKUP(F25,Dropdowns!$D$2:$E$31,2,FALSE)","v":{"$error":"#N/A"}}]
[null,null,{"$f":"VLOOKUP(B26,Dropdowns!$A$2:$B$49,2,FALSE)","v":{"$error":"#N/A"}},null,null,null,{"$f":"VLOOKUP(F26,Dropdowns!$D$2:$E$31,2,FALSE)","v":{"$error":"#N/A"}}]
[null,null,{"$f":"VLOOKUP(B27,Dropdowns!$A$2:$B$49,2,FALSE)","v":{"$error":"#N/A"}},null,null,null,{"$f":"VLOOKUP(F27,Dropdowns!$D$2:$E$31,2,FALSE)","v":{"$error":"#N/A"}}]
[null,null,{"$f":"VLOOKUP(B28,Dropdowns!$A$2:$B$49,2,FALSE)","v":{"$error":"#N/A"}},null,null,null,{"$f":"VLOOKUP(F28,Dropdowns!$D$2:$E$31,2,FALSE)","v":{"$error":"#N/A"}}]
[null,null,{"$f":"VLOOKUP(B29,Dropdowns!$A$2:$B$49,2,FALSE)","v":{"$error":"#N/A"}},null,null,null,{"$f":"VLOOKUP(F29,Dropdowns!$D$2:$E$31,2,FALSE)","v":{"$error":"#N/A"}}]
[null,null,{"$f":"VLOOKUP(B30,Dropdowns!$A$2:$B$49,2,FALSE)","v":{"$error":"#N/A"}},null,null,null,{"$f":"VLOOKUP(F30,Dropdowns!$D$2:$E$31,2,FALSE)","v":{"$error":"#N/A"}}]
[null,null,{"$f":"VLOOKUP(B31,Dropdowns!$A$2:$B$49,2,FALSE)","v":{"$error":"#N/A"}},null,null,null,{"$f":"VLOOKUP(F31,Dropdowns!$D$2:$E$31,2,FALSE)","v":{"$error":"#N/A"}}]
[null,null,{"$f":"VLOOKUP(B32,Dropdowns!$A$2:$B$49,2,FALSE)","v":{"$error":"#N/A"}},null,null,null,{"$f":"VLOOKUP(F32,Dropdowns!$D$2:$E$31,2,FALSE)","v":{"$error":"#N/A"}}]
[null,null,{"$f":"VLOOKUP(B33,Dropdowns!$A$2:$B$49,2,FALSE)","v":{"$error":"#N/A"}},null,null,null,{"$f":"VLOOKUP(F33,Dropdowns!$D$2:$E$31,2,FALSE)","v":{"$error":"#N/A"}}]
[null,null,{"$f":"VLOOKUP(B34,Dropdowns!$A$2:$B$49,2,FALSE)","v":{"$error":"#N/A"}},null,null,null,{"$f":"VLOOKUP(F34,Dropdowns!$D$2:$E$31,2,FALSE)","v":{"$error":"#N/A"}}]
[null,null,{"$f":"VLOOKUP(B35,Dropdowns!$A$2:$B$49,2,FALSE)","v":{"$error":"#N/A"}},null,null,null,{"$f":"VLOOKUP(F35,Dropdowns!$D$2:$E$31,2,FALSE)","v":{"$error":"#N/A"}}]
[null,null,{"$f":"VLOOKUP(B36,Dropdowns!$A$2:$B$49,2,FALSE)","v":{"$error":"#N/A"}},null,null,null,{"$f":"VLOOKUP(F36,Dropdowns!$D$2:$E$31,2,FALSE)","v":{"$error":"#N/A"}}]
[null,null,{"$f":"VLOOKUP(B37,Dropdowns!$A$2:$B$49,2,FALSE)","v":{"$error":"#N/A"}},null,null,null,{"$f":"VLOOKUP(F37,Dropdowns!$D$2:$E$31,2,FALSE)","v":{"$error":"#N/A"}}]
[null,null,{"$f":"VLOOKUP(B38,Dropdowns!$A$2:$B$49,2,FALSE)","v":{"$error":"#N/A"}},null,null,null,{"$f":"VLOOKUP(F38,Dropdowns!$D$2:$E$31,2,FALSE)","v":{"$error":"#N/A"}}]
[null,null,{"$f":"VLOOKUP(B39,Dropdowns!$A$2:$B$49,2,FALSE)","v":{"$error":"#N/A"}},null,null,null,{"$f":"VLOOKUP(F39,Dropdowns!$D$2:$E$31,2,FALSE)","v":{"$error":"#N/A"}}]
[null,null,{"$f":"VLOOKUP(B40,Dropdowns!$A$2:$B$49,2,FALSE)","v":{"$error":"#N/A"}},null,null,null,{"$f":"VLOOKUP(F40,Dropdowns!$D$2:$E$31,2,FALSE)","v":{"$error":"#N/A"}}]
[null,null,{"$f":"VLOOKUP(B41,Dropdowns!$A$2:$B$49,2,FALSE)","v":{"$error":"#N/A"}},null,null,null,{"$f":"VLOOKUP(F41,Dropdowns!$D$2:$E$31,2,FALSE)","v":{"$error":"#N/A"}}]
[null,null,{"$f":"VLOOKUP(B42,Dropdowns!$A$2:$B$49,2,FALSE)","v":{"$error":"#N/A"}},null,null,null,{"$f":"VLOOKUP(F42,Dropdowns!$D$2:$E$31,2,FALSE)","v":{"$error":"#N/A"}}]
[null,null,{"$f":"VLOOKUP(B43,Dropdowns!$A$2:$B$49,2,FALSE)","v":{"$error":"#N/A"}},null,null,null,{"$f":"VLOOKUP(F43,Dropdowns!$D$2:$E$31,2,FALSE)","v":{"$error":"#N/A"}}]
[null,null,{"$f":"VLOOKUP(B44,Dropdowns!$A$2:$B$49,2,FALSE)","v":{"$error":"#N/A"}},null,null,null,{"$f":"VLOOKUP(F44,Dropdowns!$D$2:$E$31,2,FALSE)","v":{"$error":"#N/A"}}]
[null,null,{"$f":"VLOOKUP(B45,Dropdowns!$A$2:$B$49,2,FALSE)","v":{"$error":"#N/A"}},null,null,null,{"$f":"VLOOKUP(F45,Dropdowns!$D$2:$E$31,2,FALSE)","v":{"$error":"#N/A"}}]
[null,null,{"$f":"VLOOKUP(B46,Dropdowns!$A$2:$B$49,2,FALSE)","v":{"$error":"#N/A"}},null,null,null,{"$f":"VLOOKUP(F46,Dropdowns!$D$2:$E$31,2,FALSE)","v":{"$error":"#N/A"}}]
[null,null,{"$f":"VLOOKUP(B47,Dropdowns!$A$2:$B$49,2,FALSE)","v":{"$error":"#N/A"}},null,null,null,{"$f":"VLOOKUP(F47,Dropdowns!$D$2:$E$31,2,FALSE)","v":{"$error":"#N/A"}}]
[null,null,{"$f":"VLOOKUP(B48,Dropdowns!$A$2:$B$49,2,FALSE)","v":{"$error":"#N/A"}},null,null,null,{"$f":"VLOOKUP(F48,Dropdowns!$D$2:$E$31,2,FALSE)","v":{"$error":"#N/A"}}]
[null,null,{"$f":"VLOOKUP(B49,Dropdowns!$A$2:$B$49,2,FALSE)","v":{"$error":"#N/A"}},null,null,null,{"$f":"VLOOKUP(F49,Dropdowns!$D$2:$E$31,2,FALSE)","v":{"$error":"#N/A"}}]
[null,null,{"$f":"VLOOKUP(B50,Dropdowns!$A$2:$B$49,2,FALSE)","v":{"$error":"#N/A"}},null,null,null,{"$f":"VLOOKUP(F50,Dropdowns!$D$2:$E$31,2,FALSE)","v":{"$error":"#N/A"}}]
[null,null,{"$f":"VLOOKUP(B51,Dropdowns!$A$2:$B$49,2,FALSE)","v":{"$error":"#N/A"}},null,null,null,{"$f":"VLOOKUP(F51,Dropdowns!$D$2:$E$31,2,FALSE)","v":{"$error":"#N/A"}}]
[null,null,{"$f":"VLOOKUP(B52,Dropdowns!$A$2:$B$49,2,FALSE)","v":{"$error":"#N/A"}},null,null,null,{"$f":"VLOOKUP(F52,Dropdowns!$D$2:$E$31,2,FALSE)","v":{"$error":"#N/A"}}]
[null,null,{"$f":"VLOOKUP(B53,Dropdowns!$A$2:$B$49,2,FALSE)","v":{"$error":"#N/A"}},null,null,null,{"$f":"VLOOKUP(F53,Dropdowns!$D$2:$E$31,2,FALSE)","v":{"$error":"#N/A"}}]
[null,null,{"$f":"VLOOKUP(B54,Dropdowns!$A$2:$B$49,2,FALSE)","v":{"$error":"#N/A"}},null,null,null,{"$f":"VLOOKUP(F54,Dropdowns!$D$2:$E$31,2,FALSE)","v":{"$error":"#N/A"}}]
[null,null,{"$f":"VLOOKUP(B55,Dropdowns!$A$2:$B$49,2,FALSE)","v":{"$error":"#N/A"}},null,null,null,{"$f":"VLOOKUP(F55,Dropdowns!$D$2:$E$31,2,FALSE)","v":{"$error":"#N/A"}}]
[null,null,{"$f":"VLOOKUP(B56,Dropdowns!$A$2:$B$49,2,FALSE)","v":{"$error":"#N/A"}},null,null,null,{"$f":"VLOOKUP(F56,Dropdowns!$D$2:$E$31,2,FALSE)","v":{"$error":"#N/A"}}]
[null,null,{"$f":"VLOOKUP(B57,Dropdowns!$A$2:$B$49,2,FALSE)","v":{"$error":"#N/A"}},null,null,null,{"$f":"VLOOKUP(F57,Dropdowns!$D$2:$E$31,2,FALSE)","v":{"$error":"#N/A"}}]
[null,null,{"$f":"VLOOKUP(B58,Dropdowns!$A$2:$B$49,2,FALSE)","v":{"$error":"#N/A"}},null,null,null,{"$f":"VLOOKUP(F58,Dropdowns!$D$2:$E$31,2,FALSE)","v":{"$error":"#N/A"}}]
[null,null,{"$f":"VLOOKUP(B59,Dropdowns!$A$2:$B$49,2,FALSE)","v":{"$error":"#N/A"}},null,null,null,{"$f":"VLOOKUP(F59,Dropdowns!$D$2:$E$31,2,FALSE)","v":{"$error":"#N/A"}}]
[null,null,{"$f":"VLOOKUP(B60,Dropdowns!$A$2:$B$49,2,FALSE)","v":{"$error":"#N/A"}},null,null,null,{"$f":"VLOOKUP(F60,Dropdowns!$D$2:$E$31,2,FALSE)","v":{"$error":"#N/A"}}]
[null,null,{"$f":"VLOOKUP(B61,Dropdowns!$A$2:$B$49,2,FALSE)","v":{"$error":"#N/A"}},null,null,null,{"$f":"VLOOKUP(F61,Dropdowns!$D$2:$E$31,2,FALSE)","v":{"$error":"#N/A"}}]
[null,null,{"$f":"VLOOKUP(B62,Dropdowns!$A$2:$B$49,2,FALSE)","v":{"$error":"#N/A"}},null,null,null,{"$f":"VLOOKUP(F62,Dropdowns!$D$2:$E$31,2,FALSE)","v":{"$error":"#N/A"}}]
[null,null,{"$f":"VLOOKUP(B63,Dropdowns!$A$2:$B$49,2,FALSE)","v":{"$error":"#N/A"}},null,null,null,{"$f":"VLOOKUP(F63,Dropdowns!$D$2:$E$31,2,FALSE)","v":{"$error":"#N/A"}}]
[null,null,{"$f":"VLOOKUP(B64,Dropdowns!$A$2:$B$49,2,FALSE)","v":{"$error":"#N/A"}},null,null,null,{"$f":"VLOOKUP(F64,Dropdowns!$D$2:$E$31,2,FALSE)","v":{"$error":"#N/A"}}]
[null,null,{"$f":"VLOOKUP(B65,Dropdowns!$A$2:$B$49,2,FALSE)","v":{"$error":"#N/A"}},null,null,null,{"$f":"VLOOKUP(F65,Dropdowns!$D$2:$E$31,2,FALSE)","v":{"$error":"#N/A"}}]
[null,null,{"$f":"VLOOKUP(B66,Dropdowns!$A$2:$B$49,2,FALSE)","v":{"$error":"#N/A"}},null,null,null,{"$f":"VLOOKUP(F66,Dropdowns!$D$2:$E$31,2,FALSE)","v":{"$error":"#N/A"}}]
[null,null,{"$f":"VLOOKUP(B67,Dropdowns!$A$2:$B$49,2,FALSE)","v":{"$error":"#N/A"}},null,null,null,{"$f":"VLOOKUP(F67,Dropdowns!$D$2:$E$31,2,FALSE)","v":{"$error":"#N/A"}}]
[null,null,{"$f":"VLOOKUP(B68,Dropdowns!$A$2:$B$49,2,FALSE)","v":{"$error":"#N/A"}},null,null,null,{"$f":"VLOOKUP(F68,Dropdowns!$D$2:$E$31,2,FALSE)","v":{"$error":"#N/A"}}]
[null,null,{"$f":"VLOOKUP(B69,Dropdowns!$A$2:$B$49,2,FALSE)","v":{"$error":"#N/A"}},null,null,null,{"$f":"VLOOKUP(F69,Dropdowns!$D$2:$E$31,2,FALSE)","v":{"$error":"#N/A"}}]
[null,null,{"$f":"VLOOKUP(B70,Dropdowns!$A$2:$B$49,2,FALSE)","v":{"$error":"#N/A"}},null,null,null,{"$f":"VLOOKUP(F70,Dropdowns!$D$2:$E$31,2,FALSE)","v":{"$error":"#N/A"}}]
[null,null,{"$f":"VLOOKUP(B71,Dropdowns!$A$2:$B$49,2,FALSE)","v":{"$error":"#N/A"}},null,null,null,{"$f":"VLOOKUP(F71,Dropdowns!$D$2:$E$31,2,FALSE)","v":{"$error":"#N/A"}}]
[null,null,{"$f":"VLOOKUP(B72,Dropdowns!$A$2:$B$49,2,FALSE)","v":{"$error":"#N/A"}},null,null,null,{"$f":"VLOOKUP(F72,Dropdowns!$D$2:$E$31,2,FALSE)","v":{"$error":"#N/A"}}]
[null,null,{"$f":"VLOOKUP(B73,Dropdowns!$A$2:$B$49,2,FALSE)","v":{"$error":"#N/A"}},null,null,null,{"$f":"VLOOKUP(F73,Dropdowns!$D$2:$E$31,2,FALSE)","v":{"$error":"#N/A"}}]
[null,null,{"$f":"VLOOKUP(B74,Dropdowns!$A$2:$B$49,2,FALSE)","v":{"$error":"#N/A"}},null,null,null,{"$f":"VLOOKUP(F74,Dropdowns!$D$2:$E$31,2,FALSE)","v":{"$error":"#N/A"}}]
[null,null,{"$f":"VLOOKUP(B75,Dropdowns!$A$2:$B$49,2,FALSE)","v":{"$error":"#N/A"}},null,null,null,{"$f":"VLOOKUP(F75,Dropdowns!$D$2:$E$31,2,FALSE)","v":{"$error":"#N/A"}}]
[null,null,{"$f":"VLOOKUP(B76,Dropdowns!$A$2:$B$49,2,FALSE)","v":{"$error":"#N/A"}},null,null,null,{"$f":"VLOOKUP(F76,Dropdowns!$D$2:$E$31,2,FALSE)","v":{"$error":"#N/A"}}]
[null,null,{"$f":"VLOOKUP(B77,Dropdowns!$A$2:$B$49,2,FALSE)","v":{"$error":"#N/A"}},null,null,null,{"$f":"VLOOKUP(F77,Dropdowns!$D$2:$E$31,2,FALSE)","v":{"$error":"#N/A"}}]
[null,null,{"$f":"VLOOKUP(B78,Dropdowns!$A$2:$B$49,2,FALSE)","v":{"$error":"#N/A"}},null,null,null,{"$f":"VLOOKUP(F78,Dropdowns!$D$2:$E$31,2,FALSE)","v":{"$error":"#N/A"}}]
[null,null,{"$f":"VLOOKUP(B79,Dropdowns!$A$2:$B$49,2,FALSE)","v":{"$error":"#N/A"}},null,null,null,{"$f":"VLOOKUP(F79,Dropdowns!$D$2:$E$31,2,FALSE)","v":{"$error":"#N/A"}}]
[null,null,{"$f":"VLOOKUP(B80,Dropdowns!$A$2:$B$49,2,FALSE)","v":{"$error":"#N/A"}},null,null,null,{"$f":"VLOOKUP(F80,Dropdowns!$D$2:$E$31,2,FALSE)","v":{"$error":"#N/A"}}]
[null,null,{"$f":"VLOOKUP(B81,Dropdowns!$A$2:$B$49,2,FALSE)","v":{"$error":"#N/A"}},null,null,null,{"$f":"VLOOKUP(F81,Dropdowns!$D$2:$E$31,2,FALSE)","v":{"$error":"#N/A"}}]
[null,null,{"$f":"VLOOKUP(B82,Dropdowns!$A$2:$B$49,2,FALSE)","v":{"$error":"#N/A"}},null,null,null,{"$f":"VLOOKUP(F82,Dropdowns!$D$2:$E$31,2,FALSE)","v":{"$error":"#N/A"}}]
[null,null,{"$f":"VLOOKUP(B83,Dropdowns!$A$2:$B$49,2,FALSE)","v":{"$error":"#N/A"}},null,null,null,{"$f":"VLOOKUP(F83,Dropdowns!$D$2:$E$31,2,FALSE)","v":{"$error":"#N/A"}}]
[null,null,{"$f":"VLOOKUP(B84,Dropdowns!$A$2:$B$49,2,FALSE)","v":{"$error":"#N/A"}},null,null,null,{"$f":"VLOOKUP(F84,Dropdowns!$D$2:$E$31,2,FALSE)","v":{"$error":"#N/A"}}]
[null,null,{"$f":"VLOOKUP(B85,Dropdowns!$A$2:$B$49,2,FALSE)","v":{"$error":"#N/A"}},null,null,null,{"$f":"VLOOKUP(F85,Dropdowns!$D$2:$E$31,2,FALSE)","v":{"$error":"#N/A"}}]
[null,null,{"$f":"VLOOKUP(B86,Dropdowns!$A$2:$B$49,2,FALSE)","v":{"$error":"#N/A"}},null,null,null,{"$f":"VLOOKUP(F86,Dropdowns!$D$2:$E$31,2,FALSE)","v":{"$error":"#N/A"}}]
[null,null,{"$f":"VLOOKUP(B87,Dropdowns!$A$2:$B$49,2,FALSE)","v":{"$error":"#N/A"}},null,null,null,{"$f":"VLOOKUP(F87,Dropdowns!$D$2:$E$31,2,FALSE)","v":{"$error":"#N/A"}}]
[null,null,{"$f":"VLOOKUP(B88,Dropdowns!$A$2:$B$49,2,FALSE)","v":{"$error":"#N/A"}},null,null,null,{"$f":"VLOOKUP(F88,Dropdowns!$D$2:$E$31,2,FALSE)","v":{"$error":"#N/A"}}]
[null,null,{"$f":"VLOOKUP(B89,Dropdowns!$A$2:$B$49,2,FALSE)","v":{"$error":"#N/A"}},null,null,null,{"$f":"VLOOKUP(F89,Dropdowns!$D$2:$E$31,2,FALSE)","v":{"$error":"#N/A"}}]
[null,null,{"$f":"VLOOKUP(B90,Dropdowns!$A$2:$B$49,2,FALSE)","v":{"$error":"#N/A"}},null,null,null,{"$f":"VLOOKUP(F90,Dropdowns!$D$2:$E$31,2,FALSE)","v":{"$error":"#N/A"}}]
[null,null,{"$f":"VLOOKUP(B91,Dropdowns!$A$2:$B$49,2,FALSE)","v":{"$error":"#N/A"}},null,null,null,{"$f":"VLOOKUP(F91,Dropdowns!$D$2:$E$31,2,FALSE)","v":{"$error":"#N/A"}}]
[null,null,{"$f":"VLOOKUP(B92,Dropdowns!$A$2:$B$49,2,FALSE)","v":{"$error":"#N/A"}},null,null,null,{"$f":"VLOOKUP(F92,Dropdowns!$D$2:$E$31,2,FALSE)","v":{"$error":"#N/A"}}]
[null,null,{"$f":"VLOOKUP(B93,Dropdowns!$A$2:$B$49,2,FALSE)","v":{"$error":"#N/A"}},null,null,null,{"$f":"VLOOKUP(F93,Dropdowns!$D$2:$E$31,2,FALSE)","v":{"$error":"#N/A"}}]
[null,null,{"$f":"VLOOKUP(B94,Dropdowns!$A$2:$B$49,2,FALSE)","v":{"$error":"#N/A"}},null,null,null,{"$f":"VLOOKUP(F94,Dropdowns!$D$2:$E$31,2,FALSE)","v":{"$error":"#N/A"}}]
[null,null,{"$f":"VLOOKUP(B95,Dropdowns!$A$2:$B$49,2,FALSE)","v":{"$error":"#N/A"}},null,null,null,{"$f":"VLOOKUP(F95,Dropdowns!$D$2:$E$31,2,FALSE)","v":{"$error":"#N/A"}}]
[null,null,{"$f":"VLOOKUP(B96,Dropdowns!$A$2:$B$49,2,FALSE)","v":{"$error":"#N/A"}},null,null,null,{"$f":"VLOOKUP(F96,Dropdowns!$D$2:$E$31,2,FALSE)","v":{"$error":"#N/A"}}]
[null,null,{"$f":"VLOOKUP(B97,Dropdowns!$A$2:$B$49,2,FALSE)","v":{"$error":"#N/A"}},null,null,null,{"$f":"VLOOKUP(F97,Dropdowns!$D$2:$E$31,2,FALSE)","v":{"$error":"#N/A"}}]
[null,null,{"$f":"VLOOKUP(B98,Dropdowns!$A$2:$B$49,2,FALSE)","v":{"$error":"#N/A"}},null,null,null,{"$f":"VLOOKUP(F98,Dropdowns!$D$2:$E$31,2,FALSE)","v":{"$error":"#N/A"}}]
[null,null,{"$f":"VLOOKUP(B99,Dropdowns!$A$2:$B$49,2,FALSE)","v":{"$error":"#N/A"}},null,null,null,{"$f":"VLOOKUP(F99,Dropdowns!$D$2:$E$31,2,FALSE)","v":{"$error":"#N/A"}}]
[null,null,{"$f":"VLOOKUP(B100,Dropdowns!$A$2:$B$49,2,FALSE)","v":{"$error":"#N/A"}},null,null,null,{"$f":"VLOOKUP(F100,Dropdowns!$D$2:$E$31,2,FALSE)","v":{"$error":"#N/A"}}]
[null,null,{"$f":"VLOOKUP(B101,Dropdowns!$A$2:$B$49,2,FALSE)","v":{"$error":"#N/A"}},null,null,null,{"$f":"VLOOKUP(F101,Dropdowns!$D$2:$E$31,2,FALSE)","v":{"$error":"#N/A"}}]
[null,null,{"$f":"VLOOKUP(B102,Dropdowns!$A$2:$B$49,2,FALSE)","v":{"$error":"#N/A"}},null,null,null,{"$f":"VLOOKUP(F102,Dropdowns!$D$2:$E$31,2,FALSE)","v":{"$error":"#N/A"}}]
[null,null,{"$f":"VLOOKUP(B103,Dropdowns!$A$2:$B$49,2,FALSE)","v":{"$error":"#N/A"}},null,null,null,{"$f":"VLOOKUP(F103,Dropdowns!$D$2:$E$31,2,FALSE)","v":{"$error":"#N/A"}}]
[null,null,{"$f":"VLOOKUP(B104,Dropdowns!$A$2:$B$49,2,FALSE)","v":{"$error":"#N/A"}},null,null,null,{"$f":"VLOOKUP(F104,Dropdowns!$D$2:$E$31,2,FALSE)","v":{"$error":"#N/A"}}]
[null,null,{"$f":"VLOOKUP(B105,Dropdowns!$A$2:$B$49,2,FALSE)","v":{"$error":"#N/A"}},null,null,null,{"$f":"VLOOKUP(F105,Dropdowns!$D$2:$E$31,2,FALSE)","v":{"$error":"#N/A"}}]
[null,null,{"$f":"VLOOKUP(B106,Dropdowns!$A$2:$B$49,2,FALSE)","v":{"$error":"#N/A"}},null,null,null,{"$f":"VLOOKUP(F106,Dropdowns!$D$2:$E$31,2,FALSE)","v":{"$error":"#N/A"}}]
[null,null,{"$f":"VLOOKUP(B107,Dropdowns!$A$2:$B$49,2,FALSE)","v":{"$error":"#N/A"}},null,null,null,{"$f":"VLOOKUP(F107,Dropdowns!$D$2:$E$31,2,FALSE)","v":{"$error":"#N/A"}}]
[null,null,{"$f":"VLOOKUP(B108,Dropdowns!$A$2:$B$49,2,FALSE)","v":{"$error":"#N/A"}},null,null,null,{"$f":"VLOOKUP(F108,Dropdowns!$D$2:$E$31,2,FALSE)","v":{"$error":"#N/A"}}]
[null,null,{"$f":"VLOOKUP(B109,Dropdowns!$A$2:$B$49,2,FALSE)","v":{"$error":"#N/A"}},null,null,null,{"$f":"VLOOKUP(F109,Dropdowns!$D$2:$E$31,2,FALSE)","v":{"$error":"#N/A"}}]
[null,null,{"$f":"VLOOKUP(B110,Dropdowns!$A$2:$B$49,2,FALSE)","v":{"$error":"#N/A"}},null,null,null,{"$f":"VLOOKUP(F110,Dropdowns!$D$2:$E$31,2,FALSE)","v":{"$error":"#N/A"}}]
[null,null,{"$f":"VLOOKUP(B111,Dropdowns!$A$2:$B$49,2,FALSE)","v":{"$error":"#N/A"}},null,null,null,{"$f":"VLOOKUP(F111,Dropdowns!$D$2:$E$31,2,FALSE)","v":{"$error":"#N/A"}}]
[null,null,{"$f":"VLOOKUP(B112,Dropdowns!$A$2:$B$49,2,FALSE)","v":{"$error":"#N/A"}},null,null,null,{"$f":"VLOOKUP(F112,Dropdowns!$D$2:$E$31,2,FALSE)","v":{"$error":"#N/A"}}]
[null,null,{"$f":"VLOOKUP(B113,Dropdowns!$A$2:$B$49,2,FALSE)","v":{"$error":"#N/A"}},null,null,null,{"$f":"VLOOKUP(F113,Dropdowns!$D$2:$E$31,2,FALSE)","v":{"$error":"#N/A"}}]
[null,null,{"$f":"VLOOKUP(B114,Dropdowns!$A$2:$B$49,2,FALSE)","v":{"$error":"#N/A"}},null,null,null,{"$f":"VLOOKUP(F114,Dropdowns!$D$2:$E$31,2,FALSE)","v":{"$error":"#N/A"}}]
[null,null,{"$f":"VLOOKUP(B115,Dropdowns!$A$2:$B$49,2,FALSE)","v":{"$error":"#N/A"}},null,null,null,{"$f":"VLOOKUP(F115,Dropdowns!$D$2:$E$31,2,FALSE)","v":{"$error":"#N/A"}}]
[null,null,{"$f":"VLOOKUP(B116,Dropdowns!$A$2:$B$49,2,FALSE)","v":{"$error":"#N/A"}},null,null,null,{"$f":"VLOOKUP(F116,Dropdowns!$D$2:$E$31,2,FALSE)","v":{"$error":"#N/A"}}]
[null,null,{"$f":"VLOOKUP(B117,Dropdowns!$A$2:$B$49,2,FALSE)","v":{"$error":"#N/A"}},null,null,null,{"$f":"VLOOKUP(F117,Dropdowns!$D$2:$E$31,2,FALSE)","v":{"$error":"#N/A"}}]
[null,null,{"$f":"VLOOKUP(B118,Dropdowns!$A$2:$B$49,2,FALSE)","v":{"$error":"#N/A"}},null,null,null,{"$f":"VLOOKUP(F118,Dropdowns!$D$2:$E$31,2,FALSE)","v":{"$error":"#N/A"}}]
[null,null,{"$f":"VLOOKUP(B119,Dropdowns!$A$2:$B$49,2,FALSE)","v":{"$error":"#N/A"}},null,null,null,{"$f":"VLOOKUP(F119,Dropdowns!$D$2:$E$31,2,FALSE)","v":{"$error":"#N/A"}}]
[null,null,{"$f":"VLOOKUP(B120,Dropdowns!$A$2:$B$49,2,FALSE)","v":{"$error":"#N/A"}},null,null,null,{"$f":"VLOOKUP(F120,Dropdowns!$D$2:$E$31,2,FALSE)","v":{"$error":"#N/A"}}]
[null,null,{"$f":"VLOOKUP(B121,Dropdowns!$A$2:$B$49,2,FALSE)","v":{"$error":"#N/A"}},null,null,null,{"$f":"VLOOKUP(F121,Dropdowns!$D$2:$E$31,2,FALSE)","v":{"$error":"#N/A"}}]
[null,null,{"$f":"VLOOKUP(B122,Dropdowns!$A$2:$B$49,2,FALSE)","v":{"$error":"#N/A"}},null,null,null,{"$f":"VLOOKUP(F122,Dropdowns!$D$2:$E$31,2,FALSE)","v":{"$error":"#N/A"}}]
[null,null,{"$f":"VLOOKUP(B123,Dropdowns!$A$2:$B$49,2,FALSE)","v":{"$error":"#N/A"}},null,null,null,{"$f":"VLOOKUP(F123,Dropdowns!$D$2:$E$31,2,FALSE)","v":{"$error":"#N/A"}}]
[null,null,{"$f":"VLOOKUP(B124,Dropdowns!$A$2:$B$49,2,FALSE)","v":{"$error":"#N/A"}},null,null,null,{"$f":"VLOOKUP(F124,Dropdowns!$D$2:$E$31,2,FALSE)","v":{"$error":"#N/A"}}]
[null,null,{"$f":"VLOOKUP(B125,Dropdowns!$A$2:$B$49,2,FALSE)","v":{"$error":"#N/A"}},null,null,null,{"$f":"VLOOKUP(F125,Dropdowns!$D$2:$E$31,2,FALSE)","v":{"$error":"#N/A"}}]
[null,null,{"$f":"VLOOKUP(B126,Dropdowns!$A$2:$B$49,2,FALSE)","v":{"$error":"#N/A"}},null,null,null,{"$f":"VLOOKUP(F126,Dropdowns!$D$2:$E$31,2,FALSE)","v":{"$error":"#N/A"}}]
[null,null,{"$f":"VLOOKUP(B127,Dropdowns!$A$2:$B$49,2,FALSE)","v":{"$error":"#N/A"}},null,null,null,{"$f":"VLOOKUP(F127,Dropdowns!$D$2:$E$31,2,FALSE)","v":{"$error":"#N/A"}}]
[null,null,{"$f":"VLOOKUP(B128,Dropdowns!$A$2:$B$49,2,FALSE)","v":{"$error":"#N/A"}},null,null,null,{"$f":"VLOOKUP(F128,Dropdowns!$D$2:$E$31,2,FALSE)","v":{"$error":"#N/A"}}]
[null,null,{"$f":"VLOOKUP(B129,Dropdowns!$A$2:$B$49,2,FALSE)","v":{"$error":"#N/A"}},null,null,null,{"$f":"VLOOKUP(F129,Dropdowns!$D$2:$E$31,2,FALSE)","v":{"$error":"#N/A"}}]
[null,null,{"$f":"VLOOKUP(B130,Dropdowns!$A$2:$B$49,2,FALSE)","v":{"$error":"#N/A"}},null,null,null,{"$f":"VLOOKUP(F130,Dropdowns!$D$2:$E$31,2,FALSE)","v":{"$error":"#N/A"}}]
[null,null,{"$f":"VLOOKUP(B131,Dropdowns!$A$2:$B$49,2,FALSE)","v":{"$error":"#N/A"}},null,null,null,{"$f":"VLOOKUP(F131,Dropdowns!$D$2:$E$31,2,FALSE)","v":{"$error":"#N/A"}}]
[null,null,{"$f":"VLOOKUP(B132,Dropdowns!$A$2:$B$49,2,FALSE)","v":{"$error":"#N/A"}},null,null,null,{"$f":"VLOOKUP(F132,Dropdowns!$D$2:$E$31,2,FALSE)","v":{"$error":"#N/A"}}]
[null,null,{"$f":"VLOOKUP(B133,Dropdowns!$A$2:$B$49,2,FALSE)","v":{"$error":"#N/A"}},null,null,null,{"$f":"VLOOKUP(F133,Dropdowns!$D$2:$E$31,2,FALSE)","v":{"$error":"#N/A"}}]
[null,null,{"$f":"VLOOKUP(B134,Dropdowns!$A$2:$B$49,2,FALSE)","v":{"$error":"#N/A"}},null,null,null,{"$f":"VLOOKUP(F134,Dropdowns!$D$2:$E$31,2,FALSE)","v":{"$error":"#N/A"}}]
[null,null,{"$f":"VLOOKUP(B135,Dropdowns!$A$2:$B$49,2,FALSE)","v":{"$error":"#N/A"}},null,null,null,{"$f":"VLOOKUP(F135,Dropdowns!$D$2:$E$31,2,FALSE)","v":{"$error":"#N/A"}}]
[null,null,{"$f":"VLOOKUP(B136,Dropdowns!$A$2:$B$49,2,FALSE)","v":{"$error":"#N/A"}},null,null,null,{"$f":"VLOOKUP(F136,Dropdowns!$D$2:$E$31,2,FALSE)","v":{"$error":"#N/A"}}]
[null,null,{"$f":"VLOOKUP(B137,Dropdowns!$A$2:$B$49,2,FALSE)","v":{"$error":"#N/A"}},null,null,null,{"$f":"VLOOKUP(F137,Dropdowns!$D$2:$E$31,2,FALSE)","v":{"$error":"#N/A"}}]
[null,null,{"$f":"VLOOKUP(B138,Dropdowns!$A$2:$B$49,2,FALSE)","v":{"$error":"#N/A"}},null,null,null,{"$f":"VLOOKUP(F138,Dropdowns!$D$2:$E$31,2,FALSE)","v":{"$error":"#N/A"}}]
[null,null,{"$f":"VLOOKUP(B139,Dropdowns!$A$2:$B$49,2,FALSE)","v":{"$error":"#N/A"}},null,null,null,{"$f":"VLOOKUP(F139,Dropdowns!$D$2:$E$31,2,FALSE)","v":{"$error":"#N/A"}}]
[null,null,{"$f":"VLOOKUP(B140,Dropdowns!$A$2:$B$49,2,FALSE)","v":{"$error":"#N/A"}},null,null,null,{"$f":"VLOOKUP(F140,Dropdowns!$D$2:$E$31,2,FALSE)","v":{"$error":"#N/A"}}]
[null,null,{"$f":"VLOOKUP(B141,Dropdowns!$A$2:$B$49,2,FALSE)","v":{"$error":"#N/A"}},null,null,null,{"$f":"VLOOKUP(F141,Dropdowns!$D$2:$E$31,2,FALSE)","v":{"$error":"#N/A"}}]
[null,null,{"$f":"VLOOKUP(B142,Dropdowns!$A$2:$B$49,2,FALSE)","v":{"$error":"#N/A"}},null,null,null,{"$f":"VLOOKUP(F142,Dropdowns!$D$2:$E$31,2,FALSE)","v":{"$error":"#N/A"}}]
[null,null,{"$f":"VLOOKUP(B143,Dropdowns!$A$2:$B$49,2,FALSE)","v":{"$error":"#N/A"}},null,null,null,{"$f":"VLOOKUP(F143,Dropdowns!$D$2:$E$31,2,FALSE)","v":{"$error":"#N/A"}}]
[null,null,{"$f":"VLOOKUP(B144,Dropdowns!$A$2:$B$49,2,FALSE)","v":{"$error":"#N/A"}},null,null,null,{"$f":"VLOOKUP(F144,Dropdowns!$D$2:$E$31,2,FALSE)","v":{"$error":"#N/A"}}]
[null,null,{"$f":"VLOOKUP(B145,Dropdowns!$A$2:$B$49,2,FALSE)","v":{"$error":"#N/A"}},null,null,null,{"$f":"VLOOKUP(F145,Dropdowns!$D$2:$E$31,2,FALSE)","v":{"$error":"#N/A"}}]
[null,null,{"$f":"VLOOKUP(B146,Dropdowns!$A$2:$B$49,2,FALSE)","v":{"$error":"#N/A"}},null,null,null,{"$f":"VLOOKUP(F146,Dropdowns!$D$2:$E$31,2,FALSE)","v":{"$error":"#N/A"}}]
[null,null,{"$f":"VLOOKUP(B147,Dropdowns!$A$2:$B$49,2,FALSE)","v":{"$error":"#N/A"}},null,null,null,{"$f":"VLOOKUP(F147,Dropdowns!$D$2:$E$31,2,FALSE)","v":{"$error":"#N/A"}}]
[null,null,{"$f":"VLOOKUP(B148,Dropdowns!$A$2:$B$49,2,FALSE)","v":{"$error":"#N/A"}},null,null,null,{"$f":"VLOOKUP(F148,Dropdowns!$D$2:$E$31,2,FALSE)","v":{"$error":"#N/A"}}]
[null,null,{"$f":"VLOOKUP(B149,Dropdowns!$A$2:$B$49,2,FALSE)","v":{"$error":"#N/A"}},null,null,null,{"$f":"VLOOKUP(F149,Dropdowns!$D$2:$E$31,2,FALSE)","v":{"$error":"#N/A"}}]
[null,null,{"$f":"VLOOKUP(B150,Dropdowns!$A$2:$B$49,2,FALSE)","v":{"$error":"#N/A"}},null,null,null,{"$f":"VLOOKUP(F150,Dropdowns!$D$2:$E$31,2,FALSE)","v":{"$error":"#N/A"}}]
[null,null,{"$f":"VLOOKUP(B151,Dropdowns!$A$2:$B$49,2,FALSE)","v":{"$error":"#N/A"}},null,null,null,{"$f":"VLOOKUP(F151,Dropdowns!$D$2:$E$31,2,FALSE)","v":{"$error":"#N/A"}}]
[null,null,{"$f":"VLOOKUP(B152,Dropdowns!$A$2:$B$49,2,FALSE)","v":{"$error":"#N/A"}},null,null,null,{"$f":"VLOOKUP(F152,Dropdowns!$D$2:$E$31,2,FALSE)","v":{"$error":"#N/A"}}]
[null,null,{"$f":"VLOOKUP(B153,Dropdowns!$A$2:$B$49,2,FALSE)","v":{"$error":"#N/A"}},null,null,null,{"$f":"VLOOKUP(F153,Dropdowns!$D$2:$E$31,2,FALSE)","v":{"$error":"#N/A"}}]
[null,null,{"$f":"VLOOKUP(B154,Dropdowns!$A$2:$B$49,2,FALSE)","v":{"$error":"#N/A"}},null,null,null,{"$f":"VLOOKUP(F154,Dropdowns!$D$2:$E$31,2,FALSE)","v":{"$error":"#N/A"}}]
[null,null,{"$f":"VLOOKUP(B155,Dropdowns!$A$2:$B$49,2,FALSE)","v":{"$error":"#N/A"}},null,null,null,{"$f":"VLOOKUP(F155,Dropdowns!$D$2:$E$31,2,FALSE)","v":{"$error":"#N/A"}}]
[null,null,{"$f":"VLOOKUP(B156,Dropdowns!$A$2:$B$49,2,FALSE)","v":{"$error":"#N/A"}},null,null,null,{"$f":"VLOOKUP(F156,Dropdowns!$D$2:$E$31,2,FALSE)","v":{"$error":"#N/A"}}]
[null,null,{"$f":"VLOOKUP(B157,Dropdowns!$A$2:$B$49,2,FALSE)","v":{"$error":"#N/A"}},null,null,null,{"$f":"VLOOKUP(F157,Dropdowns!$D$2:$E$31,2,FALSE)","v":{"$error":"#N/A"}}]
[null,null,{"$f":"VLOOKUP(B158,Dropdowns!$A$2:$B$49,2,FALSE)","v":{"$error":"#N/A"}},null,null,null,{"$f":"VLOOKUP(F158,Dropdowns!$D$2:$E$31,2,FALSE)","v":{"$error":"#N/A"}}]
[null,null,{"$f":"VLOOKUP(B159,Dropdowns!$A$2:$B$49,2,FALSE)","v":{"$error":"#N/A"}},null,null,null,{"$f":"VLOOKUP(F159,Dropdowns!$D$2:$E$31,2,FALSE)","v":{"$error":"#N/A"}}]
[null,null,{"$f":"VLOOKUP(B160,Dropdowns!$A$2:$B$49,2,FALSE)","v":{"$error":"#N/A"}},null,null,null,{"$f":"VLOOKUP(F160,Dropdowns!$D$2:$E$31,2,FALSE)","v":{"$error":"#N/A"}}]
[null,null,{"$f":"VLOOKUP(B161,Dropdowns!$A$2:$B$49,2,FALSE)","v":{"$error":"#N/A"}},null,null,null,{"$f":"VLOOKUP(F161,Dropdowns!$D$2:$E$31,2,FALSE)","v":{"$error":"#N/A"}}]
[null,null,{"$f":"VLOOKUP(B162,Dropdowns!$A$2:$B$49,2,FALSE)","v":{"$error":"#N/A"}},null,null,null,{"$f":"VLOOKUP(F162,Dropdowns!$D$2:$E$31,2,FALSE)","v":{"$error":"#N/A"}}]
[null,null,{"$f":"VLOOKUP(B163,Dropdowns!$A$2:$B$49,2,FALSE)","v":{"$error":"#N/A"}},null,null,null,{"$f":"VLOOKUP(F163,Dropdowns!$D$2:$E$31,2,FALSE)","v":{"$error":"#N/A"}}]
[null,null,{"$f":"VLOOKUP(B164,Dropdowns!$A$2:$B$49,2,FALSE)","v":{"$error":"#N/A"}},null,null,null,{"$f":"VLOOKUP(F164,Dropdowns!$D$2:$E$31,2,FALSE)","v":{"$error":"#N/A"}}]
[null,null,{"$f":"VLOOKUP(B165,Dropdowns!$A$2:$B$49,2,FALSE)","v":{"$error":"#N/A"}},null,null,null,{"$f":"VLOOKUP(F165,Dropdowns!$D$2:$E$31,2,FALSE)","v":{"$error":"#N/A"}}]
[null,null,{"$f":"VLOOKUP(B166,Dropdowns!$A$2:$B$49,2,FALSE)","v":{"$error":"#N/A"}},null,null,null,{"$f":"VLOOKUP(F166,Dropdowns!$D$2:$E$31,2,FALSE)","v":{"$error":"#N/A"}}]
[null,null,{"$f":"VLOOKUP(B167,Dropdowns!$A$2:$B$49,2,FALSE)","v":{"$error":"#N/A"}},null,null,null,{"$f":"VLOOKUP(F167,Dropdowns!$D$2:$E$31,2,FALSE)","v":{"$error":"#N/A"}}]
[null,null,{"$f":"VLOOKUP(B168,Dropdowns!$A$2:$B$49,2,FALSE)","v":{"$error":"#N/A"}},null,null,null,{"$f":"VLOOKUP(F168,Dropdowns!$D$2:$E$31,2,FALSE)","v":{"$error":"#N/A"}}]
[null,null,{"$f":"VLOOKUP(B169,Dropdowns!$A$2:$B$49,2,FALSE)","v":{"$error":"#N/A"}},null,null,null,{"$f":"VLOOKUP(F169,Dropdowns!$D$2:$E$31,2,FALSE)","v":{"$error":"#N/A"}}]
[null,null,{"$f":"VLOOKUP(B170,Dropdowns!$A$2:$B$49,2,FALSE)","v":{"$error":"#N/A"}},null,null,null,{"$f":"VLOOKUP(F170,Dropdowns!$D$2:$E$31,2,FALSE)","v":{"$error":"#N/A"}}]
[null,null,{"$f":"VLOOKUP(B171,Dropdowns!$A$2:$B$49,2,FALSE)","v":{"$error":"#N/A"}},null,null,null,{"$f":"VLOOKUP(F171,Dropdowns!$D$2:$E$31,2,FALSE)","v":{"$error":"#N/A"}}]
[null,null,{"$f":"VLOOKUP(B172,Dropdowns!$A$2:$B$49,2,FALSE)","v":{"$error":"#N/A"}},null,null,null,{"$f":"VLOOKUP(F172,Dropdowns!$D$2:$E$31,2,FALSE)","v":{"$error":"#N/A"}}]
[null,null,{"$f":"VLOOKUP(B173,Dropdowns!$A$2:$B$49,2,FALSE)","v":{"$error":"#N/A"}},null,null,null,{"$f":"VLOOKUP(F173,Dropdowns!$D$2:$E$31,2,FALSE)","v":{"$error":"#N/A"}}]
[null,null,{"$f":"VLOOKUP(B174,Dropdowns!$A$2:$B$49,2,FALSE)","v":{"$error":"#N/A"}},null,null,null,{"$f":"VLOOKUP(F174,Dropdowns!$D$2:$E$31,2,FALSE)","v":{"$error":"#N/A"}}]
[null,null,{"$f":"VLOOKUP(B175,Dropdowns!$A$2:$B$49,2,FALSE)","v":{"$error":"#N/A"}},null,null,null,{"$f":"VLOOKUP(F175,Dropdowns!$D$2:$E$31,2,FALSE)","v":{"$error":"#N/A"}}]
[null,null,{"$f":"VLOOKUP(B176,Dropdowns!$A$2:$B$49,2,FALSE)","v":{"$error":"#N/A"}},null,null,null,{"$f":"VLOOKUP(F176,Dropdowns!$D$2:$E$31,2,FALSE)","v":{"$error":"#N/A"}}]
[null,null,{"$f":"VLOOKUP(B177,Dropdowns!$A$2:$B$49,2,FALSE)","v":{"$error":"#N/A"}},null,null,null,{"$f":"VLOOKUP(F177,Dropdowns!$D$2:$E$31,2,FALSE)","v":{"$error":"#N/A"}}]
[null,null,{"$f":"VLOOKUP(B178,Dropdowns!$A$2:$B$49,2,FALSE)","v":{"$error":"#N/A"}},null,null,null,{"$f":"VLOOKUP(F178,Dropdowns!$D$2:$E$31,2,FALSE)","v":{"$error":"#N/A"}}]
[null,null,{"$f":"VLOOKUP(B179,Dropdowns!$A$2:$B$49,2,FALSE)","v":{"$error":"#N/A"}},null,null,null,{"$f":"VLOOKUP(F179,Dropdowns!$D$2:$E$31,2,FALSE)","v":{"$error":"#N/A"}}]
[null,null,{"$f":"VLOOKUP(B180,Dropdowns!$A$2:$B$49,2,FALSE)","v":{"$error":"#N/A"}},null,null,null,{"$f":"VLOOKUP(F180,Dropdowns!$D$2:$E$31,2,FALSE)","v":{"$error":"#N/A"}}]
[null,null,{"$f":"VLOOKUP(B181,Dropdowns!$A$2:$B$49,2,FALSE)","v":{"$error":"#N/A"}},null,null,null,{"$f":"VLOOKUP(F181,Dropdowns!$D$2:$E$31,2,FALSE)","v":{"$error":"#N/A"}}]
[null,null,{"$f":"VLOOKUP(B182,Dropdowns!$A$2:$B$49,2,FALSE)","v":{"$error":"#N/A"}},null,null,null,{"$f":"VLOOKUP(F182,Dropdowns!$D$2:$E$31,2,FALSE)","v":{"$error":"#N/A"}}]
[null,null,{"$f":"VLOOKUP(B183,Dropdowns!$A$2:$B$49,2,FALSE)","v":{"$error":"#N/A"}},null,null,null,{"$f":"VLOOKUP(F183,Dropdowns!$D$2:$E$31,2,FALSE)","v":{"$error":"#N/A"}}]
[null,null,{"$f":"VLOOKUP(B184,Dropdowns!$A$2:$B$49,2,FALSE)","v":{"$error":"#N/A"}},null,null,null,{"$f":"VLOOKUP(F184,Dropdowns!$D$2:$E$31,2,FALSE)","v":{"$error":"#N/A"}}]
[null,null,{"$f":"VLOOKUP(B185,Dropdowns!$A$2:$B$49,2,FALSE)","v":{"$error":"#N/A"}},null,null,null,{"$f":"VLOOKUP(F185,Dropdowns!$D$2:$E$31,2,FALSE)","v":{"$error":"#N/A"}}]
[null,null,{"$f":"VLOOKUP(B186,Dropdowns!$A$2:$B$49,2,FALSE)","v":{"$error":"#N/A"}},null,null,null,{"$f":"VLOOKUP(F186,Dropdowns!$D$2:$E$31,2,FALSE)","v":{"$error":"#N/A"}}]
[null,null,{"$f":"VLOOKUP(B187,Dropdowns!$A$2:$B$49,2,FALSE)","v":{"$error":"#N/A"}},null,null,null,{"$f":"VLOOKUP(F187,Dropdowns!$D$2:$E$31,2,FALSE)","v":{"$error":"#N/A"}}]
[null,null,{"$f":"VLOOKUP(B188,Dropdowns!$A$2:$B$49,2,FALSE)","v":{"$error":"#N/A"}},null,null,null,{"$f":"VLOOKUP(F188,Dropdowns!$D$2:$E$31,2,FALSE)","v":{"$error":"#N/A"}}]
[null,null,{"$f":"VLOOKUP(B189,Dropdowns!$A$2:$B$49,2,FALSE)","v":{"$error":"#N/A"}},null,null,null,{"$f":"VLOOKUP(F189,Dropdowns!$D$2:$E$31,2,FALSE)","v":{"$error":"#N/A"}}]
[null,null,{"$f":"VLOOKUP(B190,Dropdowns!$A$2:$B$49,2,FALSE)","v":{"$error":"#N/A"}},null,null,null,{"$f":"VLOOKUP(F190,Dropdowns!$D$2:$E$31,2,FALSE)","v":{"$error":"#N/A"}}]
[null,null,{"$f":"VLOOKUP(B191,Dropdowns!$A$2:$B$49,2,FALSE)","v":{"$error":"#N/A"}},null,null,null,{"$f":"VLOOKUP(F191,Dropdowns!$D$2:$E$31,2,FALSE)","v":{"$error":"#N/A"}}]
[null,null,{"$f":"VLOOKUP(B192,Dropdowns!$A$2:$B$49,2,FALSE)","v":{"$error":"#N/A"}},null,null,null,{"$f":"VLOOKUP(F192,Dropdowns!$D$2:$E$31,2,FALSE)","v":{"$error":"#N/A"}}]
[null,null,{"$f":"VLOOKUP(B193,Dropdowns!$A$2:$B$49,2,FALSE)","v":{"$error":"#N/A"}},null,null,null,{"$f":"VLOOKUP(F193,Dropdowns!$D$2:$E$31,2,FALSE)","v":{"$error":"#N/A"}}]
[null,null,{"$f":"VLOOKUP(B194,Dropdowns!$A$2:$B$49,2,FALSE)","v":{"$error":"#N/A"}},null,null,null,{"$f":"VLOOKUP(F194,Dropdowns!$D$2:$E$31,2,FALSE)","v":{"$error":"#N/A"}}]
[null,null,{"$f":"VLOOKUP(B195,Dropdowns!$A$2:$B$49,2,FALSE)","v":{"$error":"#N/A"}},null,null,null,{"$f":"VLOOKUP(F195,Dropdowns!$D$2:$E$31,2,FALSE)","v":{"$error":"#N/A"}}]
[null,null,{"$f":"VLOOKUP(B196,Dropdowns!$A$2:$B$49,2,FALSE)","v":{"$error":"#N/A"}},null,null,null,{"$f":"VLOOKUP(F196,Dropdowns!$D$2:$E$31,2,FALSE)","v":{"$error":"#N/A"}}]
[null,null,{"$f":"VLOOKUP(B197,Dropdowns!$A$2:$B$49,2,FALSE)","v":{"$error":"#N/A"}},null,null,null,{"$f":"VLOOKUP(F197,Dropdowns!$D$2:$E$31,2,FALSE)","v":{"$error":"#N/A"}}]
[null,null,{"$f":"VLOOKUP(B198,Dropdowns!$A$2:$B$49,2,FALSE)","v":{"$error":"#N/A"}},null,null,null,{"$f":"VLOOKUP(F198,Dropdowns!$D$2:$E$31,2,FALSE)","v":{"$error":"#N/A"}}]
[null,null,{"$f":"VLOOKUP(B199,Dropdowns!$A$2:$B$49,2,FALSE)","v":{"$error":"#N/A"}},null,null,null,{"$f":"VLOOKUP(F199,Dropdowns!$D$2:$E$31,2,FALSE)","v":{"$error":"#N/A"}}]
[null,null,{"$f":"VLOOKUP(B200,Dropdowns!$A$2:$B$49,2,FALSE)","v":{"$error":"#N/A"}},null,null,null,{"$f":"VLOOKUP(F200,Dropdowns!$D$2:$E$31,2,FALSE)","v":{"$error":"#N/A"}}]
[null,null,{"$f":"VLOOKUP(B201,Dropdowns!$A$2:$B$49,2,FALSE)","v":{"$error":"#N/A"}},null,null,null,{"$f":"VLOOKUP(F201,Dropdowns!$D$2:$E$31,2,FALSE)","v":{"$error":"#N/A"}}]
[null,null,{"$f":"VLOOKUP(B202,Dropdowns!$A$2:$B$49,2,FALSE)","v":{"$error":"#N/A"}},null,null,null,{"$f":"VLOOKUP(F202,Dropdowns!$D$2:$E$31,2,FALSE)","v":{"$error":"#N/A"}}]
[null,null,{"$f":"VLOOKUP(B203,Dropdowns!$A$2:$B$49,2,FALSE)","v":{"$error":"#N/A"}},null,null,null,{"$f":"VLOOKUP(F203,Dropdowns!$D$2:$E$31,2,FALSE)","v":{"$error":"#N/A"}}]
[null,null,{"$f":"VLOOKUP(B204,Dropdowns!$A$2:$B$49,2,FALSE)","v":{"$error":"#N/A"}},null,null,null,{"$f":"VLOOKUP(F204,Dropdowns!$D$2:$E$31,2,FALSE)","v":{"$error":"#N/A"}}]
[null,null,{"$f":"VLOOKUP(B205,Dropdowns!$A$2:$B$49,2,FALSE)","v":{"$error":"#N/A"}},null,null,null,{"$f":"VLOOKUP(F205,Dropdowns!$D$2:$E$31,2,FALSE)","v":{"$error":"#N/A"}}]
[null,null,{"$f":"VLOOKUP(B206,Dropdowns!$A$2:$B$49,2,FALSE)","v":{"$error":"#N/A"}},null,null,null,{"$f":"VLOOKUP(F206,Dropdowns!$D$2:$E$31,2,FALSE)","v":{"$error":"#N/A"}}]
[null,null,{"$f":"VLOOKUP(B207,Dropdowns!$A$2:$B$49,2,FALSE)","v":{"$error":"#N/A"}},null,null,null,{"$f":"VLOOKUP(F207,Dropdowns!$D$2:$E$31,2,FALSE)","v":{"$error":"#N/A"}}]
[null,null,{"$f":"VLOOKUP(B208,Dropdowns!$A$2:$B$49,2,FALSE)","v":{"$error":"#N/A"}},null,null,null,{"$f":"VLOOKUP(F208,Dropdowns!$D$2:$E$31,2,FALSE)","v":{"$error":"#N/A"}}]
[null,null,{"$f":"VLOOKUP(B209,Dropdowns!$A$2:$B$49,2,FALSE)","v":{"$error":"#N/A"}},null,null,null,{"$f":"VLOOKUP(F209,Dropdowns!$D$2:$E$31,2,FALSE)","v":{"$error":"#N/A"}}]
[null,null,{"$f":"VLOOKUP(B210,Dropdowns!$A$2:$B$49,2,FALSE)","v":{"$error":"#N/A"}},null,null,null,{"$f":"VLOOKUP(F210,Dropdowns!$D$2:$E$31,2,FALSE)","v":{"$error":"#N/A"}}]
[null,null,{"$f":"VLOOKUP(B211,Dropdowns!$A$2:$B$49,2,FALSE)","v":{"$error":"#N/A"}},null,null,null,{"$f":"VLOOKUP(F211,Dropdowns!$D$2:$E$31,2,FALSE)","v":{"$error":"#N/A"}}]
[null,null,{"$f":"VLOOKUP(B212,Dropdowns!$A$2:$B$49,2,FALSE)","v":{"$error":"#N/A"}},null,null,null,{"$f":"VLOOKUP(F212,Dropdowns!$D$2:$E$31,2,FALSE)","v":{"$error":"#N/A"}}]
[null,null,{"$f":"VLOOKUP(B213,Dropdowns!$A$2:$B$49,2,FALSE)","v":{"$error":"#N/A"}},null,null,null,{"$f":"VLOOKUP(F213,Dropdowns!$D$2:$E$31,2,FALSE)","v":{"$error":"#N/A"}}]
[null,null,{"$f":"VLOOKUP(B214,Dropdowns!$A$2:$B$49,2,FALSE)","v":{"$error":"#N/A"}},null,null,null,{"$f":"VLOOKUP(F214,Dropdowns!$D$2:$E$31,2,FALSE)","v":{"$error":"#N/A"}}]
[null,null,{"$f":"VLOOKUP(B215,Dropdowns!$A$2:$B$49,2,FALSE)","v":{"$error":"#N/A"}},null,null,null,{"$f":"VLOOKUP(F215,Dropdowns!$D$2:$E$31,2,FALSE)","v":{"$error":"#N/A"}}]
[null,null,{"$f":"VLOOKUP(B216,Dropdowns!$A$2:$B$49,2,FALSE)","v":{"$error":"#N/A"}},null,null,null,{"$f":"VLOOKUP(F216,Dropdowns!$D$2:$E$31,2,FALSE)","v":{"$error":"#N/A"}}]
[null,null,{"$f":"VLOOKUP(B217,Dropdowns!$A$2:$B$49,2,FALSE)","v":{"$error":"#N/A"}},null,null,null,{"$f":"VLOOKUP(F217,Dropdowns!$D$2:$E$31,2,FALSE)","v":{"$error":"#N/A"}}]
[null,null,{"$f":"VLOOKUP(B218,Dropdowns!$A$2:$B$49,2,FALSE)","v":{"$error":"#N/A"}},null,null,null,{"$f":"VLOOKUP(F218,Dropdowns!$D$2:$E$31,2,FALSE)","v":{"$error":"#N/A"}}]
[null,null,{"$f":"VLOOKUP(B219,Dropdowns!$A$2:$B$49,2,FALSE)","v":{"$error":"#N/A"}},null,null,null,{"$f":"VLOOKUP(F219,Dropdowns!$D$2:$E$31,2,FALSE)","v":{"$error":"#N/A"}}]
[null,null,{"$f":"VLOOKUP(B220,Dropdowns!$A$2:$B$49,2,FALSE)","v":{"$error":"#N/A"}},null,null,null,{"$f":"VLOOKUP(F220,Dropdowns!$D$2:$E$31,2,FALSE)","v":{"$error":"#N/A"}}]
[null,null,{"$f":"VLOOKUP(B221,Dropdowns!$A$2:$B$49,2,FALSE)","v":{"$error":"#N/A"}},null,null,null,{"$f":"VLOOKUP(F221,Dropdowns!$D$2:$E$31,2,FALSE)","v":{"$error":"#N/A"}}]
[null,null,{"$f":"VLOOKUP(B222,Dropdowns!$A$2:$B$49,2,FALSE)","v":{"$error":"#N/A"}},null,null,null,{"$f":"VLOOKUP(F222,Dropdowns!$D$2:$E$31,2,FALSE)","v":{"$error":"#N/A"}}]
[null,null,{"$f":"VLOOKUP(B223,Dropdowns!$A$2:$B$49,2,FALSE)","v":{"$error":"#N/A"}},null,null,null,{"$f":"VLOOKUP(F223,Dropdowns!$D$2:$E$31,2,FALSE)","v":{"$error":"#N/A"}}]
[null,null,{"$f":"VLOOKUP(B224,Dropdowns!$A$2:$B$49,2,FALSE)","v":{"$error":"#N/A"}},null,null,null,{"$f":"VLOOKUP(F224,Dropdowns!$D$2:$E$31,2,FALSE)","v":{"$error":"#N/A"}}]
[null,null,{"$f":"VLOOKUP(B225,Dropdowns!$A$2:$B$49,2,FALSE)","v":{"$error":"#N/A"}},null,null,null,{"$f":"VLOOKUP(F225,Dropdowns!$D$2:$E$31,2,FALSE)","v":{"$error":"#N/A"}}]
[null,null,{"$f":"VLOOKUP(B226,Dropdowns!$A$2:$B$49,2,FALSE)","v":{"$error":"#N/A"}},null,null,null,{"$f":"VLOOKUP(F226,Dropdowns!$D$2:$E$31,2,FALSE)","v":{"$error":"#N/A"}}]
[null,null,{"$f":"VLOOKUP(B227,Dropdowns!$A$2:$B$49,2,FALSE)","v":{"$error":"#N/A"}},null,null,null,{"$f":"VLOOKUP(F227,Dropdowns!$D$2:$E$31,2,FALSE)","v":{"$error":"#N/A"}}]
[null,null,{"$f":"VLOOKUP(B228,Dropdowns!$A$2:$B$49,2,FALSE)","v":{"$error":"#N/A"}},null,null,null,{"$f":"VLOOKUP(F228,Dropdowns!$D$2:$E$31,2,FALSE)","v":{"$error":"#N/A"}}]
[null,null,{"$f":"VLOOKUP(B229,Dropdowns!$A$2:$B$49,2,FALSE)","v":{"$error":"#N/A"}},null,null,null,{"$f":"VLOOKUP(F229,Dropdowns!$D$2:$E$31,2,FALSE)","v":{"$error":"#N/A"}}]
[null,null,{"$f":"VLOOKUP(B230,Dropdowns!$A$2:$B$49,2,FALSE)","v":{"$error":"#N/A"}},null,null,null,{"$f":"VLOOKUP(F230,Dropdowns!$D$2:$E$31,2,FALSE)","v":{"$error":"#N/A"}}]
[null,null,{"$f":"VLOOKUP(B231,Dropdowns!$A$2:$B$49,2,FALSE)","v":{"$error":"#N/A"}},null,null,null,{"$f":"VLOOKUP(F231,Dropdowns!$D$2:$E$31,2,FALSE)","v":{"$error":"#N/A"}}]
[null,null,{"$f":"VLOOKUP(B232,Dropdowns!$A$2:$B$49,2,FALSE)","v":{"$error":"#N/A"}},null,null,null,{"$f":"VLOOKUP(F232,Dropdowns!$D$2:$E$31,2,FALSE)","v":{"$error":"#N/A"}}]
[null,null,{"$f":"VLOOKUP(B233,Dropdowns!$A$2:$B$49,2,FALSE)","v":{"$error":"#N/A"}},null,null,null,{"$f":"VLOOKUP(F233,Dropdowns!$D$2:$E$31,2,FALSE)","v":{"$error":"#N/A"}}]
[null,null,{"$f":"VLOOKUP(B234,Dropdowns!$A$2:$B$49,2,FALSE)","v":{"$error":"#N/A"}},null,null,null,{"$f":"VLOOKUP(F234,Dropdowns!$D$2:$E$31,2,FALSE)","v":{"$error":"#N/A"}}]
[null,null,{"$f":"VLOOKUP(B235,Dropdowns!$A$2:$B$49,2,FALSE)","v":{"$error":"#N/A"}},null,null,null,{"$f":"VLOOKUP(F235,Dropdowns!$D$2:$E$31,2,FALSE)","v":{"$error":"#N/A"}}]
[null,null,{"$f":"VLOOKUP(B236,Dropdowns!$A$2:$B$49,2,FALSE)","v":{"$error":"#N/A"}},null,null,null,{"$f":"VLOOKUP(F236,Dropdowns!$D$2:$E$31,2,FALSE)","v":{"$error":"#N/A"}}]
[null,null,{"$f":"VLOOKUP(B237,Dropdowns!$A$2:$B$49,2,FALSE)","v":{"$error":"#N/A"}},null,null,null,{"$f":"VLOOKUP(F237,Dropdowns!$D$2:$E$31,2,FALSE)","v":{"$error":"#N/A"}}]
[null,null,{"$f":"VLOOKUP(B238,Dropdowns!$A$2:$B$49,2,FALSE)","v":{"$error":"#N/A"}},null,null,null,{"$f":"VLOOKUP(F238,Dropdowns!$D$2:$E$31,2,FALSE)","v":{"$error":"#N/A"}}]
[null,null,{"$f":"VLOOKUP(B239,Dropdowns!$A$2:$B$49,2,FALSE)","v":{"$error":"#N/A"}},null,null,null,{"$f":"VLOOKUP(F239,Dropdowns!$D$2:$E$31,2,FALSE)","v":{"$error":"#N/A"}}]
[null,null,{"$f":"VLOOKUP(B240,Dropdowns!$A$2:$B$49,2,FALSE)","v":{"$error":"#N/A"}},null,null,null,{"$f":"VLOOKUP(F240,Dropdowns!$D$2:$E$31,2,FALSE)","v":{"$error":"#N/A"}}]
[null,null,{"$f":"VLOOKUP(B241,Dropdowns!$A$2:$B$49,2,FALSE)","v":{"$error":"#N/A"}},null,null,null,{"$f":"VLOOKUP(F241,Dropdowns!$D$2:$E$31,2,FALSE)","v":{"$error":"#N/A"}}]
[null,null,{"$f":"VLOOKUP(B242,Dropdowns!$A$2:$B$49,2,FALSE)","v":{"$error":"#N/A"}},null,null,null,{"$f":"VLOOKUP(F242,Dropdowns!$D$2:$E$31,2,FALSE)","v":{"$error":"#N/A"}}]
[null,null,{"$f":"VLOOKUP(B243,Dropdowns!$A$2:$B$49,2,FALSE)","v":{"$error":"#N/A"}},null,null,null,{"$f":"VLOOKUP(F243,Dropdowns!$D$2:$E$31,2,FALSE)","v":{"$error":"#N/A"}}]
[null,null,{"$f":"VLOOKUP(B244,Dropdowns!$A$2:$B$49,2,FALSE)","v":{"$error":"#N/A"}},null,null,null,{"$f":"VLOOKUP(F244,Dropdowns!$D$2:$E$31,2,FALSE)","v":{"$error":"#N/A"}}]
[null,null,{"$f":"VLOOKUP(B245,Dropdowns!$A$2:$B$49,2,FALSE)","v":{"$error":"#N/A"}},null,null,null,{"$f":"VLOOKUP(F245,Dropdowns!$D$2:$E$31,2,FALSE)","v":{"$error":"#N/A"}}]
[null,null,{"$f":"VLOOKUP(B246,Dropdowns!$A$2:$B$49,2,FALSE)","v":{"$error":"#N/A"}},null,null,null,{"$f":"VLOOKUP(F246,Dropdowns!$D$2:$E$31,2,FALSE)","v":{"$error":"#N/A"}}]
[null,null,{"$f":"VLOOKUP(B247,Dropdowns!$A$2:$B$49,2,FALSE)","v":{"$error":"#N/A"}},null,null,null,{"$f":"VLOOKUP(F247,Dropdowns!$D$2:$E$31,2,FALSE)","v":{"$error":"#N/A"}}]
[null,null,{"$f":"VLOOKUP(B248,Dropdowns!$A$2:$B$49,2,FALSE)","v":{"$error":"#N/A"}},null,null,null,{"$f":"VLOOKUP(F248,Dropdowns!$D$2:$E$31,2,FALSE)","v":{"$error":"#N/A"}}]
[null,null,{"$f":"VLOOKUP(B249,Dropdowns!$A$2:$B$49,2,FALSE)","v":{"$error":"#N/A"}},null,null,null,{"$f":"VLOOKUP(F249,Dropdowns!$D$2:$E$31,2,FALSE)","v":{"$error":"#N/A"}}]
[null,null,{"$f":"VLOOKUP(B250,Dropdowns!$A$2:$B$49,2,FALSE)","v":{"$error":"#N/A"}},null,null,null,{"$f":"VLOOKUP(F250,Dropdowns!$D$2:$E$31,2,FALSE)","v":{"$error":"#N/A"}}]
[null,null,{"$f":"VLOOKUP(B251,Dropdowns!$A$2:$B$49,2,FALSE)","v":{"$error":"#N/A"}},null,null,null,{"$f":"VLOOKUP(F251,Dropdowns!$D$2:$E$31,2,FALSE)","v":{"$error":"#N/A"}}]
[null,null,{"$f":"VLOOKUP(B252,Dropdowns!$A$2:$B$49,2,FALSE)","v":{"$error":"#N/A"}},null,null,null,{"$f":"VLOOKUP(F252,Dropdowns!$D$2:$E$31,2,FALSE)","v":{"$error":"#N/A"}}]
[null,null,{"$f":"VLOOKUP(B253,Dropdowns!$A$2:$B$49,2,FALSE)","v":{"$error":"#N/A"}},null,null,null,{"$f":"VLOOKUP(F253,Dropdowns!$D$2:$E$31,2,FALSE)","v":{"$error":"#N/A"}}]
[null,null,{"$f":"VLOOKUP(B254,Dropdowns!$A$2:$B$49,2,FALSE)","v":{"$error":"#N/A"}},null,null,null,{"$f":"VLOOKUP(F254,Dropdowns!$D$2:$E$31,2,FALSE)","v":{"$error":"#N/A"}}]
[null,null,{"$f":"VLOOKUP(B255,Dropdowns!$A$2:$B$49,2,FALSE)","v":{"$error":"#N/A"}},null,null,null,{"$f":"VLOOKUP(F255,Dropdowns!$D$2:$E$31,2,FALSE)","v":{"$error":"#N/A"}}]
[null,null,{"$f":"VLOOKUP(B256,Dropdowns!$A$2:$B$49,2,FALSE)","v":{"$error":"#N/A"}},null,null,null,{"$f":"VLOOKUP(F256,Dropdowns!$D$2:$E$31,2,FALSE)","v":{"$error":"#N/A"}}]
[null,null,{"$f":"VLOOKUP(B257,Dropdowns!$A$2:$B$49,2,FALSE)","v":{"$error":"#N/A"}},null,null,null,{"$f":"VLOOKUP(F257,Dropdowns!$D$2:$E$31,2,FALSE)","v":{"$error":"#N/A"}}]
[null,null,{"$f":"VLOOKUP(B258,Dropdowns!$A$2:$B$49,2,FALSE)","v":{"$error":"#N/A"}},null,null,null,{"$f":"VLOOKUP(F258,Dropdowns!$D$2:$E$31,2,FALSE)","v":{"$error":"#N/A"}}]
[null,null,{"$f":"VLOOKUP(B259,Dropdowns!$A$2:$B$49,2,FALSE)","v":{"$error":"#N/A"}},null,null,null,{"$f":"VLOOKUP(F259,Dropdowns!$D$2:$E$31,2,FALSE)","v":{"$error":"#N/A"}}]
[null,null,{"$f":"VLOOKUP(B260,Dropdowns!$A$2:$B$49,2,FALSE)","v":{"$error":"#N/A"}},null,null,null,{"$f":"VLOOKUP(F260,Dropdowns!$D$2:$E$31,2,FALSE)","v":{"$error":"#N/A"}}]
[null,null,{"$f":"VLOOKUP(B261,Dropdowns!$A$2:$B$49,2,FALSE)","v":{"$error":"#N/A"}},null,null,null,{"$f":"VLOOKUP(F261,Dropdowns!$D$2:$E$31,2,FALSE)","v":{"$error":"#N/A"}}]
[null,null,{"$f":"VLOOKUP(B262,Dropdowns!$A$2:$B$49,2,FALSE)","v":{"$error":"#N/A"}},null,null,null,{"$f":"VLOOKUP(F262,Dropdowns!$D$2:$E$31,2,FALSE)","v":{"$error":"#N/A"}}]
[null,null,{"$f":"VLOOKUP(B263,Dropdowns!$A$2:$B$49,2,FALSE)","v":{"$error":"#N/A"}},null,null,null,{"$f":"VLOOKUP(F263,Dropdowns!$D$2:$E$31,2,FALSE)","v":{"$error":"#N/A"}}]
[null,null,{"$f":"VLOOKUP(B264,Dropdowns!$A$2:$B$49,2,FALSE)","v":{"$error":"#N/A"}},null,null,null,{"$f":"VLOOKUP(F264,Dropdowns!$D$2:$E$31,2,FALSE)","v":{"$error":"#N/A"}}]
[null,null,{"$f":"VLOOKUP(B265,Dropdowns!$A$2:$B$49,2,FALSE)","v":{"$error":"#N/A"}},null,null,null,{"$f":"VLOOKUP(F265,Dropdowns!$D$2:$E$31,2,FALSE)","v":{"$error":"#N/A"}}]
[null,null,{"$f":"VLOOKUP(B266,Dropdowns!$A$2:$B$49,2,FALSE)","v":{"$error":"#N/A"}},null,null,null,{"$f":"VLOOKUP(F266,Dropdowns!$D$2:$E$31,2,FALSE)","v":{"$error":"#N/A"}}]
[null,null,{"$f":"VLOOKUP(B267,Dropdowns!$A$2:$B$49,2,FALSE)","v":{"$error":"#N/A"}},null,null,null,{"$f":"VLOOKUP(F267,Dropdowns!$D$2:$E$31,2,FALSE)","v":{"$error":"#N/A"}}]
[null,null,{"$f":"VLOOKUP(B268,Dropdowns!$A$2:$B$49,2,FALSE)","v":{"$error":"#N/A"}},null,null,null,{"$f":"VLOOKUP(F268,Dropdowns!$D$2:$E$31,2,FALSE)","v":{"$error":"#N/A"}}]
[null,null,{"$f":"VLOOKUP(B269,Dropdowns!$A$2:$B$49,2,FALSE)","v":{"$error":"#N/A"}},null,null,null,{"$f":"VLOOKUP(F269,Dropdowns!$D$2:$E$31,2,FALSE)","v":{"$error":"#N/A"}}]
[null,null,{"$f":"VLOOKUP(B270,Dropdowns!$A$2:$B$49,2,FALSE)","v":{"$error":"#N/A"}},null,null,null,{"$f":"VLOOKUP(F270,Dropdowns!$D$2:$E$31,2,FALSE)","v":{"$error":"#N/A"}}]
[null,null,{"$f":"VLOOKUP(B271,Dropdowns!$A$2:$B$49,2,FALSE)","v":{"$error":"#N/A"}},null,null,null,{"$f":"VLOOKUP(F271,Dropdowns!$D$2:$E$31,2,FALSE)","v":{"$error":"#N/A"}}]
[null,null,{"$f":"VLOOKUP(B272,Dropdowns!$A$2:$B$49,2,FALSE)","v":{"$error":"#N/A"}},null,null,null,{"$f":"VLOOKUP(F272,Dropdowns!$D$2:$E$31,2,FALSE)","v":{"$error":"#N/A"}}]
[null,null,{"$f":"VLOOKUP(B273,Dropdowns!$A$2:$B$49,2,FALSE)","v":{"$error":"#N/A"}},null,null,null,{"$f":"VLOOKUP(F273,Dropdowns!$D$2:$E$31,2,FALSE)","v":{"$error":"#N/A"}}]
[null,null,{"$f":"VLOOKUP(B274,Dropdowns!$A$2:$B$49,2,FALSE)","v":{"$error":"#N/A"}},null,null,null,{"$f":"VLOOKUP(F274,Dropdowns!$D$2:$E$31,2,FALSE)","v":{"$error":"#N/A"}}]
[null,null,{"$f":"VLOOKUP(B275,Dropdowns!$A$2:$B$49,2,FALSE)","v":{"$error":"#N/A"}},null,null,null,{"$f":"VLOOKUP(F275,Dropdowns!$D$2:$E$31,2,FALSE)","v":{"$error":"#N/A"}}]
[null,null,{"$f":"VLOOKUP(B276,Dropdowns!$A$2:$B$49,2,FALSE)","v":{"$error":"#N/A"}},null,null,null,{"$f":"VLOOKUP(F276,Dropdowns!$D$2:$E$31,2,FALSE)","v":{"$error":"#N/A"}}]
[null,null,{"$f":"VLOOKUP(B277,Dropdowns!$A$2:$B$49,2,FALSE)","v":{"$error":"#N/A"}},null,null,null,{"$f":"VLOOKUP(F277,Dropdowns!$D$2:$E$31,2,FALSE)","v":{"$error":"#N/A"}}]
[null,null,{"$f":"VLOOKUP(B278,Dropdowns!$A$2:$B$49,2,FALSE)","v":{"$error":"#N/A"}},null,null,null,{"$f":"VLOOKUP(F278,Dropdowns!$D$2:$E$31,2,FALSE)","v":{"$error":"#N/A"}}]
[null,null,{"$f":"VLOOKUP(B279,Dropdowns!$A$2:$B$49,2,FALSE)","v":{"$error":"#N/A"}},null,null,null,{"$f":"VLOOKUP(F279,Dropdowns!$D$2:$E$31,2,FALSE)","v":{"$error":"#N/A"}}]
[null,null,{"$f":"VLOOKUP(B280,Dropdowns!$A$2:$B$49,2,FALSE)","v":{"$error":"#N/A"}},null,null,null,{"$f":"VLOOKUP(F280,Dropdowns!$D$2:$E$31,2,FALSE)","v":{"$error":"#N/A"}}]
[null,null,{"$f":"VLOOKUP(B281,Dropdowns!$A$2:$B$49,2,FALSE)","v":{"$error":"#N/A"}},null,null,null,{"$f":"VLOOKUP(F281,Dropdowns!$D$2:$E$31,2,FALSE)","v":{"$error":"#N/A"}}]
[null,null,{"$f":"VLOOKUP(B282,Dropdowns!$A$2:$B$49,2,FALSE)","v":{"$error":"#N/A"}},null,null,null,{"$f":"VLOOKUP(F282,Dropdowns!$D$2:$E$31,2,FALSE)","v":{"$error":"#N/A"}}]
[null,null,{"$f":"VLOOKUP(B283,Dropdowns!$A$2:$B$49,2,FALSE)","v":{"$error":"#N/A"}},null,null,null,{"$f":"VLOOKUP(F283,Dropdowns!$D$2:$E$31,2,FALSE)","v":{"$error":"#N/A"}}]
[null,null,{"$f":"VLOOKUP(B284,Dropdowns!$A$2:$B$49,2,FALSE)","v":{"$error":"#N/A"}},null,null,null,{"$f":"VLOOKUP(F284,Dropdowns!$D$2:$E$31,2,FALSE)","v":{"$error":"#N/A"}}]
[null,null,{"$f":"VLOOKUP(B285,Dropdowns!$A$2:$B$49,2,FALSE)","v":{"$error":"#N/A"}},null,null,null,{"$f":"VLOOKUP(F285,Dropdowns!$D$2:$E$31,2,FALSE)","v":{"$error":"#N/A"}}]
[null,null,{"$f":"VLOOKUP(B286,Dropdowns!$A$2:$B$49,2,FALSE)","v":{"$error":"#N/A"}},null,null,null,{"$f":"VLOOKUP(F286,Dropdowns!$D$2:$E$31,2,FALSE)","v":{"$error":"#N/A"}}]
[null,null,{"$f":"VLOOKUP(B287,Dropdowns!$A$2:$B$49,2,FALSE)","v":{"$error":"#N/A"}},null,null,null,{"$f":"VLOOKUP(F287,Dropdowns!$D$2:$E$31,2,FALSE)","v":{"$error":"#N/A"}}]
[null,null,{"$f":"VLOOKUP(B288,Dropdowns!$A$2:$B$49,2,FALSE)","v":{"$error":"#N/A"}},null,null,null,{"$f":"VLOOKUP(F288,Dropdowns!$D$2:$E$31,2,FALSE)","v":{"$error":"#N/A"}}]
[null,null,{"$f":"VLOOKUP(B289,Dropdowns!$A$2:$B$49,2,FALSE)","v":{"$error":"#N/A"}},null,null,null,{"$f":"VLOOKUP(F289,Dropdowns!$D$2:$E$31,2,FALSE)","v":{"$error":"#N/A"}}]
[null,null,{"$f":"VLOOKUP(B290,Dropdowns!$A$2:$B$49,2,FALSE)","v":{"$error":"#N/A"}},null,null,null,{"$f":"VLOOKUP(F290,Dropdowns!$D$2:$E$31,2,FALSE)","v":{"$error":"#N/A"}}]
[null,null,{"$f":"VLOOKUP(B291,Dropdowns!$A$2:$B$49,2,FALSE)","v":{"$error":"#N/A"}},null,null,null,{"$f":"VLOOKUP(F291,Dropdowns!$D$2:$E$31,2,FALSE)","v":{"$error":"#N/A"}}]
[null,null,{"$f":"VLOOKUP(B292,Dropdowns!$A$2:$B$49,2,FALSE)","v":{"$error":"#N/A"}},null,null,null,{"$f":"VLOOKUP(F292,Dropdowns!$D$2:$E$31,2,FALSE)","v":{"$error":"#N/A"}}]
[null,null,{"$f":"VLOOKUP(B293,Dropdowns!$A$2:$B$49,2,FALSE)","v":{"$error":"#N/A"}},null,null,null,{"$f":"VLOOKUP(F293,Dropdowns!$D$2:$E$31,2,FALSE)","v":{"$error":"#N/A"}}]
[null,null,{"$f":"VLOOKUP(B294,Dropdowns!$A$2:$B$49,2,FALSE)","v":{"$error":"#N/A"}},null,null,null,{"$f":"VLOOKUP(F294,Dropdowns!$D$2:$E$31,2,FALSE)","v":{"$error":"#N/A"}}]
[null,null,{"$f":"VLOOKUP(B295,Dropdowns!$A$2:$B$49,2,FALSE)","v":{"$error":"#N/A"}},null,null,null,{"$f":"VLOOKUP(F295,Dropdowns!$D$2:$E$31,2,FALSE)","v":{"$error":"#N/A"}}]
[null,null,{"$f":"VLOOKUP(B296,Dropdowns!$A$2:$B$49,2,FALSE)","v":{"$error":"#N/A"}},null,null,null,{"$f":"VLOOKUP(F296,Dropdowns!$D$2:$E$31,2,FALSE)","v":{"$error":"#N/A"}}]
[null,null,{"$f":"VLOOKUP(B297,Dropdowns!$A$2:$B$49,2,FALSE)","v":{"$error":"#N/A"}},null,null,null,{"$f":"VLOOKUP(F297,Dropdowns!$D$2:$E$31,2,FALSE)","v":{"$error":"#N/A"}}]
[null,null,{"$f":"VLOOKUP(B298,Dropdowns!$A$2:$B$49,2,FALSE)","v":{"$error":"#N/A"}},null,null,null,{"$f":"VLOOKUP(F298,Dropdowns!$D$2:$E$31,2,FALSE)","v":{"$error":"#N/A"}}]
[null,null,{"$f":"VLOOKUP(B299,Dropdowns!$A$2:$B$49,2,FALSE)","v":{"$error":"#N/A"}},null,null,null,{"$f":"VLOOKUP(F299,Dropdowns!$D$2:$E$31,2,FALSE)","v":{"$error":"#N/A"}}]
[null,null,{"$f":"VLOOKUP(B300,Dropdowns!$A$2:$B$49,2,FALSE)","v":{"$error":"#N/A"}},null,null,null,{"$f":"VLOOKUP(F300,Dropdowns!$D$2:$E$31,2,FALSE)","v":{"$error":"#N/A"}}]
[null,null,{"$f":"VLOOKUP(B301,Dropdowns!$A$2:$B$49,2,FALSE)","v":{"$error":"#N/A"}},null,null,null,{"$f":"VLOOKUP(F301,Dropdowns!$D$2:$E$31,2,FALSE)","v":{"$error":"#N/A"}}]
[null,null,{"$f":"VLOOKUP(B302,Dropdowns!$A$2:$B$49,2,FALSE)","v":{"$error":"#N/A"}},null,null,null,{"$f":"VLOOKUP(F302,Dropdowns!$D$2:$E$31,2,FALSE)","v":{"$error":"#N/A"}}]
[null,null,{"$f":"VLOOKUP(B303,Dropdowns!$A$2:$B$49,2,FALSE)","v":{"$error":"#N/A"}},null,null,null,{"$f":"VLOOKUP(F303,Dropdowns!$D$2:$E$31,2,FALSE)","v":{"$error":"#N/A"}}]
[null,null,{"$f":"VLOOKUP(B304,Dropdowns!$A$2:$B$49,2,FALSE)","v":{"$error":"#N/A"}},null,null,null,{"$f":"VLOOKUP(F304,Dropdowns!$D$2:$E$31,2,FALSE)","v":{"$error":"#N/A"}}]
[null,null,{"$f":"VLOOKUP(B305,Dropdowns!$A$2:$B$49,2,FALSE)","v":{"$error":"#N/A"}},null,null,null,{"$f":"VLOOKUP(F305,Dropdowns!$D$2:$E$31,2,FALSE)","v":{"$error":"#N/A"}}]
[null,null,{"$f":"VLOOKUP(B306,Dropdowns!$A$2:$B$49,2,FALSE)","v":{"$error":"#N/A"}},null,null,null,{"$f":"VLOOKUP(F306,Dropdowns!$D$2:$E$31,2,FALSE)","v":{"$error":"#N/A"}}]
[null,null,{"$f":"VLOOKUP(B307,Dropdowns!$A$2:$B$49,2,FALSE)","v":{"$error":"#N/A"}},null,null,null,{"$f":"VLOOKUP(F307,Dropdowns!$D$2:$E$31,2,FALSE)","v":{"$error":"#N/A"}}]
[null,null,{"$f":"VLOOKUP(B308,Dropdowns!$A$2:$B$49,2,FALSE)","v":{"$error":"#N/A"}},null,null,null,{"$f":"VLOOKUP(F308,Dropdowns!$D$2:$E$31,2,FALSE)","v":{"$error":"#N/A"}}]
[null,null,{"$f":"VLOOKUP(B309,Dropdowns!$A$2:$B$49,2,FALSE)","v":{"$error":"#N/A"}},null,null,null,{"$f":"VLOOKUP(F309,Dropdowns!$D$2:$E$31,2,FALSE)","v":{"$error":"#N/A"}}]
[null,null,{"$f":"VLOOKUP(B310,Dropdowns!$A$2:$B$49,2,FALSE)","v":{"$error":"#N/A"}},null,null,null,{"$f":"VLOOKUP(F310,Dropdowns!$D$2:$E$31,2,FALSE)","v":{"$error":"#N/A"}}]
[null,null,{"$f":"VLOOKUP(B311,Dropdowns!$A$2:$B$49,2,FALSE)","v":{"$error":"#N/A"}},null,null,null,{"$f":"VLOOKUP(F311,Dropdowns!$D$2:$E$31,2,FALSE)","v":{"$error":"#N/A"}}]
[null,null,{"$f":"VLOOKUP(B312,Dropdowns!$A$2:$B$49,2,FALSE)","v":{"$error":"#N/A"}},null,null,null,{"$f":"VLOOKUP(F312,Dropdowns!$D$2:$E$31,2,FALSE)","v":{"$error":"#N/A"}}]
[null,null,{"$f":"VLOOKUP(B313,Dropdowns!$A$2:$B$49,2,FALSE)","v":{"$error":"#N/A"}},null,null,null,{"$f":"VLOOKUP(F313,Dropdowns!$D$2:$E$31,2,FALSE)","v":{"$error":"#N/A"}}]
[null,null,{"$f":"VLOOKUP(B314,Dropdowns!$A$2:$B$49,2,FALSE)","v":{"$error":"#N/A"}},null,null,null,{"$f":"VLOOKUP(F314,Dropdowns!$D$2:$E$31,2,FALSE)","v":{"$error":"#N/A"}}]
[null,null,{"$f":"VLOOKUP(B315,Dropdowns!$A$2:$B$49,2,FALSE)","v":{"$error":"#N/A"}},null,null,null,{"$f":"VLOOKUP(F315,Dropdowns!$D$2:$E$31,2,FALSE)","v":{"$error":"#N/A"}}]
[null,null,{"$f":"VLOOKUP(B316,Dropdowns!$A$2:$B$49,2,FALSE)","v":{"$error":"#N/A"}},null,null,null,{"$f":"VLOOKUP(F316,Dropdowns!$D$2:$E$31,2,FALSE)","v":{"$error":"#N/A"}}]
[null,null,{"$f":"VLOOKUP(B317,Dropdowns!$A$2:$B$49,2,FALSE)","v":{"$error":"#N/A"}},null,null,null,{"$f":"VLOOKUP(F317,Dropdowns!$D$2:$E$31,2,FALSE)","v":{"$error":"#N/A"}}]
[null,null,{"$f":"VLOOKUP(B318,Dropdowns!$A$2:$B$49,2,FALSE)","v":{"$error":"#N/A"}},null,null,null,{"$f":"VLOOKUP(F318,Dropdowns!$D$2:$E$31,2,FALSE)","v":{"$error":"#N/A"}}]
[null,null,{"$f":"VLOOKUP(B319,Dropdowns!$A$2:$B$49,2,FALSE)","v":{"$error":"#N/A"}},null,null,null,{"$f":"VLOOKUP(F319,Dropdowns!$D$2:$E$31,2,FALSE)","v":{"$error":"#N/A"}}]
[null,null,{"$f":"VLOOKUP(B320,Dropdowns!$A$2:$B$49,2,FALSE)","v":{"$error":"#N/A"}},null,null,null,{"$f":"VLOOKUP(F320,Dropdowns!$D$2:$E$31,2,FALSE)","v":{"$error":"#N/A"}}]
[null,null,{"$f":"VLOOKUP(B321,Dropdowns!$A$2:$B$49,2,FALSE)","v":{"$error":"#N/A"}},null,null,null,{"$f":"VLOOKUP(F321,Dropdowns!$D$2:$E$31,2,FALSE)","v":{"$error":"#N/A"}}]
[null,null,{"$f":"VLOOKUP(B322,Dropdowns!$A$2:$B$49,2,FALSE)","v":{"$error":"#N/A"}},null,null,null,{"$f":"VLOOKUP(F322,Dropdowns!$D$2:$E$31,2,FALSE)","v":{"$error":"#N/A"}}]
[null,null,{"$f":"VLOOKUP(B323,Dropdowns!$A$2:$B$49,2,FALSE)","v":{"$error":"#N/A"}},null,null,null,{"$f":"VLOOKUP(F323,Dropdowns!$D$2:$E$31,2,FALSE)","v":{"$error":"#N/A"}}]
[null,null,{"$f":"VLOOKUP(B324,Dropdowns!$A$2:$B$49,2,FALSE)","v":{"$error":"#N/A"}},null,null,null,{"$f":"VLOOKUP(F324,Dropdowns!$D$2:$E$31,2,FALSE)","v":{"$error":"#N/A"}}]
[null,null,{"$f":"VLOOKUP(B325,Dropdowns!$A$2:$B$49,2,FALSE)","v":{"$error":"#N/A"}},null,null,null,{"$f":"VLOOKUP(F325,Dropdowns!$D$2:$E$31,2,FALSE)","v":{"$error":"#N/A"}}]
[null,null,{"$f":"VLOOKUP(B326,Dropdowns!$A$2:$B$49,2,FALSE)","v":{"$error":"#N/A"}},null,null,null,{"$f":"VLOOKUP(F326,Dropdowns!$D$2:$E$31,2,FALSE)","v":{"$error":"#N/A"}}]
[null,null,{"$f":"VLOOKUP(B327,Dropdowns!$A$2:$B$49,2,FALSE)","v":{"$error":"#N/A"}},null,null,null,{"$f":"VLOOKUP(F327,Dropdowns!$D$2:$E$31,2,FALSE)","v":{"$error":"#N/A"}}]
[null,null,{"$f":"VLOOKUP(B328,Dropdowns!$A$2:$B$49,2,FALSE)","v":{"$error":"#N/A"}},null,null,null,{"$f":"VLOOKUP(F328,Dropdowns!$D$2:$E$31,2,FALSE)","v":{"$error":"#N/A"}}]
[null,null,{"$f":"VLOOKUP(B329,Dropdowns!$A$2:$B$49,2,FALSE)","v":{"$error":"#N/A"}},null,null,null,{"$f":"VLOOKUP(F329,Dropdowns!$D$2:$E$31,2,FALSE)","v":{"$error":"#N/A"}}]
[null,null,{"$f":"VLOOKUP(B330,Dropdowns!$A$2:$B$49,2,FALSE)","v":{"$error":"#N/A"}},null,null,null,{"$f":"VLOOKUP(F330,Dropdowns!$D$2:$E$31,2,FALSE)","v":{"$error":"#N/A"}}]
[null,null,{"$f":"VLOOKUP(B331,Dropdowns!$A$2:$B$49,2,FALSE)","v":{"$error":"#N/A"}},null,null,null,{"$f":"VLOOKUP(F331,Dropdowns!$D$2:$E$31,2,FALSE)","v":{"$error":"#N/A"}}]
[null,null,{"$f":"VLOOKUP(B332,Dropdowns!$A$2:$B$49,2,FALSE)","v":{"$error":"#N/A"}},null,null,null,{"$f":"VLOOKUP(F332,Dropdowns!$D$2:$E$31,2,FALSE)","v":{"$error":"#N/A"}}]
[null,null,{"$f":"VLOOKUP(B333,Dropdowns!$A$2:$B$49,2,FALSE)","v":{"$error":"#N/A"}},null,null,null,{"$f":"VLOOKUP(F333,Dropdowns!$D$2:$E$31,2,FALSE)","v":{"$error":"#N/A"}}]
[null,null,{"$f":"VLOOKUP(B334,Dropdowns!$A$2:$B$49,2,FALSE)","v":{"$error":"#N/A"}},null,null,null,{"$f":"VLOOKUP(F334,Dropdowns!$D$2:$E$31,2,FALSE)","v":{"$error":"#N/A"}}]
[null,null,{"$f":"VLOOKUP(B335,Dropdowns!$A$2:$B$49,2,FALSE)","v":{"$error":"#N/A"}},null,null,null,{"$f":"VLOOKUP(F335,Dropdowns!$D$2:$E$31,2,FALSE)","v":{"$error":"#N/A"}}]
[null,null,{"$f":"VLOOKUP(B336,Dropdowns!$A$2:$B$49,2,FALSE)","v":{"$error":"#N/A"}},null,null,null,{"$f":"VLOOKUP(F336,Dropdowns!$D$2:$E$31,2,FALSE)","v":{"$error":"#N/A"}}]
[null,null,{"$f":"VLOOKUP(B337,Dropdowns!$A$2:$B$49,2,FALSE)","v":{"$error":"#N/A"}},null,null,null,{"$f":"VLOOKUP(F337,Dropdowns!$D$2:$E$31,2,FALSE)","v":{"$error":"#N/A"}}]
[null,null,{"$f":"VLOOKUP(B338,Dropdowns!$A$2:$B$49,2,FALSE)","v":{"$error":"#N/A"}},null,null,null,{"$f":"VLOOKUP(F338,Dropdowns!$D$2:$E$31,2,FALSE)","v":{"$error":"#N/A"}}]
[null,null,{"$f":"VLOOKUP(B339,Dropdowns!$A$2:$B$49,2,FALSE)","v":{"$error":"#N/A"}},null,null,null,{"$f":"VLOOKUP(F339,Dropdowns!$D$2:$E$31,2,FALSE)","v":{"$error":"#N/A"}}]
[null,null,{"$f":"VLOOKUP(B340,Dropdowns!$A$2:$B$49,2,FALSE)","v":{"$error":"#N/A"}},null,null,null,{"$f":"VLOOKUP(F340,Dropdowns!$D$2:$E$31,2,FALSE)","v":{"$error":"#N/A"}}]
[null,null,{"$f":"VLOOKUP(B341,Dropdowns!$A$2:$B$49,2,FALSE)","v":{"$error":"#N/A"}},null,null,null,{"$f":"VLOOKUP(F341,Dropdowns!$D$2:$E$31,2,FALSE)","v":{"$error":"#N/A"}}]
[null,null,{"$f":"VLOOKUP(B342,Dropdowns!$A$2:$B$49,2,FALSE)","v":{"$error":"#N/A"}},null,null,null,{"$f":"VLOOKUP(F342,Dropdowns!$D$2:$E$31,2,FALSE)","v":{"$error":"#N/A"}}]
[null,null,{"$f":"VLOOKUP(B343,Dropdowns!$A$2:$B$49,2,FALSE)","v":{"$error":"#N/A"}},null,null,null,{"$f":"VLOOKUP(F343,Dropdowns!$D$2:$E$31,2,FALSE)","v":{"$error":"#N/A"}}]
[null,null,{"$f":"VLOOKUP(B344,Dropdowns!$A$2:$B$49,2,FALSE)","v":{"$error":"#N/A"}},null,null,null,{"$f":"VLOOKUP(F344,Dropdowns!$D$2:$E$31,2,FALSE)","v":{"$error":"#N/A"}}]
[null,null,{"$f":"VLOOKUP(B345,Dropdowns!$A$2:$B$49,2,FALSE)","v":{"$error":"#N/A"}},null,null,null,{"$f":"VLOOKUP(F345,Dropdowns!$D$2:$E$31,2,FALSE)","v":{"$error":"#N/A"}}]
[null,null,{"$f":"VLOOKUP(B346,Dropdowns!$A$2:$B$49,2,FALSE)","v":{"$error":"#N/A"}},null,null,null,{"$f":"VLOOKUP(F346,Dropdowns!$D$2:$E$31,2,FALSE)","v":{"$error":"#N/A"}}]
[null,null,{"$f":"VLOOKUP(B347,Dropdowns!$A$2:$B$49,2,FALSE)","v":{"$error":"#N/A"}},null,null,null,{"$f":"VLOOKUP(F347,Dropdowns!$D$2:$E$31,2,FALSE)","v":{"$error":"#N/A"}}]
[null,null,{"$f":"VLOOKUP(B348,Dropdowns!$A$2:$B$49,2,FALSE)","v":{"$error":"#N/A"}},null,null,null,{"$f":"VLOOKUP(F348,Dropdowns!$D$2:$E$31,2,FALSE)","v":{"$error":"#N/A"}}]
[null,null,{"$f":"VLOOKUP(B349,Dropdowns!$A$2:$B$49,2,FALSE)","v":{"$error":"#N/A"}},null,null,null,{"$f":"VLOOKUP(F349,Dropdowns!$D$2:$E$31,2,FALSE)","v":{"$error":"#N/A"}}]
[null,null,{"$f":"VLOOKUP(B350,Dropdowns!$A$2:$B$49,2,FALSE)","v":{"$error":"#N/A"}},null,null,null,{"$f":"VLOOKUP(F350,Dropdowns!$D$2:$E$31,2,FALSE)","v":{"$error":"#N/A"}}]
[null,null,{"$f":"VLOOKUP(B351,Dropdowns!$A$2:$B$49,2,FALSE)","v":{"$error":"#N/A"}},null,null,null,{"$f":"VLOOKUP(F351,Dropdowns!$D$2:$E$31,2,FALSE)","v":{"$error":"#N/A"}}]
[null,null,{"$f":"VLOOKUP(B352,Dropdowns!$A$2:$B$49,2,FALSE)","v":{"$error":"#N/A"}},null,null,null,{"$f":"VLOOKUP(F352,Dropdowns!$D$2:$E$31,2,FALSE)","v":{"$error":"#N/A"}}]
[null,null,{"$f":"VLOOKUP(B353,Dropdowns!$A$2:$B$49,2,FALSE)","v":{"$error":"#N/A"}},null,null,null,{"$f":"VLOOKUP(F353,Dropdowns!$D$2:$E$31,2,FALSE)","v":{"$error":"#N/A"}}]
[null,null,{"$f":"VLOOKUP(B354,Dropdowns!$A$2:$B$49,2,FALSE)","v":{"$error":"#N/A"}},null,null,null,{"$f":"VLOOKUP(F354,Dropdowns!$D$2:$E$31,2,FALSE)","v":{"$error":"#N/A"}}]
[null,null,{"$f":"VLOOKUP(B355,Dropdowns!$A$2:$B$49,2,FALSE)","v":{"$error":"#N/A"}},null,null,null,{"$f":"VLOOKUP(F355,Dropdowns!$D$2:$E$31,2,FALSE)","v":{"$error":"#N/A"}}]
[null,null,{"$f":"VLOOKUP(B356,Dropdowns!$A$2:$B$49,2,FALSE)","v":{"$error":"#N/A"}},null,null,null,{"$f":"VLOOKUP(F356,Dropdowns!$D$2:$E$31,2,FALSE)","v":{"$error":"#N/A"}}]
[null,null,{"$f":"VLOOKUP(B357,Dropdowns!$A$2:$B$49,2,FALSE)","v":{"$error":"#N/A"}},null,null,null,{"$f":"VLOOKUP(F357,Dropdowns!$D$2:$E$31,2,FALSE)","v":{"$error":"#N/A"}}]
[null,null,{"$f":"VLOOKUP(B358,Dropdowns!$A$2:$B$49,2,FALSE)","v":{"$error":"#N/A"}},null,null,null,{"$f":"VLOOKUP(F358,Dropdowns!$D$2:$E$31,2,FALSE)","v":{"$error":"#N/A"}}]
[null,null,{"$f":"VLOOKUP(B359,Dropdowns!$A$2:$B$49,2,FALSE)","v":{"$error":"#N/A"}},null,null,null,{"$f":"VLOOKUP(F359,Dropdowns!$D$2:$E$31,2,FALSE)","v":{"$error":"#N/A"}}]
[null,null,{"$f":"VLOOKUP(B360,Dropdowns!$A$2:$B$49,2,FALSE)","v":{"$error":"#N/A"}},null,null,null,{"$f":"VLOOKUP(F360,Dropdowns!$D$2:$E$31,2,FALSE)","v":{"$error":"#N/A"}}]
[null,null,{"$f":"VLOOKUP(B361,Dropdowns!$A$2:$B$49,2,FALSE)","v":{"$error":"#N/A"}},null,null,null,{"$f":"VLOOKUP(F361,Dropdowns!$D$2:$E$31,2,FALSE)","v":{"$error":"#N/A"}}]
[null,null,{"$f":"VLOOKUP(B362,Dropdowns!$A$2:$B$49,2,FALSE)","v":{"$error":"#N/A"}},null,null,null,{"$f":"VLOOKUP(F362,Dropdowns!$D$2:$E$31,2,FALSE)","v":{"$error":"#N/A"}}]
[null,null,{"$f":"VLOOKUP(B363,Dropdowns!$A$2:$B$49,2,FALSE)","v":{"$error":"#N/A"}},null,null,null,{"$f":"VLOOKUP(F363,Dropdowns!$D$2:$E$31,2,FALSE)","v":{"$error":"#N/A"}}]
[null,null,{"$f":"VLOOKUP(B364,Dropdowns!$A$2:$B$49,2,FALSE)","v":{"$error":"#N/A"}},null,null,null,{"$f":"VLOOKUP(F364,Dropdowns!$D$2:$E$31,2,FALSE)","v":{"$error":"#N/A"}}]
[null,null,{"$f":"VLOOKUP(B365,Dropdowns!$A$2:$B$49,2,FALSE)","v":{"$error":"#N/A"}},null,null,null,{"$f":"VLOOKUP(F365,Dropdowns!$D$2:$E$31,2,FALSE)","v":{"$error":"#N/A"}}]
[null,null,{"$f":"VLOOKUP(B366,Dropdowns!$A$2:$B$49,2,FALSE)","v":{"$error":"#N/A"}},null,null,null,{"$f":"VLOOKUP(F366,Dropdowns!$D$2:$E$31,2,FALSE)","v":{"$error":"#N/A"}}]
[null,null,{"$f":"VLOOKUP(B367,Dropdowns!$A$2:$B$49,2,FALSE)","v":{"$error":"#N/A"}},null,null,null,{"$f":"VLOOKUP(F367,Dropdowns!$D$2:$E$31,2,FALSE)","v":{"$error":"#N/A"}}]
[null,null,{"$f":"VLOOKUP(B368,Dropdowns!$A$2:$B$49,2,FALSE)","v":{"$error":"#N/A"}},null,null,null,{"$f":"VLOOKUP(F368,Dropdowns!$D$2:$E$31,2,FALSE)","v":{"$error":"#N/A"}}]
[null,null,{"$f":"VLOOKUP(B369,Dropdowns!$A$2:$B$49,2,FALSE)","v":{"$error":"#N/A"}},null,null,null,{"$f":"VLOOKUP(F369,Dropdowns!$D$2:$E$31,2,FALSE)","v":{"$error":"#N/A"}}]
[null,null,{"$f":"VLOOKUP(B370,Dropdowns!$A$2:$B$49,2,FALSE)","v":{"$error":"#N/A"}},null,null,null,{"$f":"VLOOKUP(F370,Dropdowns!$D$2:$E$31,2,FALSE)","v":{"$error":"#N/A"}}]
[null,null,{"$f":"VLOOKUP(B371,Dropdowns!$A$2:$B$49,2,FALSE)","v":{"$error":"#N/A"}},null,null,null,{"$f":"VLOOKUP(F371,Dropdowns!$D$2:$E$31,2,FALSE)","v":{"$error":"#N/A"}}]
[null,null,{"$f":"VLOOKUP(B372,Dropdowns!$A$2:$B$49,2,FALSE)","v":{"$error":"#N/A"}},null,null,null,{"$f":"VLOOKUP(F372,Dropdowns!$D$2:$E$31,2,FALSE)","v":{"$error":"#N/A"}}]
[null,null,{"$f":"VLOOKUP(B373,Dropdowns!$A$2:$B$49,2,FALSE)","v":{"$error":"#N/A"}},null,null,null,{"$f":"VLOOKUP(F373,Dropdowns!$D$2:$E$31,2,FALSE)","v":{"$error":"#N/A"}}]
[null,null,{"$f":"VLOOKUP(B374,Dropdowns!$A$2:$B$49,2,FALSE)","v":{"$error":"#N/A"}},null,null,null,{"$f":"VLOOKUP(F374,Dropdowns!$D$2:$E$31,2,FALSE)","v":{"$error":"#N/A"}}]
[null,null,{"$f":"VLOOKUP(B375,Dropdowns!$A$2:$B$49,2,FALSE)","v":{"$error":"#N/A"}},null,null,null,{"$f":"VLOOKUP(F375,Dropdowns!$D$2:$E$31,2,FALSE)","v":{"$error":"#N/A"}}]
[null,null,{"$f":"VLOOKUP(B376,Dropdowns!$A$2:$B$49,2,FALSE)","v":{"$error":"#N/A"}},null,null,null,{"$f":"VLOOKUP(F376,Dropdowns!$D$2:$E$31,2,FALSE)","v":{"$error":"#N/A"}}]
[null,null,{"$f":"VLOOKUP(B377,Dropdowns!$A$2:$B$49,2,FALSE)","v":{"$error":"#N/A"}},null,null,null,{"$f":"VLOOKUP(F377,Dropdowns!$D$2:$E$31,2,FALSE)","v":{"$error":"#N/A"}}]
[null,null,{"$f":"VLOOKUP(B378,Dropdowns!$A$2:$B$49,2,FALSE)","v":{"$error":"#N/A"}},null,null,null,{"$f":"VLOOKUP(F378,Dropdowns!$D$2:$E$31,2,FALSE)","v":{"$error":"#N/A"}}]
[null,null,{"$f":"VLOOKUP(B379,Dropdowns!$A$2:$B$49,2,FALSE)","v":{"$error":"#N/A"}},null,null,null,{"$f":"VLOOKUP(F379,Dropdowns!$D$2:$E$31,2,FALSE)","v":{"$error":"#N/A"}}]
[null,null,{"$f":"VLOOKUP(B380,Dropdowns!$A$2:$B$49,2,FALSE)","v":{"$error":"#N/A"}},null,null,null,{"$f":"VLOOKUP(F380,Dropdowns!$D$2:$E$31,2,FALSE)","v":{"$error":"#N/A"}}]
[null,null,{"$f":"VLOOKUP(B381,Dropdowns!$A$2:$B$49,2,FALSE)","v":{"$error":"#N/A"}},null,null,null,{"$f":"VLOOKUP(F381,Dropdowns!$D$2:$E$31,2,FALSE)","v":{"$error":"#N/A"}}]
[null,null,{"$f":"VLOOKUP(B382,Dropdowns!$A$2:$B$49,2,FALSE)","v":{"$error":"#N/A"}},null,null,null,{"$f":"VLOOKUP(F382,Dropdowns!$D$2:$E$31,2,FALSE)","v":{"$error":"#N/A"}}]
[null,null,{"$f":"VLOOKUP(B383,Dropdowns!$A$2:$B$49,2,FALSE)","v":{"$error":"#N/A"}},null,null,null,{"$f":"VLOOKUP(F383,Dropdowns!$D$2:$E$31,2,FALSE)","v":{"$error":"#N/A"}}]
[null,null,{"$f":"VLOOKUP(B384,Dropdowns!$A$2:$B$49,2,FALSE)","v":{"$error":"#N/A"}},null,null,null,{"$f":"VLOOKUP(F384,Dropdowns!$D$2:$E$31,2,FALSE)","v":{"$error":"#N/A"}}]
[null,null,{"$f":"VLOOKUP(B385,Dropdowns!$A$2:$B$49,2,FALSE)","v":{"$error":"#N/A"}},null,null,null,{"$f":"VLOOKUP(F385,Dropdowns!$D$2:$E$31,2,FALSE)","v":{"$error":"#N/A"}}]
[null,null,{"$f":"VLOOKUP(B386,Dropdowns!$A$2:$B$49,2,FALSE)","v":{"$error":"#N/A"}},null,null,null,{"$f":"VLOOKUP(F386,Dropdowns!$D$2:$E$31,2,FALSE)","v":{"$error":"#N/A"}}]
[null,null,{"$f":"VLOOKUP(B387,Dropdowns!$A$2:$B$49,2,FALSE)","v":{"$error":"#N/A"}},null,null,null,{"$f":"VLOOKUP(F387,Dropdowns!$D$2:$E$31,2,FALSE)","v":{"$error":"#N/A"}}]
[null,null,{"$f":"VLOOKUP(B388,Dropdowns!$A$2:$B$49,2,FALSE)","v":{"$error":"#N/A"}},null,null,null,{"$f":"VLOOKUP(F388,Dropdowns!$D$2:$E$31,2,FALSE)","v":{"$error":"#N/A"}}]
[null,null,{"$f":"VLOOKUP(B389,Dropdowns!$A$2:$B$49,2,FALSE)","v":{"$error":"#N/A"}},null,null,null,{"$f":"VLOOKUP(F389,Dropdowns!$D$2:$E$31,2,FALSE)","v":{"$error":"#N/A"}}]
[null,null,{"$f":"VLOOKUP(B390,Dropdowns!$A$2:$B$49,2,FALSE)","v":{"$error":"#N/A"}},null,null,null,{"$f":"VLOOKUP(F390,Dropdowns!$D$2:$E$31,2,FALSE)","v":{"$error":"#N/A"}}]
[null,null,{"$f":"VLOOKUP(B391,Dropdowns!$A$2:$B$49,2,FALSE)","v":{"$error":"#N/A"}},null,null,null,{"$f":"VLOOKUP(F391,Dropdowns!$D$2:$E$31,2,FALSE)","v":{"$error":"#N/A"}}]
[null,null,{"$f":"VLOOKUP(B392,Dropdowns!$A$2:$B$49,2,FALSE)","v":{"$error":"#N/A"}},null,null,null,{"$f":"VLOOKUP(F392,Dropdowns!$D$2:$E$31,2,FALSE)","v":{"$error":"#N/A"}}]
[null,null,{"$f":"VLOOKUP(B393,Dropdowns!$A$2:$B$49,2,FALSE)","v":{"$error":"#N/A"}},null,null,null,{"$f":"VLOOKUP(F393,Dropdowns!$D$2:$E$31,2,FALSE)","v":{"$error":"#N/A"}}]
[null,null,{"$f":"VLOOKUP(B394,Dropdowns!$A$2:$B$49,2,FALSE)","v":{"$error":"#N/A"}},null,null,null,{"$f":"VLOOKUP(F394,Dropdowns!$D$2:$E$31,2,FALSE)","v":{"$error":"#N/A"}}]
[null,null,{"$f":"VLOOKUP(B395,Dropdowns!$A$2:$B$49,2,FALSE)","v":{"$error":"#N/A"}},null,null,null,{"$f":"VLOOKUP(F395,Dropdowns!$D$2:$E$31,2,FALSE)","v":{"$error":"#N/A"}}]
[null,null,{"$f":"VLOOKUP(B396,Dropdowns!$A$2:$B$49,2,FALSE)","v":{"$error":"#N/A"}},null,null,null,{"$f":"VLOOKUP(F396,Dropdowns!$D$2:$E$31,2,FALSE)","v":{"$error":"#N/A"}}]
[null,null,{"$f":"VLOOKUP(B397,Dropdowns!$A$2:$B$49,2,FALSE)","v":{"$error":"#N/A"}},null,null,null,{"$f":"VLOOKUP(F397,Dropdowns!$D$2:$E$31,2,FALSE)","v":{"$error":"#N/A"}}]
[null,null,{"$f":"VLOOKUP(B398,Dropdowns!$A$2:$B$49,2,FALSE)","v":{"$error":"#N/A"}},null,null,null,{"$f":"VLOOKUP(F398,Dropdowns!$D$2:$E$31,2,FALSE)","v":{"$error":"#N/A"}}]
[null,null,{"$f":"VLOOKUP(B399,Dropdowns!$A$2:$B$49,2,FALSE)","v":{"$error":"#N/A"}},null,null,null,{"$f":"VLOOKUP(F399,Dropdowns!$D$2:$E$31,2,FALSE)","v":{"$error":"#N/A"}}]
[null,null,{"$f":"VLOOKUP(B400,Dropdowns!$A$2:$B$49,2,FALSE)","v":{"$error":"#N/A"}},null,null,null,{"$f":"VLOOKUP(F400,Dropdowns!$D$2:$E$31,2,FALSE)","v":{"$error":"#N/A"}}]
[null,null,{"$f":"VLOOKUP(B401,Dropdowns!$A$2:$B$49,2,FALSE)","v":{"$error":"#N/A"}},null,null,null,{"$f":"VLOOKUP(F401,Dropdowns!$D$2:$E$31,2,FALSE)","v":{"$error":"#N/A"}}]
[null,null,{"$f":"VLOOKUP(B402,Dropdowns!$A$2:$B$49,2,FALSE)","v":{"$error":"#N/A"}},null,null,null,{"$f":"VLOOKUP(F402,Dropdowns!$D$2:$E$31,2,FALSE)","v":{"$error":"#N/A"}}]
[null,null,{"$f":"VLOOKUP(B403,Dropdowns!$A$2:$B$49,2,FALSE)","v":{"$error":"#N/A"}},null,null,null,{"$f":"VLOOKUP(F403,Dropdowns!$D$2:$E$31,2,FALSE)","v":{"$error":"#N/A"}}]
[null,null,{"$f":"VLOOKUP(B404,Dropdowns!$A$2:$B$49,2,FALSE)","v":{"$error":"#N/A"}},null,null,null,{"$f":"VLOOKUP(F404,Dropdowns!$D$2:$E$31,2,FALSE)","v":{"$error":"#N/A"}}]
[null,null,{"$f":"VLOOKUP(B405,Dropdowns!$A$2:$B$49,2,FALSE)","v":{"$error":"#N/A"}},null,null,null,{"$f":"VLOOKUP(F405,Dropdowns!$D$2:$E$31,2,FALSE)","v":{"$error":"#N/A"}}]
[null,null,{"$f":"VLOOKUP(B406,Dropdowns!$A$2:$B$49,2,FALSE)","v":{"$error":"#N/A"}},null,null,null,{"$f":"VLOOKUP(F406,Dropdowns!$D$2:$E$31,2,FALSE)","v":{"$error":"#N/A"}}]
[null,null,{"$f":"VLOOKUP(B407,Dropdowns!$A$2:$B$49,2,FALSE)","v":{"$error":"#N/A"}},null,null,null,{"$f":"VLOOKUP(F407,Dropdowns!$D$2:$E$31,2,FALSE)","v":{"$error":"#N/A"}}]
[null,null,{"$f":"VLOOKUP(B408,Dropdowns!$A$2:$B$49,2,FALSE)","v":{"$error":"#N/A"}},null,null,null,{"$f":"VLOOKUP(F408,Dropdowns!$D$2:$E$31,2,FALSE)","v":{"$error":"#N/A"}}]
[null,null,{"$f":"VLOOKUP(B409,Dropdowns!$A$2:$B$49,2,FALSE)","v":{"$error":"#N/A"}},null,null,null,{"$f":"VLOOKUP(F409,Dropdowns!$D$2:$E$31,2,FALSE)","v":{"$error":"#N/A"}}]
[null,null,{"$f":"VLOOKUP(B410,Dropdowns!$A$2:$B$49,2,FALSE)","v":{"$error":"#N/A"}},null,null,null,{"$f":"VLOOKUP(F410,Dropdowns!$D$2:$E$31,2,FALSE)","v":{"$error":"#N/A"}}]
[null,null,{"$f":"VLOOKUP(B411,Dropdowns!$A$2:$B$49,2,FALSE)","v":{"$error":"#N/A"}},null,null,null,{"$f":"VLOOKUP(F411,Dropdowns!$D$2:$E$31,2,FALSE)","v":{"$error":"#N/A"}}]
[null,null,{"$f":"VLOOKUP(B412,Dropdowns!$A$2:$B$49,2,FALSE)","v":{"$error":"#N/A"}},null,null,null,{"$f":"VLOOKUP(F412,Dropdowns!$D$2:$E$31,2,FALSE)","v":{"$error":"#N/A"}}]
[null,null,{"$f":"VLOOKUP(B413,Dropdowns!$A$2:$B$49,2,FALSE)","v":{"$error":"#N/A"}},null,null,null,{"$f":"VLOOKUP(F413,Dropdowns!$D$2:$E$31,2,FALSE)","v":{"$error":"#N/A"}}]
[null,null,{"$f":"VLOOKUP(B414,Dropdowns!$A$2:$B$49,2,FALSE)","v":{"$error":"#N/A"}},null,null,null,{"$f":"VLOOKUP(F414,Dropdowns!$D$2:$E$31,2,FALSE)","v":{"$error":"#N/A"}}]
[null,null,{"$f":"VLOOKUP(B415,Dropdowns!$A$2:$B$49,2,FALSE)","v":{"$error":"#N/A"}},null,null,null,{"$f":"VLOOKUP(F415,Dropdowns!$D$2:$E$31,2,FALSE)","v":{"$error":"#N/A"}}]
[null,null,{"$f":"VLOOKUP(B416,Dropdowns!$A$2:$B$49,2,FALSE)","v":{"$error":"#N/A"}},null,null,null,{"$f":"VLOOKUP(F416,Dropdowns!$D$2:$E$31,2,FALSE)","v":{"$error":"#N/A"}}]
[null,null,{"$f":"VLOOKUP(B417,Dropdowns!$A$2:$B$49,2,FALSE)","v":{"$error":"#N/A"}},null,null,null,{"$f":"VLOOKUP(F417,Dropdowns!$D$2:$E$31,2,FALSE)","v":{"$error":"#N/A"}}]
[null,null,{"$f":"VLOOKUP(B418,Dropdowns!$A$2:$B$49,2,FALSE)","v":{"$error":"#N/A"}},null,null,null,{"$f":"VLOOKUP(F418,Dropdowns!$D$2:$E$31,2,FALSE)","v":{"$error":"#N/A"}}]
[null,null,{"$f":"VLOOKUP(B419,Dropdowns!$A$2:$B$49,2,FALSE)","v":{"$error":"#N/A"}},null,null,null,{"$f":"VLOOKUP(F419,Dropdowns!$D$2:$E$31,2,FALSE)","v":{"$error":"#N/A"}}]
[null,null,{"$f":"VLOOKUP(B420,Dropdowns!$A$2:$B$49,2,FALSE)","v":{"$error":"#N/A"}},null,null,null,{"$f":"VLOOKUP(F420,Dropdowns!$D$2:$E$31,2,FALSE)","v":{"$error":"#N/A"}}]
[null,null,{"$f":"VLOOKUP(B421,Dropdowns!$A$2:$B$49,2,FALSE)","v":{"$error":"#N/A"}},null,null,null,{"$f":"VLOOKUP(F421,Dropdowns!$D$2:$E$31,2,FALSE)","v":{"$error":"#N/A"}}]
[null,null,{"$f":"VLOOKUP(B422,Dropdowns!$A$2:$B$49,2,FALSE)","v":{"$error":"#N/A"}},null,null,null,{"$f":"VLOOKUP(F422,Dropdowns!$D$2:$E$31,2,FALSE)","v":{"$error":"#N/A"}}]
[null,null,{"$f":"VLOOKUP(B423,Dropdowns!$A$2:$B$49,2,FALSE)","v":{"$error":"#N/A"}},null,null,null,{"$f":"VLOOKUP(F423,Dropdowns!$D$2:$E$31,2,FALSE)","v":{"$error":"#N/A"}}]
[null,null,{"$f":"VLOOKUP(B424,Dropdowns!$A$2:$B$49,2,FALSE)","v":{"$error":"#N/A"}},null,null,null,{"$f":"VLOOKUP(F424,Dropdowns!$D$2:$E$31,2,FALSE)","v":{"$error":"#N/A"}}]
[null,null,{"$f":"VLOOKUP(B425,Dropdowns!$A$2:$B$49,2,FALSE)","v":{"$error":"#N/A"}},null,null,null,{"$f":"VLOOKUP(F425,Dropdowns!$D$2:$E$31,2,FALSE)","v":{"$error":"#N/A"}}]
[null,null,{"$f":"VLOOKUP(B426,Dropdowns!$A$2:$B$49,2,FALSE)","v":{"$error":"#N/A"}},null,null,null,{"$f":"VLOOKUP(F426,Dropdowns!$D$2:$E$31,2,FALSE)","v":{"$error":"#N/A"}}]
[null,null,{"$f":"VLOOKUP(B427,Dropdowns!$A$2:$B$49,2,FALSE)","v":{"$error":"#N/A"}},null,null,null,{"$f":"VLOOKUP(F427,Dropdowns!$D$2:$E$31,2,FALSE)","v":{"$error":"#N/A"}}]
[null,null,{"$f":"VLOOKUP(B428,Dropdowns!$A$2:$B$49,2,FALSE)","v":{"$error":"#N/A"}},null,null,null,{"$f":"VLOOKUP(F428,Dropdowns!$D$2:$E$31,2,FALSE)","v":{"$error":"#N/A"}}]
[null,null,{"$f":"VLOOKUP(B429,Dropdowns!$A$2:$B$49,2,FALSE)","v":{"$error":"#N/A"}},null,null,null,{"$f":"VLOOKUP(F429,Dropdowns!$D$2:$E$31,2,FALSE)","v":{"$error":"#N/A"}}]
[null,null,{"$f":"VLOOKUP(B430,Dropdowns!$A$2:$B$49,2,FALSE)","v":{"$error":"#N/A"}},null,null,null,{"$f":"VLOOKUP(F430,Dropdowns!$D$2:$E$31,2,FALSE)","v":{"$error":"#N/A"}}]
[null,null,{"$f":"VLOOKUP(B431,Dropdowns!$A$2:$B$49,2,FALSE)","v":{"$error":"#N/A"}},null,null,null,{"$f":"VLOOKUP(F431,Dropdowns!$D$2:$E$31,2,FALSE)","v":{"$error":"#N/A"}}]
[null,null,{"$f":"VLOOKUP(B432,Dropdowns!$A$2:$B$49,2,FALSE)","v":{"$error":"#N/A"}},null,null,null,{"$f":"VLOOKUP(F432,Dropdowns!$D$2:$E$31,2,FALSE)","v":{"$error":"#N/A"}}]
[null,null,{"$f":"VLOOKUP(B433,Dropdowns!$A$2:$B$49,2,FALSE)","v":{"$error":"#N/A"}},null,null,null,{"$f":"VLOOKUP(F433,Dropdowns!$D$2:$E$31,2,FALSE)","v":{"$error":"#N/A"}}]
[null,null,{"$f":"VLOOKUP(B434,Dropdowns!$A$2:$B$49,2,FALSE)","v":{"$error":"#N/A"}},null,null,null,{"$f":"VLOOKUP(F434,Dropdowns!$D$2:$E$31,2,FALSE)","v":{"$error":"#N/A"}}]
[null,null,{"$f":"VLOOKUP(B435,Dropdowns!$A$2:$B$49,2,FALSE)","v":{"$error":"#N/A"}},null,null,null,{"$f":"VLOOKUP(F435,Dropdowns!$D$2:$E$31,2,FALSE)","v":{"$error":"#N/A"}}]
[null,null,{"$f":"VLOOKUP(B436,Dropdowns!$A$2:$B$49,2,FALSE)","v":{"$error":"#N/A"}},null,null,null,{"$f":"VLOOKUP(F436,Dropdowns!$D$2:$E$31,2,FALSE)","v":{"$error":"#N/A"}}]
[null,null,{"$f":"VLOOKUP(B437,Dropdowns!$A$2:$B$49,2,FALSE)","v":{"$error":"#N/A"}},null,null,null,{"$f":"VLOOKUP(F437,Dropdowns!$D$2:$E$31,2,FALSE)","v":{"$error":"#N/A"}}]
[null,null,{"$f":"VLOOKUP(B438,Dropdowns!$A$2:$B$49,2,FALSE)","v":{"$error":"#N/A"}},null,null,null,{"$f":"VLOOKUP(F438,Dropdowns!$D$2:$E$31,2,FALSE)","v":{"$error":"#N/A"}}]
[null,null,{"$f":"VLOOKUP(B439,Dropdowns!$A$2:$B$49,2,FALSE)","v":{"$error":"#N/A"}},null,null,null,{"$f":"VLOOKUP(F439,Dropdowns!$D$2:$E$31,2,FALSE)","v":{"$error":"#N/A"}}]
[null,null,{"$f":"VLOOKUP(B440,Dropdowns!$A$2:$B$49,2,FALSE)","v":{"$error":"#N/A"}},null,null,null,{"$f":"VLOOKUP(F440,Dropdowns!$D$2:$E$31,2,FALSE)","v":{"$error":"#N/A"}}]
[null,null,{"$f":"VLOOKUP(B441,Dropdowns!$A$2:$B$49,2,FALSE)","v":{"$error":"#N/A"}},null,null,null,{"$f":"VLOOKUP(F441,Dropdowns!$D$2:$E$31,2,FALSE)","v":{"$error":"#N/A"}}]
[null,null,{"$f":"VLOOKUP(B442,Dropdowns!$A$2:$B$49,2,FALSE)","v":{"$error":"#N/A"}},null,null,null,{"$f":"VLOOKUP(F442,Dropdowns!$D$2:$E$31,2,FALSE)","v":{"$error":"#N/A"}}]
[null,null,{"$f":"VLOOKUP(B443,Dropdowns!$A$2:$B$49,2,FALSE)","v":{"$error":"#N/A"}},null,null,null,{"$f":"VLOOKUP(F443,Dropdowns!$D$2:$E$31,2,FALSE)","v":{"$error":"#N/A"}}]
[null,null,{"$f":"VLOOKUP(B444,Dropdowns!$A$2:$B$49,2,FALSE)","v":{"$error":"#N/A"}},null,null,null,{"$f":"VLOOKUP(F444,Dropdowns!$D$2:$E$31,2,FALSE)","v":{"$error":"#N/A"}}]
[null,null,{"$f":"VLOOKUP(B445,Dropdowns!$A$2:$B$49,2,FALSE)","v":{"$error":"#N/A"}},null,null,null,{"$f":"VLOOKUP(F445,Dropdowns!$D$2:$E$31,2,FALSE)","v":{"$error":"#N/A"}}]
[null,null,{"$f":"VLOOKUP(B446,Dropdowns!$A$2:$B$49,2,FALSE)","v":{"$error":"#N/A"}},null,null,null,{"$f":"VLOOKUP(F446,Dropdowns!$D$2:$E$31,2,FALSE)","v":{"$error":"#N/A"}}]
[null,null,{"$f":"VLOOKUP(B447,Dropdowns!$A$2:$B$49,2,FALSE)","v":{"$error":"#N/A"}},null,null,null,{"$f":"VLOOKUP(F447,Dropdowns!$D$2:$E$31,2,FALSE)","v":{"$error":"#N/A"}}]
[null,null,{"$f":"VLOOKUP(B448,Dropdowns!$A$2:$B$49,2,FALSE)","v":{"$error":"#N/A"}},null,null,null,{"$f":"VLOOKUP(F448,Dropdowns!$D$2:$E$31,2,FALSE)","v":{"$error":"#N/A"}}]
[null,null,{"$f":"VLOOKUP(B449,Dropdowns!$A$2:$B$49,2,FALSE)","v":{"$error":"#N/A"}},null,null,null,{"$f":"VLOOKUP(F449,Dropdowns!$D$2:$E$31,2,FALSE)","v":{"$error":"#N/A"}}]
[null,null,{"$f":"VLOOKUP(B450,Dropdowns!$A$2:$B$49,2,FALSE)","v":{"$error":"#N/A"}},null,null,null,{"$f":"VLOOKUP(F450,Dropdowns!$D$2:$E$31,2,FALSE)","v":{"$error":"#N/A"}}]
[null,null,{"$f":"VLOOKUP(B451,Dropdowns!$A$2:$B$49,2,FALSE)","v":{"$error":"#N/A"}},null,null,null,{"$f":"VLOOKUP(F451,Dropdowns!$D$2:$E$31,2,FALSE)","v":{"$error":"#N/A"}}]
[null,null,{"$f":"VLOOKUP(B452,Dropdowns!$A$2:$B$49,2,FALSE)","v":{"$error":"#N/A"}},null,null,null,{"$f":"VLOOKUP(F452,Dropdowns!$D$2:$E$31,2,FALSE)","v":{"$error":"#N/A"}}]
[null,null,{"$f":"VLOOKUP(B453,Dropdowns!$A$2:$B$49,2,FALSE)","v":{"$error":"#N/A"}},null,null,null,{"$f":"VLOOKUP(F453,Dropdowns!$D$2:$E$31,2,FALSE)","v":{"$error":"#N/A"}}]
[null,null,{"$f":"VLOOKUP(B454,Dropdowns!$A$2:$B$49,2,FALSE)","v":{"$error":"#N/A"}},null,null,null,{"$f":"VLOOKUP(F454,Dropdowns!$D$2:$E$31,2,FALSE)","v":{"$error":"#N/A"}}]
[null,null,{"$f":"VLOOKUP(B455,Dropdowns!$A$2:$B$49,2,FALSE)","v":{"$error":"#N/A"}},null,null,null,{"$f":"VLOOKUP(F455,Dropdowns!$D$2:$E$31,2,FALSE)","v":{"$error":"#N/A"}}]
[null,null,{"$f":"VLOOKUP(B456,Dropdowns!$A$2:$B$49,2,FALSE)","v":{"$error":"#N/A"}},null,null,null,{"$f":"VLOOKUP(F456,Dropdowns!$D$2:$E$31,2,FALSE)","v":{"$error":"#N/A"}}]
[null,null,{"$f":"VLOOKUP(B457,Dropdowns!$A$2:$B$49,2,FALSE)","v":{"$error":"#N/A"}},null,null,null,{"$f":"VLOOKUP(F457,Dropdowns!$D$2:$E$31,2,FALSE)","v":{"$error":"#N/A"}}]
[null,null,{"$f":"VLOOKUP(B458,Dropdowns!$A$2:$B$49,2,FALSE)","v":{"$error":"#N/A"}},null,null,null,{"$f":"VLOOKUP(F458,Dropdowns!$D$2:$E$31,2,FALSE)","v":{"$error":"#N/A"}}]
[null,null,{"$f":"VLOOKUP(B459,Dropdowns!$A$2:$B$49,2,FALSE)","v":{"$error":"#N/A"}},null,null,null,{"$f":"VLOOKUP(F459,Dropdowns!$D$2:$E$31,2,FALSE)","v":{"$error":"#N/A"}}]
[null,null,{"$f":"VLOOKUP(B460,Dropdowns!$A$2:$B$49,2,FALSE)","v":{"$error":"#N/A"}},null,null,null,{"$f":"VLOOKUP(F460,Dropdowns!$D$2:$E$31,2,FALSE)","v":{"$error":"#N/A"}}]
[null,null,{"$f":"VLOOKUP(B461,Dropdowns!$A$2:$B$49,2,FALSE)","v":{"$error":"#N/A"}},null,null,null,{"$f":"VLOOKUP(F461,Dropdowns!$D$2:$E$31,2,FALSE)","v":{"$error":"#N/A"}}]
[null,null,{"$f":"VLOOKUP(B462,Dropdowns!$A$2:$B$49,2,FALSE)","v":{"$error":"#N/A"}},null,null,null,{"$f":"VLOOKUP(F462,Dropdowns!$D$2:$E$31,2,FALSE)","v":{"$error":"#N/A"}}]
[null,null,{"$f":"VLOOKUP(B463,Dropdowns!$A$2:$B$49,2,FALSE)","v":{"$error":"#N/A"}},null,null,null,{"$f":"VLOOKUP(F463,Dropdowns!$D$2:$E$31,2,FALSE)","v":{"$error":"#N/A"}}]
[null,null,{"$f":"VLOOKUP(B464,Dropdowns!$A$2:$B$49,2,FALSE)","v":{"$error":"#N/A"}},null,null,null,{"$f":"VLOOKUP(F464,Dropdowns!$D$2:$E$31,2,FALSE)","v":{"$error":"#N/A"}}]
[null,null,{"$f":"VLOOKUP(B465,Dropdowns!$A$2:$B$49,2,FALSE)","v":{"$error":"#N/A"}},null,null,null,{"$f":"VLOOKUP(F465,Dropdowns!$D$2:$E$31,2,FALSE)","v":{"$error":"#N/A"}}]
[null,null,{"$f":"VLOOKUP(B466,Dropdowns!$A$2:$B$49,2,FALSE)","v":{"$error":"#N/A"}},null,null,null,{"$f":"VLOOKUP(F466,Dropdowns!$D$2:$E$31,2,FALSE)","v":{"$error":"#N/A"}}]
[null,null,{"$f":"VLOOKUP(B467,Dropdowns!$A$2:$B$49,2,FALSE)","v":{"$error":"#N/A"}},null,null,null,{"$f":"VLOOKUP(F467,Dropdowns!$D$2:$E$31,2,FALSE)","v":{"$error":"#N/A"}}]
[null,null,{"$f":"VLOOKUP(B468,Dropdowns!$A$2:$B$49,2,FALSE)","v":{"$error":"#N/A"}},null,null,null,{"$f":"VLOOKUP(F468,Dropdowns!$D$2:$E$31,2,FALSE)","v":{"$error":"#N/A"}}]
[null,null,{"$f":"VLOOKUP(B469,Dropdowns!$A$2:$B$49,2,FALSE)","v":{"$error":"#N/A"}},null,null,null,{"$f":"VLOOKUP(F469,Dropdowns!$D$2:$E$31,2,FALSE)","v":{"$error":"#N/A"}}]
[null,null,{"$f":"VLOOKUP(B470,Dropdowns!$A$2:$B$49,2,FALSE)","v":{"$error":"#N/A"}},null,null,null,{"$f":"VLOOKUP(F470,Dropdowns!$D$2:$E$31,2,FALSE)","v":{"$error":"#N/A"}}]
[null,null,{"$f":"VLOOKUP(B471,Dropdowns!$A$2:$B$49,2,FALSE)","v":{"$error":"#N/A"}},null,null,null,{"$f":"VLOOKUP(F471,Dropdowns!$D$2:$E$31,2,FALSE)","v":{"$error":"#N/A"}}]
[null,null,{"$f":"VLOOKUP(B472,Dropdowns!$A$2:$B$49,2,FALSE)","v":{"$error":"#N/A"}},null,null,null,{"$f":"VLOOKUP(F472,Dropdowns!$D$2:$E$31,2,FALSE)","v":{"$error":"#N/A"}}]
[null,null,{"$f":"VLOOKUP(B473,Dropdowns!$A$2:$B$49,2,FALSE)","v":{"$error":"#N/A"}},null,null,null,{"$f":"VLOOKUP(F473,Dropdowns!$D$2:$E$31,2,FALSE)","v":{"$error":"#N/A"}}]
[null,null,{"$f":"VLOOKUP(B474,Dropdowns!$A$2:$B$49,2,FALSE)","v":{"$error":"#N/A"}},null,null,null,{"$f":"VLOOKUP(F474,Dropdowns!$D$2:$E$31,2,FALSE)","v":{"$error":"#N/A"}}]
[null,null,{"$f":"VLOOKUP(B475,Dropdowns!$A$2:$B$49,2,FALSE)","v":{"$error":"#N/A"}},null,null,null,{"$f":"VLOOKUP(F475,Dropdowns!$D$2:$E$31,2,FALSE)","v":{"$error":"#N/A"}}]
[null,null,{"$f":"VLOOKUP(B476,Dropdowns!$A$2:$B$49,2,FALSE)","v":{"$error":"#N/A"}},null,null,null,{"$f":"VLOOKUP(F476,Dropdowns!$D$2:$E$31,2,FALSE)","v":{"$error":"#N/A"}}]
[null,null,{"$f":"VLOOKUP(B477,Dropdowns!$A$2:$B$49,2,FALSE)","v":{"$error":"#N/A"}},null,null,null,{"$f":"VLOOKUP(F477,Dropdowns!$D$2:$E$31,2,FALSE)","v":{"$error":"#N/A"}}]
[null,null,{"$f":"VLOOKUP(B478,Dropdowns!$A$2:$B$49,2,FALSE)","v":{"$error":"#N/A"}},null,null,null,{"$f":"VLOOKUP(F478,Dropdowns!$D$2:$E$31,2,FALSE)","v":{"$error":"#N/A"}}]
[null,null,{"$f":"VLOOKUP(B479,Dropdowns!$A$2:$B$49,2,FALSE)","v":{"$error":"#N/A"}},null,null,null,{"$f":"VLOOKUP(F479,Dropdowns!$D$2:$E$31,2,FALSE)","v":{"$error":"#N/A"}}]
[null,null,{"$f":"VLOOKUP(B480,Dropdowns!$A$2:$B$49,2,FALSE)","v":{"$error":"#N/A"}},null,null,null,{"$f":"VLOOKUP(F480,Dropdowns!$D$2:$E$31,2,FALSE)","v":{"$error":"#N/A"}}]
[null,null,{"$f":"VLOOKUP(B481,Dropdowns!$A$2:$B$49,2,FALSE)","v":{"$error":"#N/A"}},null,null,null,{"$f":"VLOOKUP(F481,Dropdowns!$D$2:$E$31,2,FALSE)","v":{"$error":"#N/A"}}]
[null,null,{"$f":"VLOOKUP(B482,Dropdowns!$A$2:$B$49,2,FALSE)","v":{"$error":"#N/A"}},null,null,null,{"$f":"VLOOKUP(F482,Dropdowns!$D$2:$E$31,2,FALSE)","v":{"$error":"#N/A"}}]
[null,null,{"$f":"VLOOKUP(B483,Dropdowns!$A$2:$B$49,2,FALSE)","v":{"$error":"#N/A"}},null,null,null,{"$f":"VLOOKUP(F483,Dropdowns!$D$2:$E$31,2,FALSE)","v":{"$error":"#N/A"}}]
[null,null,{"$f":"VLOOKUP(B484,Dropdowns!$A$2:$B$49,2,FALSE)","v":{"$error":"#N/A"}},null,null,null,{"$f":"VLOOKUP(F484,Dropdowns!$D$2:$E$31,2,FALSE)","v":{"$error":"#N/A"}}]
[null,null,{"$f":"VLOOKUP(B485,Dropdowns!$A$2:$B$49,2,FALSE)","v":{"$error":"#N/A"}},null,null,null,{"$f":"VLOOKUP(F485,Dropdowns!$D$2:$E$31,2,FALSE)","v":{"$error":"#N/A"}}]
[null,null,{"$f":"VLOOKUP(B486,Dropdowns!$A$2:$B$49,2,FALSE)","v":{"$error":"#N/A"}},null,null,null,{"$f":"VLOOKUP(F486,Dropdowns!$D$2:$E$31,2,FALSE)","v":{"$error":"#N/A"}}]
[null,null,{"$f":"VLOOKUP(B487,Dropdowns!$A$2:$B$49,2,FALSE)","v":{"$error":"#N/A"}},null,null,null,{"$f":"VLOOKUP(F487,Dropdowns!$D$2:$E$31,2,FALSE)","v":{"$error":"#N/A"}}]
[null,null,{"$f":"VLOOKUP(B488,Dropdowns!$A$2:$B$49,2,FALSE)","v":{"$error":"#N/A"}},null,null,null,{"$f":"VLOOKUP(F488,Dropdowns!$D$2:$E$31,2,FALSE)","v":{"$error":"#N/A"}}]
[null,null,{"$f":"VLOOKUP(B489,Dropdowns!$A$2:$B$49,2,FALSE)","v":{"$error":"#N/A"}},null,null,null,{"$f":"VLOOKUP(F489,Dropdowns!$D$2:$E$31,2,FALSE)","v":{"$error":"#N/A"}}]
[null,null,{"$f":"VLOOKUP(B490,Dropdowns!$A$2:$B$49,2,FALSE)","v":{"$error":"#N/A"}},null,null,null,{"$f":"VLOOKUP(F490,Dropdowns!$D$2:$E$31,2,FALSE)","v":{"$error":"#N/A"}}]
[null,null,{"$f":"VLOOKUP(B491,Dropdowns!$A$2:$B$49,2,FALSE)","v":{"$error":"#N/A"}},null,null,null,{"$f":"VLOOKUP(F491,Dropdowns!$D$2:$E$31,2,FALSE)","v":{"$error":"#N/A"}}]
[null,null,{"$f":"VLOOKUP(B492,Dropdowns!$A$2:$B$49,2,FALSE)","v":{"$error":"#N/A"}},null,null,null,{"$f":"VLOOKUP(F492,Dropdowns!$D$2:$E$31,2,FALSE)","v":{"$error":"#N/A"}}]
[null,null,{"$f":"VLOOKUP(B493,Dropdowns!$A$2:$B$49,2,FALSE)","v":{"$error":"#N/A"}},null,null,null,{"$f":"VLOOKUP(F493,Dropdowns!$D$2:$E$31,2,FALSE)","v":{"$error":"#N/A"}}]
[null,null,{"$f":"VLOOKUP(B494,Dropdowns!$A$2:$B$49,2,FALSE)","v":{"$error":"#N/A"}},null,null,null,{"$f":"VLOOKUP(F494,Dropdowns!$D$2:$E$31,2,FALSE)","v":{"$error":"#N/A"}}]
[null,null,{"$f":"VLOOKUP(B495,Dropdowns!$A$2:$B$49,2,FALSE)","v":{"$error":"#N/A"}},null,null,null,{"$f":"VLOOKUP(F495,Dropdowns!$D$2:$E$31,2,FALSE)","v":{"$error":"#N/A"}}]
[null,null,{"$f":"VLOOKUP(B496,Dropdowns!$A$2:$B$49,2,FALSE)","v":{"$error":"#N/A"}},null,null,null,{"$f":"VLOOKUP(F496,Dropdowns!$D$2:$E$31,2,FALSE)","v":{"$error":"#N/A"}}]
[null,null,{"$f":"VLOOKUP(B497,Dropdowns!$A$2:$B$49,2,FALSE)","v":{"$error":"#N/A"}},null,null,null,{"$f":"VLOOKUP(F497,Dropdowns!$D$2:$E$31,2,FALSE)","v":{"$error":"#N/A"}}]
[null,null,{"$f":"VLOOKUP(B498,Dropdowns!$A$2:$B$49,2,FALSE)","v":{"$error":"#N/A"}},null,null,null,{"$f":"VLOOKUP(F498,Dropdowns!$D$2:$E$31,2,FALSE)","v":{"$error":"#N/A"}}]
[null,null,{"$f":"VLOOKUP(B499,Dropdowns!$A$2:$B$49,2,FALSE)","v":{"$error":"#N/A"}},null,null,null,{"$f":"VLOOKUP(F499,Dropdowns!$D$2:$E$31,2,FALSE)","v":{"$error":"#N/A"}}]
[null,null,{"$f":"VLOOKUP(B500,Dropdowns!$A$2:$B$49,2,FALSE)","v":{"$error":"#N/A"}},null,null,null,{"$f":"VLOOKUP(F500,Dropdowns!$D$2:$E$31,2,FALSE)","v":{"$error":"#N/A"}}]
[null,null,{"$f":"VLOOKUP(B501,Dropdowns!$A$2:$B$49,2,FALSE)","v":{"$error":"#N/A"}},null,null,null,{"$f":"VLOOKUP(F501,Dropdowns!$D$2:$E$31,2,FALSE)","v":{"$error":"#N/A"}}]
[null,null,{"$f":"VLOOKUP(B502,Dropdowns!$A$2:$B$49,2,FALSE)","v":{"$error":"#N/A"}},null,null,null,{"$f":"VLOOKUP(F502,Dropdowns!$D$2:$E$31,2,FALSE)","v":{"$error":"#N/A"}}]
[null,null,{"$f":"VLOOKUP(B503,Dropdowns!$A$2:$B$49,2,FALSE)","v":{"$error":"#N/A"}},null,null,null,{"$f":"VLOOKUP(F503,Dropdowns!$D$2:$E$31,2,FALSE)","v":{"$error":"#N/A"}}]
[null,null,{"$f":"VLOOKUP(B504,Dropdowns!$A$2:$B$49,2,FALSE)","v":{"$error":"#N/A"}},null,null,null,{"$f":"VLOOKUP(F504,Dropdowns!$D$2:$E$31,2,FALSE)","v":{"$error":"#N/A"}}]
[null,null,{"$f":"VLOOKUP(B505,Dropdowns!$A$2:$B$49,2,FALSE)","v":{"$error":"#N/A"}},null,null,null,{"$f":"VLOOKUP(F505,Dropdowns!$D$2:$E$31,2,FALSE)","v":{"$error":"#N/A"}}]
[null,null,{"$f":"VLOOKUP(B506,Dropdowns!$A$2:$B$49,2,FALSE)","v":{"$error":"#N/A"}},null,null,null,{"$f":"VLOOKUP(F506,Dropdowns!$D$2:$E$31,2,FALSE)","v":{"$error":"#N/A"}}]
[null,null,{"$f":"VLOOKUP(B507,Dropdowns!$A$2:$B$49,2,FALSE)","v":{"$error":"#N/A"}},null,null,null,{"$f":"VLOOKUP(F507,Dropdowns!$D$2:$E$31,2,FALSE)","v":{"$error":"#N/A"}}]
[null,null,{"$f":"VLOOKUP(B508,Dropdowns!$A$2:$B$49,2,FALSE)","v":{"$error":"#N/A"}},null,null,null,{"$f":"VLOOKUP(F508,Dropdowns!$D$2:$E$31,2,FALSE)","v":{"$error":"#N/A"}}]
[null,null,{"$f":"VLOOKUP(B509,Dropdowns!$A$2:$B$49,2,FALSE)","v":{"$error":"#N/A"}},null,null,null,{"$f":"VLOOKUP(F509,Dropdowns!$D$2:$E$31,2,FALSE)","v":{"$error":"#N/A"}}]
[null,null,{"$f":"VLOOKUP(B510,Dropdowns!$A$2:$B$49,2,FALSE)","v":{"$error":"#N/A"}},null,null,null,{"$f":"VLOOKUP(F510,Dropdowns!$D$2:$E$31,2,FALSE)","v":{"$error":"#N/A"}}]
[null,null,{"$f":"VLOOKUP(B511,Dropdowns!$A$2:$B$49,2,FALSE)","v":{"$error":"#N/A"}},null,null,null,{"$f":"VLOOKUP(F511,Dropdowns!$D$2:$E$31,2,FALSE)","v":{"$error":"#N/A"}}]
[null,null,{"$f":"VLOOKUP(B512,Dropdowns!$A$2:$B$49,2,FALSE)","v":{"$error":"#N/A"}},null,null,null,{"$f":"VLOOKUP(F512,Dropdowns!$D$2:$E$31,2,FALSE)","v":{"$error":"#N/A"}}]
[null,null,{"$f":"VLOOKUP(B513,Dropdowns!$A$2:$B$49,2,FALSE)","v":{"$error":"#N/A"}},null,null,null,{"$f":"VLOOKUP(F513,Dropdowns!$D$2:$E$31,2,FALSE)","v":{"$error":"#N/A"}}]
[null,null,{"$f":"VLOOKUP(B514,Dropdowns!$A$2:$B$49,2,FALSE)","v":{"$error":"#N/A"}},null,null,null,{"$f":"VLOOKUP(F514,Dropdowns!$D$2:$E$31,2,FALSE)","v":{"$error":"#N/A"}}]
[null,null,{"$f":"VLOOKUP(B515,Dropdowns!$A$2:$B$49,2,FALSE)","v":{"$error":"#N/A"}},null,null,null,{"$f":"VLOOKUP(F515,Dropdowns!$D$2:$E$31,2,FALSE)","v":{"$error":"#N/A"}}]
[null,null,{"$f":"VLOOKUP(B516,Dropdowns!$A$2:$B$49,2,FALSE)","v":{"$error":"#N/A"}},null,null,null,{"$f":"VLOOKUP(F516,Dropdowns!$D$2:$E$31,2,FALSE)","v":{"$error":"#N/A"}}]
[null,null,{"$f":"VLOOKUP(B517,Dropdowns!$A$2:$B$49,2,FALSE)","v":{"$error":"#N/A"}},null,null,null,{"$f":"VLOOKUP(F517,Dropdowns!$D$2:$E$31,2,FALSE)","v":{"$error":"#N/A"}}]
[null,null,{"$f":"VLOOKUP(B518,Dropdowns!$A$2:$B$49,2,FALSE)","v":{"$error":"#N/A"}},null,null,null,{"$f":"VLOOKUP(F518,Dropdowns!$D$2:$E$31,2,FALSE)","v":{"$error":"#N/A"}}]
[null,null,{"$f":"VLOOKUP(B519,Dropdowns!$A$2:$B$49,2,FALSE)","v":{"$error":"#N/A"}},null,null,null,{"$f":"VLOOKUP(F519,Dropdowns!$D$2:$E$31,2,FALSE)","v":{"$error":"#N/A"}}]
[null,null,{"$f":"VLOOKUP(B520,Dropdowns!$A$2:$B$49,2,FALSE)","v":{"$error":"#N/A"}},null,null,null,{"$f":"VLOOKUP(F520,Dropdowns!$D$2:$E$31,2,FALSE)","v":{"$error":"#N/A"}}]
[null,null,{"$f":"VLOOKUP(B521,Dropdowns!$A$2:$B$49,2,FALSE)","v":{"$error":"#N/A"}},null,null,null,{"$f":"VLOOKUP(F521,Dropdowns!$D$2:$E$31,2,FALSE)","v":{"$error":"#N/A"}}]
[null,null,{"$f":"VLOOKUP(B522,Dropdowns!$A$2:$B$49,2,FALSE)","v":{"$error":"#N/A"}},null,null,null,{"$f":"VLOOKUP(F522,Dropdowns!$D$2:$E$31,2,FALSE)","v":{"$error":"#N/A"}}]
[null,null,{"$f":"VLOOKUP(B523,Dropdowns!$A$2:$B$49,2,FALSE)","v":{"$error":"#N/A"}},null,null,null,{"$f":"VLOOKUP(F523,Dropdowns!$D$2:$E$31,2,FALSE)","v":{"$error":"#N/A"}}]
[null,null,{"$f":"VLOOKUP(B524,Dropdowns!$A$2:$B$49,2,FALSE)","v":{"$error":"#N/A"}},null,null,null,{"$f":"VLOOKUP(F524,Dropdowns!$D$2:$E$31,2,FALSE)","v":{"$error":"#N/A"}}]
[null,null,{"$f":"VLOOKUP(B525,Dropdowns!$A$2:$B$49,2,FALSE)","v":{"$error":"#N/A"}},null,null,null,{"$f":"VLOOKUP(F525,Dropdowns!$D$2:$E$31,2,FALSE)","v":{"$error":"#N/A"}}]
[null,null,{"$f":"VLOOKUP(B526,Dropdowns!$A$2:$B$49,2,FALSE)","v":{"$error":"#N/A"}},null,null,null,{"$f":"VLOOKUP(F526,Dropdowns!$D$2:$E$31,2,FALSE)","v":{"$error":"#N/A"}}]
[null,null,{"$f":"VLOOKUP(B527,Dropdowns!$A$2:$B$49,2,FALSE)","v":{"$error":"#N/A"}},null,null,null,{"$f":"VLOOKUP(F527,Dropdowns!$D$2:$E$31,2,FALSE)","v":{"$error":"#N/A"}}]
[null,null,{"$f":"VLOOKUP(B528,Dropdowns!$A$2:$B$49,2,FALSE)","v":{"$error":"#N/A"}},null,null,null,{"$f":"VLOOKUP(F528,Dropdowns!$D$2:$E$31,2,FALSE)","v":{"$error":"#N/A"}}]
[null,null,{"$f":"VLOOKUP(B529,Dropdowns!$A$2:$B$49,2,FALSE)","v":{"$error":"#N/A"}},null,null,null,{"$f":"VLOOKUP(F529,Dropdowns!$D$2:$E$31,2,FALSE)","v":{"$error":"#N/A"}}]
[null,null,{"$f":"VLOOKUP(B530,Dropdowns!$A$2:$B$49,2,FALSE)","v":{"$error":"#N/A"}},null,null,null,{"$f":"VLOOKUP(F530,Dropdowns!$D$2:$E$31,2,FALSE)","v":{"$error":"#N/A"}}]
[null,null,{"$f":"VLOOKUP(B531,Dropdowns!$A$2:$B$49,2,FALSE)","v":{"$error":"#N/A"}},null,null,null,{"$f":"VLOOKUP(F531,Dropdowns!$D$2:$E$31,2,FALSE)","v":{"$error":"#N/A"}}]
[null,null,{"$f":"VLOOKUP(B532,Dropdowns!$A$2:$B$49,2,FALSE)","v":{"$error":"#N/A"}},null,null,null,{"$f":"VLOOKUP(F532,Dropdowns!$D$2:$E$31,2,FALSE)","v":{"$error":"#N/A"}}]
[null,null,{"$f":"VLOOKUP(B533,Dropdowns!$A$2:$B$49,2,FALSE)","v":{"$error":"#N/A"}},null,null,null,{"$f":"VLOOKUP(F533,Dropdowns!$D$2:$E$31,2,FALSE)","v":{"$error":"#N/A"}}]
[null,null,{"$f":"VLOOKUP(B534,Dropdowns!$A$2:$B$49,2,FALSE)","v":{"$error":"#N/A"}},null,null,null,{"$f":"VLOOKUP(F534,Dropdowns!$D$2:$E$31,2,FALSE)","v":{"$error":"#N/A"}}]
[null,null,{"$f":"VLOOKUP(B535,Dropdowns!$A$2:$B$49,2,FALSE)","v":{"$error":"#N/A"}},null,null,null,{"$f":"VLOOKUP(F535,Dropdowns!$D$2:$E$31,2,FALSE)","v":{"$error":"#N/A"}}]
[null,null,{"$f":"VLOOKUP(B536,Dropdowns!$A$2:$B$49,2,FALSE)","v":{"$error":"#N/A"}},null,null,null,{"$f":"VLOOKUP(F536,Dropdowns!$D$2:$E$31,2,FALSE)","v":{"$error":"#N/A"}}]
[null,null,{"$f":"VLOOKUP(B537,Dropdowns!$A$2:$B$49,2,FALSE)","v":{"$error":"#N/A"}},null,null,null,{"$f":"VLOOKUP(F537,Dropdowns!$D$2:$E$31,2,FALSE)","v":{"$error":"#N/A"}}]
[null,null,{"$f":"VLOOKUP(B538,Dropdowns!$A$2:$B$49,2,FALSE)","v":{"$error":"#N/A"}},null,null,null,{"$f":"VLOOKUP(F538,Dropdowns!$D$2:$E$31,2,FALSE)","v":{"$error":"#N/A"}}]
[null,null,{"$f":"VLOOKUP(B539,Dropdowns!$A$2:$B$49,2,FALSE)","v":{"$error":"#N/A"}},null,null,null,{"$f":"VLOOKUP(F539,Dropdowns!$D$2:$E$31,2,FALSE)","v":{"$error":"#N/A"}}]
[null,null,{"$f":"VLOOKUP(B540,Dropdowns!$A$2:$B$49,2,FALSE)","v":{"$error":"#N/A"}},null,null,null,{"$f":"VLOOKUP(F540,Dropdowns!$D$2:$E$31,2,FALSE)","v":{"$error":"#N/A"}}]
[null,null,{"$f":"VLOOKUP(B541,Dropdowns!$A$2:$B$49,2,FALSE)","v":{"$error":"#N/A"}},null,null,null,{"$f":"VLOOKUP(F541,Dropdowns!$D$2:$E$31,2,FALSE)","v":{"$error":"#N/A"}}]
[null,null,{"$f":"VLOOKUP(B542,Dropdowns!$A$2:$B$49,2,FALSE)","v":{"$error":"#N/A"}},null,null,null,{"$f":"VLOOKUP(F542,Dropdowns!$D$2:$E$31,2,FALSE)","v":{"$error":"#N/A"}}]
[null,null,{"$f":"VLOOKUP(B543,Dropdowns!$A$2:$B$49,2,FALSE)","v":{"$error":"#N/A"}},null,null,null,{"$f":"VLOOKUP(F543,Dropdowns!$D$2:$E$31,2,FALSE)","v":{"$error":"#N/A"}}]
[null,null,{"$f":"VLOOKUP(B544,Dropdowns!$A$2:$B$49,2,FALSE)","v":{"$error":"#N/A"}},null,null,null,{"$f":"VLOOKUP(F544,Dropdowns!$D$2:$E$31,2,FALSE)","v":{"$error":"#N/A"}}]
[null,null,{"$f":"VLOOKUP(B545,Dropdowns!$A$2:$B$49,2,FALSE)","v":{"$error":"#N/A"}},null,null,null,{"$f":"VLOOKUP(F545,Dropdowns!$D$2:$E$31,2,FALSE)","v":{"$error":"#N/A"}}]
[null,null,{"$f":"VLOOKUP(B546,Dropdowns!$A$2:$B$49,2,FALSE)","v":{"$error":"#N/A"}},null,null,null,{"$f":"VLOOKUP(F546,Dropdowns!$D$2:$E$31,2,FALSE)","v":{"$error":"#N/A"}}]
[null,null,{"$f":"VLOOKUP(B547,Dropdowns!$A$2:$B$49,2,FALSE)","v":{"$error":"#N/A"}},null,null,null,{"$f":"VLOOKUP(F547,Dropdowns!$D$2:$E$31,2,FALSE)","v":{"$error":"#N/A"}}]
[null,null,{"$f":"VLOOKUP(B548,Dropdowns!$A$2:$B$49,2,FALSE)","v":{"$error":"#N/A"}},null,null,null,{"$f":"VLOOKUP(F548,Dropdowns!$D$2:$E$31,2,FALSE)","v":{"$error":"#N/A"}}]
[null,null,{"$f":"VLOOKUP(B549,Dropdowns!$A$2:$B$49,2,FALSE)","v":{"$error":"#N/A"}},null,null,null,{"$f":"VLOOKUP(F549,Dropdowns!$D$2:$E$31,2,FALSE)","v":{"$error":"#N/A"}}]
[null,null,{"$f":"VLOOKUP(B550,Dropdowns!$A$2:$B$49,2,FALSE)","v":{"$error":"#N/A"}},null,null,null,{"$f":"VLOOKUP(F550,Dropdowns!$D$2:$E$31,2,FALSE)","v":{"$error":"#N/A"}}]
[null,null,{"$f":"VLOOKUP(B551,Dropdowns!$A$2:$B$49,2,FALSE)","v":{"$error":"#N/A"}},null,null,null,{"$f":"VLOOKUP(F551,Dropdowns!$D$2:$E$31,2,FALSE)","v":{"$error":"#N/A"}}]
[null,null,{"$f":"VLOOKUP(B552,Dropdowns!$A$2:$B$49,2,FALSE)","v":{"$error":"#N/A"}},null,null,null,{"$f":"VLOOKUP(F552,Dropdowns!$D$2:$E$31,2,FALSE)","v":{"$error":"#N/A"}}]
[null,null,{"$f":"VLOOKUP(B553,Dropdowns!$A$2:$B$49,2,FALSE)","v":{"$error":"#N/A"}},null,null,null,{"$f":"VLOOKUP(F553,Dropdowns!$D$2:$E$31,2,FALSE)","v":{"$error":"#N/A"}}]
[null,null,{"$f":"VLOOKUP(B554,Dropdowns!$A$2:$B$49,2,FALSE)","v":{"$error":"#N/A"}},null,null,null,{"$f":"VLOOKUP(F554,Dropdowns!$D$2:$E$31,2,FALSE)","v":{"$error":"#N/A"}}]
[null,null,{"$f":"VLOOKUP(B555,Dropdowns!$A$2:$B$49,2,FALSE)","v":{"$error":"#N/A"}},null,null,null,{"$f":"VLOOKUP(F555,Dropdowns!$D$2:$E$31,2,FALSE)","v":{"$error":"#N/A"}}]
[null,null,{"$f":"VLOOKUP(B556,Dropdowns!$A$2:$B$49,2,FALSE)","v":{"$error":"#N/A"}},null,null,null,{"$f":"VLOOKUP(F556,Dropdowns!$D$2:$E$31,2,FALSE)","v":{"$error":"#N/A"}}]
[null,null,{"$f":"VLOOKUP(B557,Dropdowns!$A$2:$B$49,2,FALSE)","v":{"$error":"#N/A"}},null,null,null,{"$f":"VLOOKUP(F557,Dropdowns!$D$2:$E$31,2,FALSE)","v":{"$error":"#N/A"}}]
[null,null,{"$f":"VLOOKUP(B558,Dropdowns!$A$2:$B$49,2,FALSE)","v":{"$error":"#N/A"}},null,null,null,{"$f":"VLOOKUP(F558,Dropdowns!$D$2:$E$31,2,FALSE)","v":{"$error":"#N/A"}}]
[null,null,{"$f":"VLOOKUP(B559,Dropdowns!$A$2:$B$49,2,FALSE)","v":{"$error":"#N/A"}},null,null,null,{"$f":"VLOOKUP(F559,Dropdowns!$D$2:$E$31,2,FALSE)","v":{"$error":"#N/A"}}]
[null,null,{"$f":"VLOOKUP(B560,Dropdowns!$A$2:$B$49,2,FALSE)","v":{"$error":"#N/A"}},null,null,null,{"$f":"VLOOKUP(F560,Dropdowns!$D$2:$E$31,2,FALSE)","v":{"$error":"#N/A"}}]
[null,null,{"$f":"VLOOKUP(B561,Dropdowns!$A$2:$B$49,2,FALSE)","v":{"$error":"#N/A"}},null,null,null,{"$f":"VLOOKUP(F561,Dropdowns!$D$2:$E$31,2,FALSE)","v":{"$error":"#N/A"}}]
[null,null,{"$f":"VLOOKUP(B562,Dropdowns!$A$2:$B$49,2,FALSE)","v":{"$error":"#N/A"}},null,null,null,{"$f":"VLOOKUP(F562,Dropdowns!$D$2:$E$31,2,FALSE)","v":{"$error":"#N/A"}}]
[null,null,{"$f":"VLOOKUP(B563,Dropdowns!$A$2:$B$49,2,FALSE)","v":{"$error":"#N/A"}},null,null,null,{"$f":"VLOOKUP(F563,Dropdowns!$D$2:$E$31,2,FALSE)","v":{"$error":"#N/A"}}]
[null,null,{"$f":"VLOOKUP(B564,Dropdowns!$A$2:$B$49,2,FALSE)","v":{"$error":"#N/A"}},null,null,null,{"$f":"VLOOKUP(F564,Dropdowns!$D$2:$E$31,2,FALSE)","v":{"$error":"#N/A"}}]
[null,null,{"$f":"VLOOKUP(B565,Dropdowns!$A$2:$B$49,2,FALSE)","v":{"$error":"#N/A"}},null,null,null,{"$f":"VLOOKUP(F565,Dropdowns!$D$2:$E$31,2,FALSE)","v":{"$error":"#N/A"}}]
[null,null,{"$f":"VLOOKUP(B566,Dropdowns!$A$2:$B$49,2,FALSE)","v":{"$error":"#N/A"}},null,null,null,{"$f":"VLOOKUP(F566,Dropdowns!$D$2:$E$31,2,FALSE)","v":{"$error":"#N/A"}}]
[null,null,{"$f":"VLOOKUP(B567,Dropdowns!$A$2:$B$49,2,FALSE)","v":{"$error":"#N/A"}},null,null,null,{"$f":"VLOOKUP(F567,Dropdowns!$D$2:$E$31,2,FALSE)","v":{"$error":"#N/A"}}]
[null,null,{"$f":"VLOOKUP(B568,Dropdowns!$A$2:$B$49,2,FALSE)","v":{"$error":"#N/A"}},null,null,null,{"$f":"VLOOKUP(F568,Dropdowns!$D$2:$E$31,2,FALSE)","v":{"$error":"#N/A"}}]
[null,null,{"$f":"VLOOKUP(B569,Dropdowns!$A$2:$B$49,2,FALSE)","v":{"$error":"#N/A"}},null,null,null,{"$f":"VLOOKUP(F569,Dropdowns!$D$2:$E$31,2,FALSE)","v":{"$error":"#N/A"}}]
[null,null,{"$f":"VLOOKUP(B570,Dropdowns!$A$2:$B$49,2,FALSE)","v":{"$error":"#N/A"}},null,null,null,{"$f":"VLOOKUP(F570,Dropdowns!$D$2:$E$31,2,FALSE)","v":{"$error":"#N/A"}}]
[null,null,{"$f":"VLOOKUP(B571,Dropdowns!$A$2:$B$49,2,FALSE)","v":{"$error":"#N/A"}},null,null,null,{"$f":"VLOOKUP(F571,Dropdowns!$D$2:$E$31,2,FALSE)","v":{"$error":"#N/A"}}]
[null,null,{"$f":"VLOOKUP(B572,Dropdowns!$A$2:$B$49,2,FALSE)","v":{"$error":"#N/A"}},null,null,null,{"$f":"VLOOKUP(F572,Dropdowns!$D$2:$E$31,2,FALSE)","v":{"$error":"#N/A"}}]
[null,null,{"$f":"VLOOKUP(B573,Dropdowns!$A$2:$B$49,2,FALSE)","v":{"$error":"#N/A"}},null,null,null,{"$f":"VLOOKUP(F573,Dropdowns!$D$2:$E$31,2,FALSE)","v":{"$error":"#N/A"}}]
[null,null,{"$f":"VLOOKUP(B574,Dropdowns!$A$2:$B$49,2,FALSE)","v":{"$error":"#N/A"}},null,null,null,{"$f":"VLOOKUP(F574,Dropdowns!$D$2:$E$31,2,FALSE)","v":{"$error":"#N/A"}}]
[null,null,{"$f":"VLOOKUP(B575,Dropdowns!$A$2:$B$49,2,FALSE)","v":{"$error":"#N/A"}},null,null,null,{"$f":"VLOOKUP(F575,Dropdowns!$D$2:$E$31,2,FALSE)","v":{"$error":"#N/A"}}]
[null,null,{"$f":"VLOOKUP(B576,Dropdowns!$A$2:$B$49,2,FALSE)","v":{"$error":"#N/A"}},null,null,null,{"$f":"VLOOKUP(F576,Dropdowns!$D$2:$E$31,2,FALSE)","v":{"$error":"#N/A"}}]
[null,null,{"$f":"VLOOKUP(B577,Dropdowns!$A$2:$B$49,2,FALSE)","v":{"$error":"#N/A"}},null,null,null,{"$f":"VLOOKUP(F577,Dropdowns!$D$2:$E$31,2,FALSE)","v":{"$error":"#N/A"}}]
[null,null,{"$f":"VLOOKUP(B578,Dropdowns!$A$2:$B$49,2,FALSE)","v":{"$error":"#N/A"}},null,null,null,{"$f":"VLOOKUP(F578,Dropdowns!$D$2:$E$31,2,FALSE)","v":{"$error":"#N/A"}}]
[null,null,{"$f":"VLOOKUP(B579,Dropdowns!$A$2:$B$49,2,FALSE)","v":{"$error":"#N/A"}},null,null,null,{"$f":"VLOOKUP(F579,Dropdowns!$D$2:$E$31,2,FALSE)","v":{"$error":"#N/A"}}]
[null,null,{"$f":"VLOOKUP(B580,Dropdowns!$A$2:$B$49,2,FALSE)","v":{"$error":"#N/A"}},null,null,null,{"$f":"VLOOKUP(F580,Dropdowns!$D$2:$E$31,2,FALSE)","v":{"$error":"#N/A"}}]
[null,null,{"$f":"VLOOKUP(B581,Dropdowns!$A$2:$B$49,2,FALSE)","v":{"$error":"#N/A"}},null,null,null,{"$f":"VLOOKUP(F581,Dropdowns!$D$2:$E$31,2,FALSE)","v":{"$error":"#N/A"}}]
[null,null,{"$f":"VLOOKUP(B582,Dropdowns!$A$2:$B$49,2,FALSE)","v":{"$error":"#N/A"}},null,null,null,{"$f":"VLOOKUP(F582,Dropdowns!$D$2:$E$31,2,FALSE)","v":{"$error":"#N/A"}}]
[null,null,{"$f":"VLOOKUP(B583,Dropdowns!$A$2:$B$49,2,FALSE)","v":{"$error":"#N/A"}},null,null,null,{"$f":"VLOOKUP(F583,Dropdowns!$D$2:$E$31,2,FALSE)","v":{"$error":"#N/A"}}]
[null,null,{"$f":"VLOOKUP(B584,Dropdowns!$A$2:$B$49,2,FALSE)","v":{"$error":"#N/A"}},null,null,null,{"$f":"VLOOKUP(F584,Dropdowns!$D$2:$E$31,2,FALSE)","v":{"$error":"#N/A"}}]
[null,null,{"$f":"VLOOKUP(B585,Dropdowns!$A$2:$B$49,2,FALSE)","v":{"$error":"#N/A"}},null,null,null,{"$f":"VLOOKUP(F585,Dropdowns!$D$2:$E$31,2,FALSE)","v":{"$error":"#N/A"}}]
[null,null,{"$f":"VLOOKUP(B586,Dropdowns!$A$2:$B$49,2,FALSE)","v":{"$error":"#N/A"}},null,null,null,{"$f":"VLOOKUP(F586,Dropdowns!$D$2:$E$31,2,FALSE)","v":{"$error":"#N/A"}}]
[null,null,{"$f":"VLOOKUP(B587,Dropdowns!$A$2:$B$49,2,FALSE)","v":{"$error":"#N/A"}},null,null,null,{"$f":"VLOOKUP(F587,Dropdowns!$D$2:$E$31,2,FALSE)","v":{"$error":"#N/A"}}]
[null,null,{"$f":"VLOOKUP(B588,Dropdowns!$A$2:$B$49,2,FALSE)","v":{"$error":"#N/A"}},null,null,null,{"$f":"VLOOKUP(F588,Dropdowns!$D$2:$E$31,2,FALSE)","v":{"$error":"#N/A"}}]
[null,null,{"$f":"VLOOKUP(B589,Dropdowns!$A$2:$B$49,2,FALSE)","v":{"$error":"#N/A"}},null,null,null,{"$f":"VLOOKUP(F589,Dropdowns!$D$2:$E$31,2,FALSE)","v":{"$error":"#N/A"}}]
[null,null,{"$f":"VLOOKUP(B590,Dropdowns!$A$2:$B$49,2,FALSE)","v":{"$error":"#N/A"}},null,null,null,{"$f":"VLOOKUP(F590,Dropdowns!$D$2:$E$31,2,FALSE)","v":{"$error":"#N/A"}}]
[null,null,{"$f":"VLOOKUP(B591,Dropdowns!$A$2:$B$49,2,FALSE)","v":{"$error":"#N/A"}},null,null,null,{"$f":"VLOOKUP(F591,Dropdowns!$D$2:$E$31,2,FALSE)","v":{"$error":"#N/A"}}]
[null,null,{"$f":"VLOOKUP(B592,Dropdowns!$A$2:$B$49,2,FALSE)","v":{"$error":"#N/A"}},null,null,null,{"$f":"VLOOKUP(F592,Dropdowns!$D$2:$E$31,2,FALSE)","v":{"$error":"#N/A"}}]
[null,null,{"$f":"VLOOKUP(B593,Dropdowns!$A$2:$B$49,2,FALSE)","v":{"$error":"#N/A"}},null,null,null,{"$f":"VLOOKUP(F593,Dropdowns!$D$2:$E$31,2,FALSE)","v":{"$error":"#N/A"}}]
[null,null,{"$f":"VLOOKUP(B594,Dropdowns!$A$2:$B$49,2,FALSE)","v":{"$error":"#N/A"}},null,null,null,{"$f":"VLOOKUP(F594,Dropdowns!$D$2:$E$31,2,FALSE)","v":{"$error":"#N/A"}}]
[null,null,{"$f":"VLOOKUP(B595,Dropdowns!$A$2:$B$49,2,FALSE)","v":{"$error":"#N/A"}},null,null,null,{"$f":"VLOOKUP(F595,Dropdowns!$D$2:$E$31,2,FALSE)","v":{"$error":"#N/A"}}]
[null,null,{"$f":"VLOOKUP(B596,Dropdowns!$A$2:$B$49,2,FALSE)","v":{"$error":"#N/A"}},null,null,null,{"$f":"VLOOKUP(F596,Dropdowns!$D$2:$E$31,2,FALSE)","v":{"$error":"#N/A"}}]
[null,null,{"$f":"VLOOKUP(B597,Dropdowns!$A$2:$B$49,2,FALSE)","v":{"$error":"#N/A"}},null,null,null,{"$f":"VLOOKUP(F597,Dropdowns!$D$2:$E$31,2,FALSE)","v":{"$error":"#N/A"}}]
[null,null,{"$f":"VLOOKUP(B598,Dropdowns!$A$2:$B$49,2,FALSE)","v":{"$error":"#N/A"}},null,null,null,{"$f":"VLOOKUP(F598,Dropdowns!$D$2:$E$31,2,FALSE)","v":{"$error":"#N/A"}}]
[null,null,{"$f":"VLOOKUP(B599,Dropdowns!$A$2:$B$49,2,FALSE)","v":{"$error":"#N/A"}},null,null,null,{"$f":"VLOOKUP(F599,Dropdowns!$D$2:$E$31,2,FALSE)","v":{"$error":"#N/A"}}]
[null,null,{"$f":"VLOOKUP(B600,Dropdowns!$A$2:$B$49,2,FALSE)","v":{"$error":"#N/A"}},null,null,null,{"$f":"VLOOKUP(F600,Dropdowns!$D$2:$E$31,2,FALSE)","v":{"$error":"#N/A"}}]
[null,null,{"$f":"VLOOKUP(B601,Dropdowns!$A$2:$B$49,2,FALSE)","v":{"$error":"#N/A"}},null,null,null,{"$f":"VLOOKUP(F601,Dropdowns!$D$2:$E$31,2,FALSE)","v":{"$error":"#N/A"}}]
[null,null,{"$f":"VLOOKUP(B602,Dropdowns!$A$2:$B$49,2,FALSE)","v":{"$error":"#N/A"}},null,null,null,{"$f":"VLOOKUP(F602,Dropdowns!$D$2:$E$31,2,FALSE)","v":{"$error":"#N/A"}}]
[null,null,{"$f":"VLOOKUP(B603,Dropdowns!$A$2:$B$49,2,FALSE)","v":{"$error":"#N/A"}},null,null,null,{"$f":"VLOOKUP(F603,Dropdowns!$D$2:$E$31,2,FALSE)","v":{"$error":"#N/A"}}]
[null,null,{"$f":"VLOOKUP(B604,Dropdowns!$A$2:$B$49,2,FALSE)","v":{"$error":"#N/A"}},null,null,null,{"$f":"VLOOKUP(F604,Dropdowns!$D$2:$E$31,2,FALSE)","v":{"$error":"#N/A"}}]
[null,null,{"$f":"VLOOKUP(B605,Dropdowns!$A$2:$B$49,2,FALSE)","v":{"$error":"#N/A"}},null,null,null,{"$f":"VLOOKUP(F605,Dropdowns!$D$2:$E$31,2,FALSE)","v":{"$error":"#N/A"}}]
[null,null,{"$f":"VLOOKUP(B606,Dropdowns!$A$2:$B$49,2,FALSE)","v":{"$error":"#N/A"}},null,null,null,{"$f":"VLOOKUP(F606,Dropdowns!$D$2:$E$31,2,FALSE)","v":{"$error":"#N/A"}}]
[null,null,{"$f":"VLOOKUP(B607,Dropdowns!$A$2:$B$49,2,FALSE)","v":{"$error":"#N/A"}},null,null,null,{"$f":"VLOOKUP(F607,Dropdowns!$D$2:$E$31,2,FALSE)","v":{"$error":"#N/A"}}]
[null,null,{"$f":"VLOOKUP(B608,Dropdowns!$A$2:$B$49,2,FALSE)","v":{"$error":"#N/A"}},null,null,null,{"$f":"VLOOKUP(F608,Dropdowns!$D$2:$E$31,2,FALSE)","v":{"$error":"#N/A"}}]
[null,null,{"$f":"VLOOKUP(B609,Dropdowns!$A$2:$B$49,2,FALSE)","v":{"$error":"#N/A"}},null,null,null,{"$f":"VLOOKUP(F609,Dropdowns!$D$2:$E$31,2,FALSE)","v":{"$error":"#N/A"}}]
[null,null,{"$f":"VLOOKUP(B610,Dropdowns!$A$2:$B$49,2,FALSE)","v":{"$error":"#N/A"}},null,null,null,{"$f":"VLOOKUP(F610,Dropdowns!$D$2:$E$31,2,FALSE)","v":{"$error":"#N/A"}}]
[null,null,{"$f":"VLOOKUP(B611,Dropdowns!$A$2:$B$49,2,FALSE)","v":{"$error":"#N/A"}},null,null,null,{"$f":"VLOOKUP(F611,Dropdowns!$D$2:$E$31,2,FALSE)","v":{"$error":"#N/A"}}]
[null,null,{"$f":"VLOOKUP(B612,Dropdowns!$A$2:$B$49,2,FALSE)","v":{"$error":"#N/A"}},null,null,null,{"$f":"VLOOKUP(F612,Dropdowns!$D$2:$E$31,2,FALSE)","v":{"$error":"#N/A"}}]
[null,null,{"$f":"VLOOKUP(B613,Dropdowns!$A$2:$B$49,2,FALSE)","v":{"$error":"#N/A"}},null,null,null,{"$f":"VLOOKUP(F613,Dropdowns!$D$2:$E$31,2,FALSE)","v":{"$error":"#N/A"}}]
[null,null,{"$f":"VLOOKUP(B614,Dropdowns!$A$2:$B$49,2,FALSE)","v":{"$error":"#N/A"}},null,null,null,{"$f":"VLOOKUP(F614,Dropdowns!$D$2:$E$31,2,FALSE)","v":{"$error":"#N/A"}}]
[null,null,{"$f":"VLOOKUP(B615,Dropdowns!$A$2:$B$49,2,FALSE)","v":{"$error":"#N/A"}},null,null,null,{"$f":"VLOOKUP(F615,Dropdowns!$D$2:$E$31,2,FALSE)","v":{"$error":"#N/A"}}]
[null,null,{"$f":"VLOOKUP(B616,Dropdowns!$A$2:$B$49,2,FALSE)","v":{"$error":"#N/A"}},null,null,null,{"$f":"VLOOKUP(F616,Dropdowns!$D$2:$E$31,2,FALSE)","v":{"$error":"#N/A"}}]
[null,null,{"$f":"VLOOKUP(B617,Dropdowns!$A$2:$B$49,2,FALSE)","v":{"$error":"#N/A"}},null,null,null,{"$f":"VLOOKUP(F617,Dropdowns!$D$2:$E$31,2,FALSE)","v":{"$error":"#N/A"}}]
[null,null,{"$f":"VLOOKUP(B618,Dropdowns!$A$2:$B$49,2,FALSE)","v":{"$error":"#N/A"}},null,null,null,{"$f":"VLOOKUP(F618,Dropdowns!$D$2:$E$31,2,FALSE)","v":{"$error":"#N/A"}}]
[null,null,{"$f":"VLOOKUP(B619,Dropdowns!$A$2:$B$49,2,FALSE)","v":{"$error":"#N/A"}},null,null,null,{"$f":"VLOOKUP(F619,Dropdowns!$D$2:$E$31,2,FALSE)","v":{"$error":"#N/A"}}]
[null,null,{"$f":"VLOOKUP(B620,Dropdowns!$A$2:$B$49,2,FALSE)","v":{"$error":"#N/A"}},null,null,null,{"$f":"VLOOKUP(F620,Dropdowns!$D$2:$E$31,2,FALSE)","v":{"$error":"#N/A"}}]
[null,null,{"$f":"VLOOKUP(B621,Dropdowns!$A$2:$B$49,2,FALSE)","v":{"$error":"#N/A"}},null,null,null,{"$f":"VLOOKUP(F621,Dropdowns!$D$2:$E$31,2,FALSE)","v":{"$error":"#N/A"}}]
[null,null,{"$f":"VLOOKUP(B622,Dropdowns!$A$2:$B$49,2,FALSE)","v":{"$error":"#N/A"}},null,null,null,{"$f":"VLOOKUP(F622,Dropdowns!$D$2:$E$31,2,FALSE)","v":{"$error":"#N/A"}}]
[null,null,{"$f":"VLOOKUP(B623,Dropdowns!$A$2:$B$49,2,FALSE)","v":{"$error":"#N/A"}},null,null,null,{"$f":"VLOOKUP(F623,Dropdowns!$D$2:$E$31,2,FALSE)","v":{"$error":"#N/A"}}]
[null,null,{"$f":"VLOOKUP(B624,Dropdowns!$A$2:$B$49,2,FALSE)","v":{"$error":"#N/A"}},null,null,null,{"$f":"VLOOKUP(F624,Dropdowns!$D$2:$E$31,2,FALSE)","v":{"$error":"#N/A"}}]
[null,null,{"$f":"VLOOKUP(B625,Dropdowns!$A$2:$B$49,2,FALSE)","v":{"$error":"#N/A"}},null,null,null,{"$f":"VLOOKUP(F625,Dropdowns!$D$2:$E$31,2,FALSE)","v":{"$error":"#N/A"}}]
[null,null,{"$f":"VLOOKUP(B626,Dropdowns!$A$2:$B$49,2,FALSE)","v":{"$error":"#N/A"}},null,null,null,{"$f":"VLOOKUP(F626,Dropdowns!$D$2:$E$31,2,FALSE)","v":{"$error":"#N/A"}}]
[null,null,{"$f":"VLOOKUP(B627,Dropdowns!$A$2:$B$49,2,FALSE)","v":{"$error":"#N/A"}},null,null,null,{"$f":"VLOOKUP(F627,Dropdowns!$D$2:$E$31,2,FALSE)","v":{"$error":"#N/A"}}]
[null,null,{"$f":"VLOOKUP(B628,Dropdowns!$A$2:$B$49,2,FALSE)","v":{"$error":"#N/A"}},null,null,null,{"$f":"VLOOKUP(F628,Dropdowns!$D$2:$E$31,2,FALSE)","v":{"$error":"#N/A"}}]
[null,null,{"$f":"VLOOKUP(B629,Dropdowns!$A$2:$B$49,2,FALSE)","v":{"$error":"#N/A"}},null,null,null,{"$f":"VLOOKUP(F629,Dropdowns!$D$2:$E$31,2,FALSE)","v":{"$error":"#N/A"}}]
[null,null,{"$f":"VLOOKUP(B630,Dropdowns!$A$2:$B$49,2,FALSE)","v":{"$error":"#N/A"}},null,null,null,{"$f":"VLOOKUP(F630,Dropdowns!$D$2:$E$31,2,FALSE)","v":{"$error":"#N/A"}}]
[null,null,{"$f":"VLOOKUP(B631,Dropdowns!$A$2:$B$49,2,FALSE)","v":{"$error":"#N/A"}},null,null,null,{"$f":"VLOOKUP(F631,Dropdowns!$D$2:$E$31,2,FALSE)","v":{"$error":"#N/A"}}]
[null,null,{"$f":"VLOOKUP(B632,Dropdowns!$A$2:$B$49,2,FALSE)","v":{"$error":"#N/A"}},null,null,null,{"$f":"VLOOKUP(F632,Dropdowns!$D$2:$E$31,2,FALSE)","v":{"$error":"#N/A"}}]
[null,null,{"$f":"VLOOKUP(B633,Dropdowns!$A$2:$B$49,2,FALSE)","v":{"$error":"#N/A"}},null,null,null,{"$f":"VLOOKUP(F633,Dropdowns!$D$2:$E$31,2,FALSE)","v":{"$error":"#N/A"}}]
[null,null,{"$f":"VLOOKUP(B634,Dropdowns!$A$2:$B$49,2,FALSE)","v":{"$error":"#N/A"}},null,null,null,{"$f":"VLOOKUP(F634,Dropdowns!$D$2:$E$31,2,FALSE)","v":{"$error":"#N/A"}}]
[null,null,{"$f":"VLOOKUP(B635,Dropdowns!$A$2:$B$49,2,FALSE)","v":{"$error":"#N/A"}},null,null,null,{"$f":"VLOOKUP(F635,Dropdowns!$D$2:$E$31,2,FALSE)","v":{"$error":"#N/A"}}]
[null,null,{"$f":"VLOOKUP(B636,Dropdowns!$A$2:$B$49,2,FALSE)","v":{"$error":"#N/A"}},null,null,null,{"$f":"VLOOKUP(F636,Dropdowns!$D$2:$E$31,2,FALSE)","v":{"$error":"#N/A"}}]
[null,null,{"$f":"VLOOKUP(B637,Dropdowns!$A$2:$B$49,2,FALSE)","v":{"$error":"#N/A"}},null,null,null,{"$f":"VLOOKUP(F637,Dropdowns!$D$2:$E$31,2,FALSE)","v":{"$error":"#N/A"}}]
[null,null,{"$f":"VLOOKUP(B638,Dropdowns!$A$2:$B$49,2,FALSE)","v":{"$error":"#N/A"}},null,null,null,{"$f":"VLOOKUP(F638,Dropdowns!$D$2:$E$31,2,FALSE)","v":{"$error":"#N/A"}}]
[null,null,{"$f":"VLOOKUP(B639,Dropdowns!$A$2:$B$49,2,FALSE)","v":{"$error":"#N/A"}},null,null,null,{"$f":"VLOOKUP(F639,Dropdowns!$D$2:$E$31,2,FALSE)","v":{"$error":"#N/A"}}]
[null,null,{"$f":"VLOOKUP(B640,Dropdowns!$A$2:$B$49,2,FALSE)","v":{"$error":"#N/A"}},null,null,null,{"$f":"VLOOKUP(F640,Dropdowns!$D$2:$E$31,2,FALSE)","v":{"$error":"#N/A"}}]
[null,null,{"$f":"VLOOKUP(B641,Dropdowns!$A$2:$B$49,2,FALSE)","v":{"$error":"#N/A"}},null,null,null,{"$f":"VLOOKUP(F641,Dropdowns!$D$2:$E$31,2,FALSE)","v":{"$error":"#N/A"}}]
[null,null,{"$f":"VLOOKUP(B642,Dropdowns!$A$2:$B$49,2,FALSE)","v":{"$error":"#N/A"}},null,null,null,{"$f":"VLOOKUP(F642,Dropdowns!$D$2:$E$31,2,FALSE)","v":{"$error":"#N/A"}}]
[null,null,{"$f":"VLOOKUP(B643,Dropdowns!$A$2:$B$49,2,FALSE)","v":{"$error":"#N/A"}},null,null,null,{"$f":"VLOOKUP(F643,Dropdowns!$D$2:$E$31,2,FALSE)","v":{"$error":"#N/A"}}]
[null,null,{"$f":"VLOOKUP(B644,Dropdowns!$A$2:$B$49,2,FALSE)","v":{"$error":"#N/A"}},null,null,null,{"$f":"VLOOKUP(F644,Dropdowns!$D$2:$E$31,2,FALSE)","v":{"$error":"#N/A"}}]
[null,null,{"$f":"VLOOKUP(B645,Dropdowns!$A$2:$B$49,2,FALSE)","v":{"$error":"#N/A"}},null,null,null,{"$f":"VLOOKUP(F645,Dropdowns!$D$2:$E$31,2,FALSE)","v":{"$error":"#N/A"}}]
[null,null,{"$f":"VLOOKUP(B646,Dropdowns!$A$2:$B$49,2,FALSE)","v":{"$error":"#N/A"}},null,null,null,{"$f":"VLOOKUP(F646,Dropdowns!$D$2:$E$31,2,FALSE)","v":{"$error":"#N/A"}}]
[null,null,{"$f":"VLOOKUP(B647,Dropdowns!$A$2:$B$49,2,FALSE)","v":{"$error":"#N/A"}},null,null,null,{"$f":"VLOOKUP(F647,Dropdowns!$D$2:$E$31,2,FALSE)","v":{"$error":"#N/A"}}]
[null,null,{"$f":"VLOOKUP(B648,Dropdowns!$A$2:$B$49,2,FALSE)","v":{"$error":"#N/A"}},null,null,null,{"$f":"VLOOKUP(F648,Dropdowns!$D$2:$E$31,2,FALSE)","v":{"$error":"#N/A"}}]
[null,null,{"$f":"VLOOKUP(B649,Dropdowns!$A$2:$B$49,2,FALSE)","v":{"$error":"#N/A"}},null,null,null,{"$f":"VLOOKUP(F649,Dropdowns!$D$2:$E$31,2,FALSE)","v":{"$error":"#N/A"}}]
[null,null,{"$f":"VLOOKUP(B650,Dropdowns!$A$2:$B$49,2,FALSE)","v":{"$error":"#N/A"}},null,null,null,{"$f":"VLOOKUP(F650,Dropdowns!$D$2:$E$31,2,FALSE)","v":{"$error":"#N/A"}}]
[null,null,{"$f":"VLOOKUP(B651,Dropdowns!$A$2:$B$49,2,FALSE)","v":{"$error":"#N/A"}},null,null,null,{"$f":"VLOOKUP(F651,Dropdowns!$D$2:$E$31,2,FALSE)","v":{"$error":"#N/A"}}]
[null,null,{"$f":"VLOOKUP(B652,Dropdowns!$A$2:$B$49,2,FALSE)","v":{"$error":"#N/A"}},null,null,null,{"$f":"VLOOKUP(F652,Dropdowns!$D$2:$E$31,2,FALSE)","v":{"$error":"#N/A"}}]
[null,null,{"$f":"VLOOKUP(B653,Dropdowns!$A$2:$B$49,2,FALSE)","v":{"$error":"#N/A"}},null,null,null,{"$f":"VLOOKUP(F653,Dropdowns!$D$2:$E$31,2,FALSE)","v":{"$error":"#N/A"}}]
[null,null,{"$f":"VLOOKUP(B654,Dropdowns!$A$2:$B$49,2,FALSE)","v":{"$error":"#N/A"}},null,null,null,{"$f":"VLOOKUP(F654,Dropdowns!$D$2:$E$31,2,FALSE)","v":{"$error":"#N/A"}}]
[null,null,{"$f":"VLOOKUP(B655,Dropdowns!$A$2:$B$49,2,FALSE)","v":{"$error":"#N/A"}},null,null,null,{"$f":"VLOOKUP(F655,Dropdowns!$D$2:$E$31,2,FALSE)","v":{"$error":"#N/A"}}]
[null,null,{"$f":"VLOOKUP(B656,Dropdowns!$A$2:$B$49,2,FALSE)","v":{"$error":"#N/A"}},null,null,null,{"$f":"VLOOKUP(F656,Dropdowns!$D$2:$E$31,2,FALSE)","v":{"$error":"#N/A"}}]
[null,null,{"$f":"VLOOKUP(B657,Dropdowns!$A$2:$B$49,2,FALSE)","v":{"$error":"#N/A"}},null,null,null,{"$f":"VLOOKUP(F657,Dropdowns!$D$2:$E$31,2,FALSE)","v":{"$error":"#N/A"}}]
[null,null,{"$f":"VLOOKUP(B658,Dropdowns!$A$2:$B$49,2,FALSE)","v":{"$error":"#N/A"}},null,null,null,{"$f":"VLOOKUP(F658,Dropdowns!$D$2:$E$31,2,FALSE)","v":{"$error":"#N/A"}}]
[null,null,{"$f":"VLOOKUP(B659,Dropdowns!$A$2:$B$49,2,FALSE)","v":{"$error":"#N/A"}},null,null,null,{"$f":"VLOOKUP(F659,Dropdowns!$D$2:$E$31,2,FALSE)","v":{"$error":"#N/A"}}]
[null,null,{"$f":"VLOOKUP(B660,Dropdowns!$A$2:$B$49,2,FALSE)","v":{"$error":"#N/A"}},null,null,null,{"$f":"VLOOKUP(F660,Dropdowns!$D$2:$E$31,2,FALSE)","v":{"$error":"#N/A"}}]
[null,null,{"$f":"VLOOKUP(B661,Dropdowns!$A$2:$B$49,2,FALSE)","v":{"$error":"#N/A"}},null,null,null,{"$f":"VLOOKUP(F661,Dropdowns!$D$2:$E$31,2,FALSE)","v":{"$error":"#N/A"}}]
[null,null,{"$f":"VLOOKUP(B662,Dropdowns!$A$2:$B$49,2,FALSE)","v":{"$error":"#N/A"}},null,null,null,{"$f":"VLOOKUP(F662,Dropdowns!$D$2:$E$31,2,FALSE)","v":{"$error":"#N/A"}}]
[null,null,{"$f":"VLOOKUP(B663,Dropdowns!$A$2:$B$49,2,FALSE)","v":{"$error":"#N/A"}},null,null,null,{"$f":"VLOOKUP(F663,Dropdowns!$D$2:$E$31,2,FALSE)","v":{"$error":"#N/A"}}]
[null,null,{"$f":"VLOOKUP(B664,Dropdowns!$A$2:$B$49,2,FALSE)","v":{"$error":"#N/A"}},null,null,null,{"$f":"VLOOKUP(F664,Dropdowns!$D$2:$E$31,2,FALSE)","v":{"$error":"#N/A"}}]
[null,null,{"$f":"VLOOKUP(B665,Dropdowns!$A$2:$B$49,2,FALSE)","v":{"$error":"#N/A"}},null,null,null,{"$f":"VLOOKUP(F665,Dropdowns!$D$2:$E$31,2,FALSE)","v":{"$error":"#N/A"}}]
[null,null,{"$f":"VLOOKUP(B666,Dropdowns!$A$2:$B$49,2,FALSE)","v":{"$error":"#N/A"}},null,null,null,{"$f":"VLOOKUP(F666,Dropdowns!$D$2:$E$31,2,FALSE)","v":{"$error":"#N/A"}}]
[null,null,{"$f":"VLOOKUP(B667,Dropdowns!$A$2:$B$49,2,FALSE)","v":{"$error":"#N/A"}},null,null,null,{"$f":"VLOOKUP(F667,Dropdowns!$D$2:$E$31,2,FALSE)","v":{"$error":"#N/A"}}]
[null,null,{"$f":"VLOOKUP(B668,Dropdowns!$A$2:$B$49,2,FALSE)","v":{"$error":"#N/A"}},null,null,null,{"$f":"VLOOKUP(F668,Dropdowns!$D$2:$E$31,2,FALSE)","v":{"$error":"#N/A"}}]
[null,null,{"$f":"VLOOKUP(B669,Dropdowns!$A$2:$B$49,2,FALSE)","v":{"$error":"#N/A"}},null,null,null,{"$f":"VLOOKUP(F669,Dropdowns!$D$2:$E$31,2,FALSE)","v":{"$error":"#N/A"}}]
[null,null,{"$f":"VLOOKUP(B670,Dropdowns!$A$2:$B$49,2,FALSE)","v":{"$error":"#N/A"}},null,null,null,{"$f":"VLOOKUP(F670,Dropdowns!$D$2:$E$31,2,FALSE)","v":{"$error":"#N/A"}}]
[null,null,{"$f":"VLOOKUP(B671,Dropdowns!$A$2:$B$49,2,FALSE)","v":{"$error":"#N/A"}},null,null,null,{"$f":"VLOOKUP(F671,Dropdowns!$D$2:$E$31,2,FALSE)","v":{"$error":"#N/A"}}]
[null,null,{"$f":"VLOOKUP(B672,Dropdowns!$A$2:$B$49,2,FALSE)","v":{"$error":"#N/A"}},null,null,null,{"$f":"VLOOKUP(F672,Dropdowns!$D$2:$E$31,2,FALSE)","v":{"$error":"#N/A"}}]
[null,null,{"$f":"VLOOKUP(B673,Dropdowns!$A$2:$B$49,2,FALSE)","v":{"$error":"#N/A"}},null,null,null,{"$f":"VLOOKUP(F673,Dropdowns!$D$2:$E$31,2,FALSE)","v":{"$error":"#N/A"}}]
[null,null,{"$f":"VLOOKUP(B674,Dropdowns!$A$2:$B$49,2,FALSE)","v":{"$error":"#N/A"}},null,null,null,{"$f":"VLOOKUP(F674,Dropdowns!$D$2:$E$31,2,FALSE)","v":{"$error":"#N/A"}}]
[null,null,{"$f":"VLOOKUP(B675,Dropdowns!$A$2:$B$49,2,FALSE)","v":{"$error":"#N/A"}},null,null,null,{"$f":"VLOOKUP(F675,Dropdowns!$D$2:$E$31,2,FALSE)","v":{"$error":"#N/A"}}]
[null,null,{"$f":"VLOOKUP(B676,Dropdowns!$A$2:$B$49,2,FALSE)","v":{"$error":"#N/A"}},null,null,null,{"$f":"VLOOKUP(F676,Dropdowns!$D$2:$E$31,2,FALSE)","v":{"$error":"#N/A"}}]
[null,null,{"$f":"VLOOKUP(B677,Dropdowns!$A$2:$B$49,2,FALSE)","v":{"$error":"#N/A"}},null,null,null,{"$f":"VLOOKUP(F677,Dropdowns!$D$2:$E$31,2,FALSE)","v":{"$error":"#N/A"}}]
[null,null,{"$f":"VLOOKUP(B678,Dropdowns!$A$2:$B$49,2,FALSE)","v":{"$error":"#N/A"}},null,null,null,{"$f":"VLOOKUP(F678,Dropdowns!$D$2:$E$31,2,FALSE)","v":{"$error":"#N/A"}}]
[null,null,{"$f":"VLOOKUP(B679,Dropdowns!$A$2:$B$49,2,FALSE)","v":{"$error":"#N/A"}},null,null,null,{"$f":"VLOOKUP(F679,Dropdowns!$D$2:$E$31,2,FALSE)","v":{"$error":"#N/A"}}]
[null,null,{"$f":"VLOOKUP(B680,Dropdowns!$A$2:$B$49,2,FALSE)","v":{"$error":"#N/A"}},null,null,null,{"$f":"VLOOKUP(F680,Dropdowns!$D$2:$E$31,2,FALSE)","v":{"$error":"#N/A"}}]
[null,null,{"$f":"VLOOKUP(B681,Dropdowns!$A$2:$B$49,2,FALSE)","v":{"$error":"#N/A"}},null,null,null,{"$f":"VLOOKUP(F681,Dropdowns!$D$2:$E$31,2,FALSE)","v":{"$error":"#N/A"}}]
[null,null,{"$f":"VLOOKUP(B682,Dropdowns!$A$2:$B$49,2,FALSE)","v":{"$error":"#N/A"}},null,null,null,{"$f":"VLOOKUP(F682,Dropdowns!$D$2:$E$31,2,FALSE)","v":{"$error":"#N/A"}}]
[null,null,{"$f":"VLOOKUP(B683,Dropdowns!$A$2:$B$49,2,FALSE)","v":{"$error":"#N/A"}},null,null,null,{"$f":"VLOOKUP(F683,Dropdowns!$D$2:$E$31,2,FALSE)","v":{"$error":"#N/A"}}]
[null,null,{"$f":"VLOOKUP(B684,Dropdowns!$A$2:$B$49,2,FALSE)","v":{"$error":"#N/A"}},null,null,null,{"$f":"VLOOKUP(F684,Dropdowns!$D$2:$E$31,2,FALSE)","v":{"$error":"#N/A"}}]
[null,null,{"$f":"VLOOKUP(B685,Dropdowns!$A$2:$B$49,2,FALSE)","v":{"$error":"#N/A"}},null,null,null,{"$f":"VLOOKUP(F685,Dropdowns!$D$2:$E$31,2,FALSE)","v":{"$error":"#N/A"}}]
[null,null,{"$f":"VLOOKUP(B686,Dropdowns!$A$2:$B$49,2,FALSE)","v":{"$error":"#N/A"}},null,null,null,{"$f":"VLOOKUP(F686,Dropdowns!$D$2:$E$31,2,FALSE)","v":{"$error":"#N/A"}}]
[null,null,{"$f":"VLOOKUP(B687,Dropdowns!$A$2:$B$49,2,FALSE)","v":{"$error":"#N/A"}},null,null,null,{"$f":"VLOOKUP(F687,Dropdowns!$D$2:$E$31,2,FALSE)","v":{"$error":"#N/A"}}]
[null,null,{"$f":"VLOOKUP(B688,Dropdowns!$A$2:$B$49,2,FALSE)","v":{"$error":"#N/A"}},null,null,null,{"$f":"VLOOKUP(F688,Dropdowns!$D$2:$E$31,2,FALSE)","v":{"$error":"#N/A"}}]
[null,null,{"$f":"VLOOKUP(B689,Dropdowns!$A$2:$B$49,2,FALSE)","v":{"$error":"#N/A"}},null,null,null,{"$f":"VLOOKUP(F689,Dropdowns!$D$2:$E$31,2,FALSE)","v":{"$error":"#N/A"}}]
[null,null,{"$f":"VLOOKUP(B690,Dropdowns!$A$2:$B$49,2,FALSE)","v":{"$error":"#N/A"}},null,null,null,{"$f":"VLOOKUP(F690,Dropdowns!$D$2:$E$31,2,FALSE)","v":{"$error":"#N/A"}}]
[null,null,{"$f":"VLOOKUP(B691,Dropdowns!$A$2:$B$49,2,FALSE)","v":{"$error":"#N/A"}},null,null,null,{"$f":"VLOOKUP(F691,Dropdowns!$D$2:$E$31,2,FALSE)","v":{"$error":"#N/A"}}]
[null,null,{"$f":"VLOOKUP(B692,Dropdowns!$A$2:$B$49,2,FALSE)","v":{"$error":"#N/A"}},null,null,null,{"$f":"VLOOKUP(F692,Dropdowns!$D$2:$E$31,2,FALSE)","v":{"$error":"#N/A"}}]
[null,null,{"$f":"VLOOKUP(B693,Dropdowns!$A$2:$B$49,2,FALSE)","v":{"$error":"#N/A"}},null,null,null,{"$f":"VLOOKUP(F693,Dropdowns!$D$2:$E$31,2,FALSE)","v":{"$error":"#N/A"}}]
[null,null,{"$f":"VLOOKUP(B694,Dropdowns!$A$2:$B$49,2,FALSE)","v":{"$error":"#N/A"}},null,null,null,{"$f":"VLOOKUP(F694,Dropdowns!$D$2:$E$31,2,FALSE)","v":{"$error":"#N/A"}}]
[null,null,{"$f":"VLOOKUP(B695,Dropdowns!$A$2:$B$49,2,FALSE)","v":{"$error":"#N/A"}},null,null,null,{"$f":"VLOOKUP(F695,Dropdowns!$D$2:$E$31,2,FALSE)","v":{"$error":"#N/A"}}]
[null,null,{"$f":"VLOOKUP(B696,Dropdowns!$A$2:$B$49,2,FALSE)","v":{"$error":"#N/A"}},null,null,null,{"$f":"VLOOKUP(F696,Dropdowns!$D$2:$E$31,2,FALSE)","v":{"$error":"#N/A"}}]
[null,null,{"$f":"VLOOKUP(B697,Dropdowns!$A$2:$B$49,2,FALSE)","v":{"$error":"#N/A"}},null,null,null,{"$f":"VLOOKUP(F697,Dropdowns!$D$2:$E$31,2,FALSE)","v":{"$error":"#N/A"}}]
[null,null,{"$f":"VLOOKUP(B698,Dropdowns!$A$2:$B$49,2,FALSE)","v":{"$error":"#N/A"}},null,null,null,{"$f":"VLOOKUP(F698,Dropdowns!$D$2:$E$31,2,FALSE)","v":{"$error":"#N/A"}}]
[null,null,{"$f":"VLOOKUP(B699,Dropdowns!$A$2:$B$49,2,FALSE)","v":{"$error":"#N/A"}},null,null,null,{"$f":"VLOOKUP(F699,Dropdowns!$D$2:$E$31,2,FALSE)","v":{"$error":"#N/A"}}]
[null,null,{"$f":"VLOOKUP(B700,Dropdowns!$A$2:$B$49,2,FALSE)","v":{"$error":"#N/A"}},null,null,null,{"$f":"VLOOKUP(F700,Dropdowns!$D$2:$E$31,2,FALSE)","v":{"$error":"#N/A"}}]
[null,null,{"$f":"VLOOKUP(B701,Dropdowns!$A$2:$B$49,2,FALSE)","v":{"$error":"#N/A"}},null,null,null,{"$f":"VLOOKUP(F701,Dropdowns!$D$2:$E$31,2,FALSE)","v":{"$error":"#N/A"}}]
[null,null,{"$f":"VLOOKUP(B702,Dropdowns!$A$2:$B$49,2,FALSE)","v":{"$error":"#N/A"}},null,null,null,{"$f":"VLOOKUP(F702,Dropdowns!$D$2:$E$31,2,FALSE)","v":{"$error":"#N/A"}}]
[null,null,{"$f":"VLOOKUP(B703,Dropdowns!$A$2:$B$49,2,FALSE)","v":{"$error":"#N/A"}},null,null,null,{"$f":"VLOOKUP(F703,Dropdowns!$D$2:$E$31,2,FALSE)","v":{"$error":"#N/A"}}]
[null,null,{"$f":"VLOOKUP(B704,Dropdowns!$A$2:$B$49,2,FALSE)","v":{"$error":"#N/A"}},null,null,null,{"$f":"VLOOKUP(F704,Dropdowns!$D$2:$E$31,2,FALSE)","v":{"$error":"#N/A"}}]
[null,null,{"$f":"VLOOKUP(B705,Dropdowns!$A$2:$B$49,2,FALSE)","v":{"$error":"#N/A"}},null,null,null,{"$f":"VLOOKUP(F705,Dropdowns!$D$2:$E$31,2,FALSE)","v":{"$error":"#N/A"}}]
[null,null,{"$f":"VLOOKUP(B706,Dropdowns!$A$2:$B$49,2,FALSE)","v":{"$error":"#N/A"}},null,null,null,{"$f":"VLOOKUP(F706,Dropdowns!$D$2:$E$31,2,FALSE)","v":{"$error":"#N/A"}}]
[null,null,{"$f":"VLOOKUP(B707,Dropdowns!$A$2:$B$49,2,FALSE)","v":{"$error":"#N/A"}},null,null,null,{"$f":"VLOOKUP(F707,Dropdowns!$D$2:$E$31,2,FALSE)","v":{"$error":"#N/A"}}]
[null,null,{"$f":"VLOOKUP(B708,Dropdowns!$A$2:$B$49,2,FALSE)","v":{"$error":"#N/A"}},null,null,null,{"$f":"VLOOKUP(F708,Dropdowns!$D$2:$E$31,2,FALSE)","v":{"$error":"#N/A"}}]
[null,null,{"$f":"VLOOKUP(B709,Dropdowns!$A$2:$B$49,2,FALSE)","v":{"$error":"#N/A"}},null,null,null,{"$f":"VLOOKUP(F709,Dropdowns!$D$2:$E$31,2,FALSE)","v":{"$error":"#N/A"}}]
[null,null,{"$f":"VLOOKUP(B710,Dropdowns!$A$2:$B$49,2,FALSE)","v":{"$error":"#N/A"}},null,null,null,{"$f":"VLOOKUP(F710,Dropdowns!$D$2:$E$31,2,FALSE)","v":{"$error":"#N/A"}}]
[null,null,{"$f":"VLOOKUP(B711,Dropdowns!$A$2:$B$49,2,FALSE)","v":{"$error":"#N/A"}},null,null,null,{"$f":"VLOOKUP(F711,Dropdowns!$D$2:$E$31,2,FALSE)","v":{"$error":"#N/A"}}]
[null,null,{"$f":"VLOOKUP(B712,Dropdowns!$A$2:$B$49,2,FALSE)","v":{"$error":"#N/A"}},null,null,null,{"$f":"VLOOKUP(F712,Dropdowns!$D$2:$E$31,2,FALSE)","v":{"$error":"#N/A"}}]
[null,null,{"$f":"VLOOKUP(B713,Dropdowns!$A$2:$B$49,2,FALSE)","v":{"$error":"#N/A"}},null,null,null,{"$f":"VLOOKUP(F713,Dropdowns!$D$2:$E$31,2,FALSE)","v":{"$error":"#N/A"}}]
[null,null,{"$f":"VLOOKUP(B714,Dropdowns!$A$2:$B$49,2,FALSE)","v":{"$error":"#N/A"}},null,null,null,{"$f":"VLOOKUP(F714,Dropdowns!$D$2:$E$31,2,FALSE)","v":{"$error":"#N/A"}}]
[null,null,{"$f":"VLOOKUP(B715,Dropdowns!$A$2:$B$49,2,FALSE)","v":{"$error":"#N/A"}},null,null,null,{"$f":"VLOOKUP(F715,Dropdowns!$D$2:$E$31,2,FALSE)","v":{"$error":"#N/A"}}]
[null,null,{"$f":"VLOOKUP(B716,Dropdowns!$A$2:$B$49,2,FALSE)","v":{"$error":"#N/A"}},null,null,null,{"$f":"VLOOKUP(F716,Dropdowns!$D$2:$E$31,2,FALSE)","v":{"$error":"#N/A"}}]
[null,null,{"$f":"VLOOKUP(B717,Dropdowns!$A$2:$B$49,2,FALSE)","v":{"$error":"#N/A"}},null,null,null,{"$f":"VLOOKUP(F717,Dropdowns!$D$2:$E$31,2,FALSE)","v":{"$error":"#N/A"}}]
[null,null,{"$f":"VLOOKUP(B718,Dropdowns!$A$2:$B$49,2,FALSE)","v":{"$error":"#N/A"}},null,null,null,{"$f":"VLOOKUP(F718,Dropdowns!$D$2:$E$31,2,FALSE)","v":{"$error":"#N/A"}}]
[null,null,{"$f":"VLOOKUP(B719,Dropdowns!$A$2:$B$49,2,FALSE)","v":{"$error":"#N/A"}},null,null,null,{"$f":"VLOOKUP(F719,Dropdowns!$D$2:$E$31,2,FALSE)","v":{"$error":"#N/A"}}]
[null,null,{"$f":"VLOOKUP(B720,Dropdowns!$A$2:$B$49,2,FALSE)","v":{"$error":"#N/A"}},null,null,null,{"$f":"VLOOKUP(F720,Dropdowns!$D$2:$E$31,2,FALSE)","v":{"$error":"#N/A"}}]
[null,null,{"$f":"VLOOKUP(B721,Dropdowns!$A$2:$B$49,2,FALSE)","v":{"$error":"#N/A"}},null,null,null,{"$f":"VLOOKUP(F721,Dropdowns!$D$2:$E$31,2,FALSE)","v":{"$error":"#N/A"}}]
[null,null,{"$f":"VLOOKUP(B722,Dropdowns!$A$2:$B$49,2,FALSE)","v":{"$error":"#N/A"}},null,null,null,{"$f":"VLOOKUP(F722,Dropdowns!$D$2:$E$31,2,FALSE)","v":{"$error":"#N/A"}}]
[null,null,{"$f":"VLOOKUP(B723,Dropdowns!$A$2:$B$49,2,FALSE)","v":{"$error":"#N/A"}},null,null,null,{"$f":"VLOOKUP(F723,Dropdowns!$D$2:$E$31,2,FALSE)","v":{"$error":"#N/A"}}]
[null,null,{"$f":"VLOOKUP(B724,Dropdowns!$A$2:$B$49,2,FALSE)","v":{"$error":"#N/A"}},null,null,null,{"$f":"VLOOKUP(F724,Dropdowns!$D$2:$E$31,2,FALSE)","v":{"$error":"#N/A"}}]
[null,null,{"$f":"VLOOKUP(B725,Dropdowns!$A$2:$B$49,2,FALSE)","v":{"$error":"#N/A"}},null,null,null,{"$f":"VLOOKUP(F725,Dropdowns!$D$2:$E$31,2,FALSE)","v":{"$error":"#N/A"}}]
[null,null,{"$f":"VLOOKUP(B726,Dropdowns!$A$2:$B$49,2,FALSE)","v":{"$error":"#N/A"}},null,null,null,{"$f":"VLOOKUP(F726,Dropdowns!$D$2:$E$31,2,FALSE)","v":{"$error":"#N/A"}}]
[null,null,{"$f":"VLOOKUP(B727,Dropdowns!$A$2:$B$49,2,FALSE)","v":{"$error":"#N/A"}},null,null,null,{"$f":"VLOOKUP(F727,Dropdowns!$D$2:$E$31,2,FALSE)","v":{"$error":"#N/A"}}]
[null,null,{"$f":"VLOOKUP(B728,Dropdowns!$A$2:$B$49,2,FALSE)","v":{"$error":"#N/A"}},null,null,null,{"$f":"VLOOKUP(F728,Dropdowns!$D$2:$E$31,2,FALSE)","v":{"$error":"#N/A"}}]
[null,null,{"$f":"VLOOKUP(B729,Dropdowns!$A$2:$B$49,2,FALSE)","v":{"$error":"#N/A"}},null,null,null,{"$f":"VLOOKUP(F729,Dropdowns!$D$2:$E$31,2,FALSE)","v":{"$error":"#N/A"}}]
[null,null,{"$f":"VLOOKUP(B730,Dropdowns!$A$2:$B$49,2,FALSE)","v":{"$error":"#N/A"}},null,null,null,{"$f":"VLOOKUP(F730,Dropdowns!$D$2:$E$31,2,FALSE)","v":{"$error":"#N/A"}}]
[null,null,{"$f":"VLOOKUP(B731,Dropdowns!$A$2:$B$49,2,FALSE)","v":{"$error":"#N/A"}},null,null,null,{"$f":"VLOOKUP(F731,Dropdowns!$D$2:$E$31,2,FALSE)","v":{"$error":"#N/A"}}]
[null,null,{"$f":"VLOOKUP(B732,Dropdowns!$A$2:$B$49,2,FALSE)","v":{"$error":"#N/A"}},null,null,null,{"$f":"VLOOKUP(F732,Dropdowns!$D$2:$E$31,2,FALSE)","v":{"$error":"#N/A"}}]
[null,null,{"$f":"VLOOKUP(B733,Dropdowns!$A$2:$B$49,2,FALSE)","v":{"$error":"#N/A"}},null,null,null,{"$f":"VLOOKUP(F733,Dropdowns!$D$2:$E$31,2,FALSE)","v":{"$error":"#N/A"}}]
[null,null,{"$f":"VLOOKUP(B734,Dropdowns!$A$2:$B$49,2,FALSE)","v":{"$error":"#N/A"}},null,null,null,{"$f":"VLOOKUP(F734,Dropdowns!$D$2:$E$31,2,FALSE)","v":{"$error":"#N/A"}}]
[null,null,{"$f":"VLOOKUP(B735,Dropdowns!$A$2:$B$49,2,FALSE)","v":{"$error":"#N/A"}},null,null,null,{"$f":"VLOOKUP(F735,Dropdowns!$D$2:$E$31,2,FALSE)","v":{"$error":"#N/A"}}]
[null,null,{"$f":"VLOOKUP(B736,Dropdowns!$A$2:$B$49,2,FALSE)","v":{"$error":"#N/A"}},null,null,null,{"$f":"VLOOKUP(F736,Dropdowns!$D$2:$E$31,2,FALSE)","v":{"$error":"#N/A"}}]
[null,null,{"$f":"VLOOKUP(B737,Dropdowns!$A$2:$B$49,2,FALSE)","v":{"$error":"#N/A"}},null,null,null,{"$f":"VLOOKUP(F737,Dropdowns!$D$2:$E$31,2,FALSE)","v":{"$error":"#N/A"}}]
[null,null,{"$f":"VLOOKUP(B738,Dropdowns!$A$2:$B$49,2,FALSE)","v":{"$error":"#N/A"}},null,null,null,{"$f":"VLOOKUP(F738,Dropdowns!$D$2:$E$31,2,FALSE)","v":{"$error":"#N/A"}}]
[null,null,{"$f":"VLOOKUP(B739,Dropdowns!$A$2:$B$49,2,FALSE)","v":{"$error":"#N/A"}},null,null,null,{"$f":"VLOOKUP(F739,Dropdowns!$D$2:$E$31,2,FALSE)","v":{"$error":"#N/A"}}]
[null,null,{"$f":"VLOOKUP(B740,Dropdowns!$A$2:$B$49,2,FALSE)","v":{"$error":"#N/A"}},null,null,null,{"$f":"VLOOKUP(F740,Dropdowns!$D$2:$E$31,2,FALSE)","v":{"$error":"#N/A"}}]
[null,null,{"$f":"VLOOKUP(B741,Dropdowns!$A$2:$B$49,2,FALSE)","v":{"$error":"#N/A"}},null,null,null,{"$f":"VLOOKUP(F741,Dropdowns!$D$2:$E$31,2,FALSE)","v":{"$error":"#N/A"}}]
[null,null,{"$f":"VLOOKUP(B742,Dropdowns!$A$2:$B$49,2,FALSE)","v":{"$error":"#N/A"}},null,null,null,{"$f":"VLOOKUP(F742,Dropdowns!$D$2:$E$31,2,FALSE)","v":{"$error":"#N/A"}}]
[null,null,{"$f":"VLOOKUP(B743,Dropdowns!$A$2:$B$49,2,FALSE)","v":{"$error":"#N/A"}},null,null,null,{"$f":"VLOOKUP(F743,Dropdowns!$D$2:$E$31,2,FALSE)","v":{"$error":"#N/A"}}]
[null,null,{"$f":"VLOOKUP(B744,Dropdowns!$A$2:$B$49,2,FALSE)","v":{"$error":"#N/A"}},null,null,null,{"$f":"VLOOKUP(F744,Dropdowns!$D$2:$E$31,2,FALSE)","v":{"$error":"#N/A"}}]
[null,null,{"$f":"VLOOKUP(B745,Dropdowns!$A$2:$B$49,2,FALSE)","v":{"$error":"#N/A"}},null,null,null,{"$f":"VLOOKUP(F745,Dropdowns!$D$2:$E$31,2,FALSE)","v":{"$error":"#N/A"}}]
[null,null,{"$f":"VLOOKUP(B746,Dropdowns!$A$2:$B$49,2,FALSE)","v":{"$error":"#N/A"}},null,null,null,{"$f":"VLOOKUP(F746,Dropdowns!$D$2:$E$31,2,FALSE)","v":{"$error":"#N/A"}}]
[null,null,{"$f":"VLOOKUP(B747,Dropdowns!$A$2:$B$49,2,FALSE)","v":{"$error":"#N/A"}},null,null,null,{"$f":"VLOOKUP(F747,Dropdowns!$D$2:$E$31,2,FALSE)","v":{"$error":"#N/A"}}]
[null,null,{"$f":"VLOOKUP(B748,Dropdowns!$A$2:$B$49,2,FALSE)","v":{"$error":"#N/A"}},null,null,null,{"$f":"VLOOKUP(F748,Dropdowns!$D$2:$E$31,2,FALSE)","v":{"$error":"#N/A"}}]
[null,null,{"$f":"VLOOKUP(B749,Dropdowns!$A$2:$B$49,2,FALSE)","v":{"$error":"#N/A"}},null,null,null,{"$f":"VLOOKUP(F749,Dropdowns!$D$2:$E$31,2,FALSE)","v":{"$error":"#N/A"}}]
[null,null,{"$f":"VLOOKUP(B750,Dropdowns!$A$2:$B$49,2,FALSE)","v":{"$error":"#N/A"}},null,null,null,{"$f":"VLOOKUP(F750,Dropdowns!$D$2:$E$31,2,FALSE)","v":{"$error":"#N/A"}}]
[null,null,{"$f":"VLOOKUP(B751,Dropdowns!$A$2:$B$49,2,FALSE)","v":{"$error":"#N/A"}},null,null,null,{"$f":"VLOOKUP(F751,Dropdowns!$D$2:$E$31,2,FALSE)","v":{"$error":"#N/A"}}]
[null,null,{"$f":"VLOOKUP(B752,Dropdowns!$A$2:$B$49,2,FALSE)","v":{"$error":"#N/A"}},null,null,null,{"$f":"VLOOKUP(F752,Dropdowns!$D$2:$E$31,2,FALSE)","v":{"$error":"#N/A"}}]
[null,null,{"$f":"VLOOKUP(B753,Dropdowns!$A$2:$B$49,2,FALSE)","v":{"$error":"#N/A"}},null,null,null,{"$f":"VLOOKUP(F753,Dropdowns!$D$2:$E$31,2,FALSE)","v":{"$error":"#N/A"}}]
[null,null,{"$f":"VLOOKUP(B754,Dropdowns!$A$2:$B$49,2,FALSE)","v":{"$error":"#N/A"}},null,null,null,{"$f":"VLOOKUP(F754,Dropdowns!$D$2:$E$31,2,FALSE)","v":{"$error":"#N/A"}}]
[null,null,{"$f":"VLOOKUP(B755,Dropdowns!$A$2:$B$49,2,FALSE)","v":{"$error":"#N/A"}},null,null,null,{"$f":"VLOOKUP(F755,Dropdowns!$D$2:$E$31,2,FALSE)","v":{"$error":"#N/A"}}]
[null,null,{"$f":"VLOOKUP(B756,Dropdowns!$A$2:$B$49,2,FALSE)","v":{"$error":"#N/A"}},null,null,null,{"$f":"VLOOKUP(F756,Dropdowns!$D$2:$E$31,2,FALSE)","v":{"$error":"#N/A"}}]
[null,null,{"$f":"VLOOKUP(B757,Dropdowns!$A$2:$B$49,2,FALSE)","v":{"$error":"#N/A"}},null,null,null,{"$f":"VLOOKUP(F757,Dropdowns!$D$2:$E$31,2,FALSE)","v":{"$error":"#N/A"}}]
[null,null,{"$f":"VLOOKUP(B758,Dropdowns!$A$2:$B$49,2,FALSE)","v":{"$error":"#N/A"}},null,null,null,{"$f":"VLOOKUP(F758,Dropdowns!$D$2:$E$31,2,FALSE)","v":{"$error":"#N/A"}}]
[null,null,{"$f":"VLOOKUP(B759,Dropdowns!$A$2:$B$49,2,FALSE)","v":{"$error":"#N/A"}},null,null,null,{"$f":"VLOOKUP(F759,Dropdowns!$D$2:$E$31,2,FALSE)","v":{"$error":"#N/A"}}]
[null,null,{"$f":"VLOOKUP(B760,Dropdowns!$A$2:$B$49,2,FALSE)","v":{"$error":"#N/A"}},null,null,null,{"$f":"VLOOKUP(F760,Dropdowns!$D$2:$E$31,2,FALSE)","v":{"$error":"#N/A"}}]
[null,null,{"$f":"VLOOKUP(B761,Dropdowns!$A$2:$B$49,2,FALSE)","v":{"$error":"#N/A"}},null,null,null,{"$f":"VLOOKUP(F761,Dropdowns!$D$2:$E$31,2,FALSE)","v":{"$error":"#N/A"}}]
[null,null,{"$f":"VLOOKUP(B762,Dropdowns!$A$2:$B$49,2,FALSE)","v":{"$error":"#N/A"}},null,null,null,{"$f":"VLOOKUP(F762,Dropdowns!$D$2:$E$31,2,FALSE)","v":{"$error":"#N/A"}}]
[null,null,{"$f":"VLOOKUP(B763,Dropdowns!$A$2:$B$49,2,FALSE)","v":{"$error":"#N/A"}},null,null,null,{"$f":"VLOOKUP(F763,Dropdowns!$D$2:$E$31,2,FALSE)","v":{"$error":"#N/A"}}]
[null,null,{"$f":"VLOOKUP(B764,Dropdowns!$A$2:$B$49,2,FALSE)","v":{"$error":"#N/A"}},null,null,null,{"$f":"VLOOKUP(F764,Dropdowns!$D$2:$E$31,2,FALSE)","v":{"$error":"#N/A"}}]
[null,null,{"$f":"VLOOKUP(B765,Dropdowns!$A$2:$B$49,2,FALSE)","v":{"$error":"#N/A"}},null,null,null,{"$f":"VLOOKUP(F765,Dropdowns!$D$2:$E$31,2,FALSE)","v":{"$error":"#N/A"}}]
[null,null,{"$f":"VLOOKUP(B766,Dropdowns!$A$2:$B$49,2,FALSE)","v":{"$error":"#N/A"}},null,null,null,{"$f":"VLOOKUP(F766,Dropdowns!$D$2:$E$31,2,FALSE)","v":{"$error":"#N/A"}}]
[null,null,{"$f":"VLOOKUP(B767,Dropdowns!$A$2:$B$49,2,FALSE)","v":{"$error":"#N/A"}},null,null,null,{"$f":"VLOOKUP(F767,Dropdowns!$D$2:$E$31,2,FALSE)","v":{"$error":"#N/A"}}]
[null,null,{"$f":"VLOOKUP(B768,Dropdowns!$A$2:$B$49,2,FALSE)","v":{"$error":"#N/A"}},null,null,null,{"$f":"VLOOKUP(F768,Dropdowns!$D$2:$E$31,2,FALSE)","v":{"$error":"#N/A"}}]
[null,null,{"$f":"VLOOKUP(B769,Dropdowns!$A$2:$B$49,2,FALSE)","v":{"$error":"#N/A"}},null,null,null,{"$f":"VLOOKUP(F769,Dropdowns!$D$2:$E$31,2,FALSE)","v":{"$error":"#N/A"}}]
[null,null,{"$f":"VLOOKUP(B770,Dropdowns!$A$2:$B$49,2,FALSE)","v":{"$error":"#N/A"}},null,null,null,{"$f":"VLOOKUP(F770,Dropdowns!$D$2:$E$31,2,FALSE)","v":{"$error":"#N/A"}}]
[null,null,{"$f":"VLOOKUP(B771,Dropdowns!$A$2:$B$49,2,FALSE)","v":{"$error":"#N/A"}},null,null,null,{"$f":"VLOOKUP(F771,Dropdowns!$D$2:$E$31,2,FALSE)","v":{"$error":"#N/A"}}]
[null,null,{"$f":"VLOOKUP(B772,Dropdowns!$A$2:$B$49,2,FALSE)","v":{"$error":"#N/A"}},null,null,null,{"$f":"VLOOKUP(F772,Dropdowns!$D$2:$E$31,2,FALSE)","v":{"$error":"#N/A"}}]
[null,null,{"$f":"VLOOKUP(B773,Dropdowns!$A$2:$B$49,2,FALSE)","v":{"$error":"#N/A"}},null,null,null,{"$f":"VLOOKUP(F773,Dropdowns!$D$2:$E$31,2,FALSE)","v":{"$error":"#N/A"}}]
[null,null,{"$f":"VLOOKUP(B774,Dropdowns!$A$2:$B$49,2,FALSE)","v":{"$error":"#N/A"}},null,null,null,{"$f":"VLOOKUP(F774,Dropdowns!$D$2:$E$31,2,FALSE)","v":{"$error":"#N/A"}}]
[null,null,{"$f":"VLOOKUP(B775,Dropdowns!$A$2:$B$49,2,FALSE)","v":{"$error":"#N/A"}},null,null,null,{"$f":"VLOOKUP(F775,Dropdowns!$D$2:$E$31,2,FALSE)","v":{"$error":"#N/A"}}]
[null,null,{"$f":"VLOOKUP(B776,Dropdowns!$A$2:$B$49,2,FALSE)","v":{"$error":"#N/A"}},null,null,null,{"$f":"VLOOKUP(F776,Dropdowns!$D$2:$E$31,2,FALSE)","v":{"$error":"#N/A"}}]
[null,null,{"$f":"VLOOKUP(B777,Dropdowns!$A$2:$B$49,2,FALSE)","v":{"$error":"#N/A"}},null,null,null,{"$f":"VLOOKUP(F777,Dropdowns!$D$2:$E$31,2,FALSE)","v":{"$error":"#N/A"}}]
[null,null,{"$f":"VLOOKUP(B778,Dropdowns!$A$2:$B$49,2,FALSE)","v":{"$error":"#N/A"}},null,null,null,{"$f":"VLOOKUP(F778,Dropdowns!$D$2:$E$31,2,FALSE)","v":{"$error":"#N/A"}}]
[null,null,{"$f":"VLOOKUP(B779,Dropdowns!$A$2:$B$49,2,FALSE)","v":{"$error":"#N/A"}},null,null,null,{"$f":"VLOOKUP(F779,Dropdowns!$D$2:$E$31,2,FALSE)","v":{"$error":"#N/A"}}]
[null,null,{"$f":"VLOOKUP(B780,Dropdowns!$A$2:$B$49,2,FALSE)","v":{"$error":"#N/A"}},null,null,null,{"$f":"VLOOKUP(F780,Dropdowns!$D$2:$E$31,2,FALSE)","v":{"$error":"#N/A"}}]
[null,null,{"$f":"VLOOKUP(B781,Dropdowns!$A$2:$B$49,2,FALSE)","v":{"$error":"#N/A"}},null,null,null,{"$f":"VLOOKUP(F781,Dropdowns!$D$2:$E$31,2,FALSE)","v":{"$error":"#N/A"}}]
[null,null,{"$f":"VLOOKUP(B782,Dropdowns!$A$2:$B$49,2,FALSE)","v":{"$error":"#N/A"}},null,null,null,{"$f":"VLOOKUP(F782,Dropdowns!$D$2:$E$31,2,FALSE)","v":{"$error":"#N/A"}}]
[null,null,{"$f":"VLOOKUP(B783,Dropdowns!$A$2:$B$49,2,FALSE)","v":{"$error":"#N/A"}},null,null,null,{"$f":"VLOOKUP(F783,Dropdowns!$D$2:$E$31,2,FALSE)","v":{"$error":"#N/A"}}]
[null,null,{"$f":"VLOOKUP(B784,Dropdowns!$A$2:$B$49,2,FALSE)","v":{"$error":"#N/A"}},null,null,null,{"$f":"VLOOKUP(F784,Dropdowns!$D$2:$E$31,2,FALSE)","v":{"$error":"#N/A"}}]
[null,null,{"$f":"VLOOKUP(B785,Dropdowns!$A$2:$B$49,2,FALSE)","v":{"$error":"#N/A"}},null,null,null,{"$f":"VLOOKUP(F785,Dropdowns!$D$2:$E$31,2,FALSE)","v":{"$error":"#N/A"}}]
[null,null,{"$f":"VLOOKUP(B786,Dropdowns!$A$2:$B$49,2,FALSE)","v":{"$error":"#N/A"}},null,null,null,{"$f":"VLOOKUP(F786,Dropdowns!$D$2:$E$31,2,FALSE)","v":{"$error":"#N/A"}}]
[null,null,{"$f":"VLOOKUP(B787,Dropdowns!$A$2:$B$49,2,FALSE)","v":{"$error":"#N/A"}},null,null,null,{"$f":"VLOOKUP(F787,Dropdowns!$D$2:$E$31,2,FALSE)","v":{"$error":"#N/A"}}]
[null,null,{"$f":"VLOOKUP(B788,Dropdowns!$A$2:$B$49,2,FALSE)","v":{"$error":"#N/A"}},null,null,null,{"$f":"VLOOKUP(F788,Dropdowns!$D$2:$E$31,2,FALSE)","v":{"$error":"#N/A"}}]
[null,null,{"$f":"VLOOKUP(B789,Dropdowns!$A$2:$B$49,2,FALSE)","v":{"$error":"#N/A"}},null,null,null,{"$f":"VLOOKUP(F789,Dropdowns!$D$2:$E$31,2,FALSE)","v":{"$error":"#N/A"}}]
[null,null,{"$f":"VLOOKUP(B790,Dropdowns!$A$2:$B$49,2,FALSE)","v":{"$error":"#N/A"}},null,null,null,{"$f":"VLOOKUP(F790,Dropdowns!$D$2:$E$31,2,FALSE)","v":{"$error":"#N/A"}}]
[null,null,{"$f":"VLOOKUP(B791,Dropdowns!$A$2:$B$49,2,FALSE)","v":{"$error":"#N/A"}},null,null,null,{"$f":"VLOOKUP(F791,Dropdowns!$D$2:$E$31,2,FALSE)","v":{"$error":"#N/A"}}]
[null,null,{"$f":"VLOOKUP(B792,Dropdowns!$A$2:$B$49,2,FALSE)","v":{"$error":"#N/A"}},null,null,null,{"$f":"VLOOKUP(F792,Dropdowns!$D$2:$E$31,2,FALSE)","v":{"$error":"#N/A"}}]
[null,null,{"$f":"VLOOKUP(B793,Dropdowns!$A$2:$B$49,2,FALSE)","v":{"$error":"#N/A"}},null,null,null,{"$f":"VLOOKUP(F793,Dropdowns!$D$2:$E$31,2,FALSE)","v":{"$error":"#N/A"}}]
[null,null,{"$f":"VLOOKUP(B794,Dropdowns!$A$2:$B$49,2,FALSE)","v":{"$error":"#N/A"}},null,null,null,{"$f":"VLOOKUP(F794,Dropdowns!$D$2:$E$31,2,FALSE)","v":{"$error":"#N/A"}}]
[null,null,{"$f":"VLOOKUP(B795,Dropdowns!$A$2:$B$49,2,FALSE)","v":{"$error":"#N/A"}},null,null,null,{"$f":"VLOOKUP(F795,Dropdowns!$D$2:$E$31,2,FALSE)","v":{"$error":"#N/A"}}]
[null,null,{"$f":"VLOOKUP(B796,Dropdowns!$A$2:$B$49,2,FALSE)","v":{"$error":"#N/A"}},null,null,null,{"$f":"VLOOKUP(F796,Dropdowns!$D$2:$E$31,2,FALSE)","v":{"$error":"#N/A"}}]
[null,null,{"$f":"VLOOKUP(B797,Dropdowns!$A$2:$B$49,2,FALSE)","v":{"$error":"#N/A"}},null,null,null,{"$f":"VLOOKUP(F797,Dropdowns!$D$2:$E$31,2,FALSE)","v":{"$error":"#N/A"}}]
[null,null,{"$f":"VLOOKUP(B798,Dropdowns!$A$2:$B$49,2,FALSE)","v":{"$error":"#N/A"}},null,null,null,{"$f":"VLOOKUP(F798,Dropdowns!$D$2:$E$31,2,FALSE)","v":{"$error":"#N/A"}}]
[null,null,{"$f":"VLOOKUP(B799,Dropdowns!$A$2:$B$49,2,FALSE)","v":{"$error":"#N/A"}},null,null,null,{"$f":"VLOOKUP(F799,Dropdowns!$D$2:$E$31,2,FALSE)","v":{"$error":"#N/A"}}]
[null,null,{"$f":"VLOOKUP(B800,Dropdowns!$A$2:$B$49,2,FALSE)","v":{"$error":"#N/A"}},null,null,null,{"$f":"VLOOKUP(F800,Dropdowns!$D$2:$E$31,2,FALSE)","v":{"$error":"#N/A"}}]
[null,null,{"$f":"VLOOKUP(B801,Dropdowns!$A$2:$B$49,2,FALSE)","v":{"$error":"#N/A"}},null,null,null,{"$f":"VLOOKUP(F801,Dropdowns!$D$2:$E$31,2,FALSE)","v":{"$error":"#N/A"}}]
[null,null,{"$f":"VLOOKUP(B802,Dropdowns!$A$2:$B$49,2,FALSE)","v":{"$error":"#N/A"}},null,null,null,{"$f":"VLOOKUP(F802,Dropdowns!$D$2:$E$31,2,FALSE)","v":{"$error":"#N/A"}}]
[null,null,{"$f":"VLOOKUP(B803,Dropdowns!$A$2:$B$49,2,FALSE)","v":{"$error":"#N/A"}},null,null,null,{"$f":"VLOOKUP(F803,Dropdowns!$D$2:$E$31,2,FALSE)","v":{"$error":"#N/A"}}]
[null,null,{"$f":"VLOOKUP(B804,Dropdowns!$A$2:$B$49,2,FALSE)","v":{"$error":"#N/A"}},null,null,null,{"$f":"VLOOKUP(F804,Dropdowns!$D$2:$E$31,2,FALSE)","v":{"$error":"#N/A"}}]
[null,null,{"$f":"VLOOKUP(B805,Dropdowns!$A$2:$B$49,2,FALSE)","v":{"$error":"#N/A"}},null,null,null,{"$f":"VLOOKUP(F805,Dropdowns!$D$2:$E$31,2,FALSE)","v":{"$error":"#N/A"}}]
[null,null,{"$f":"VLOOKUP(B806,Dropdowns!$A$2:$B$49,2,FALSE)","v":{"$error":"#N/A"}},null,null,null,{"$f":"VLOOKUP(F806,Dropdowns!$D$2:$E$31,2,FALSE)","v":{"$error":"#N/A"}}]
[null,null,{"$f":"VLOOKUP(B807,Dropdowns!$A$2:$B$49,2,FALSE)","v":{"$error":"#N/A"}},null,null,null,{"$f":"VLOOKUP(F807,Dropdowns!$D$2:$E$31,2,FALSE)","v":{"$error":"#N/A"}}]
[null,null,{"$f":"VLOOKUP(B808,Dropdowns!$A$2:$B$49,2,FALSE)","v":{"$error":"#N/A"}},null,null,null,{"$f":"VLOOKUP(F808,Dropdowns!$D$2:$E$31,2,FALSE)","v":{"$error":"#N/A"}}]
[null,null,{"$f":"VLOOKUP(B809,Dropdowns!$A$2:$B$49,2,FALSE)","v":{"$error":"#N/A"}},null,null,null,{"$f":"VLOOKUP(F809,Dropdowns!$D$2:$E$31,2,FALSE)","v":{"$error":"#N/A"}}]
[null,null,{"$f":"VLOOKUP(B810,Dropdowns!$A$2:$B$49,2,FALSE)","v":{"$error":"#N/A"}},null,null,null,{"$f":"VLOOKUP(F810,Dropdowns!$D$2:$E$31,2,FALSE)","v":{"$error":"#N/A"}}]
[null,null,{"$f":"VLOOKUP(B811,Dropdowns!$A$2:$B$49,2,FALSE)","v":{"$error":"#N/A"}},null,null,null,{"$f":"VLOOKUP(F811,Dropdowns!$D$2:$E$31,2,FALSE)","v":{"$error":"#N/A"}}]
[null,null,{"$f":"VLOOKUP(B812,Dropdowns!$A$2:$B$49,2,FALSE)","v":{"$error":"#N/A"}},null,null,null,{"$f":"VLOOKUP(F812,Dropdowns!$D$2:$E$31,2,FALSE)","v":{"$error":"#N/A"}}]
[null,null,{"$f":"VLOOKUP(B813,Dropdowns!$A$2:$B$49,2,FALSE)","v":{"$error":"#N/A"}},null,null,null,{"$f":"VLOOKUP(F813,Dropdowns!$D$2:$E$31,2,FALSE)","v":{"$error":"#N/A"}}]
[null,null,{"$f":"VLOOKUP(B814,Dropdowns!$A$2:$B$49,2,FALSE)","v":{"$error":"#N/A"}},null,null,null,{"$f":"VLOOKUP(F814,Dropdowns!$D$2:$E$31,2,FALSE)","v":{"$error":"#N/A"}}]
[null,null,{"$f":"VLOOKUP(B815,Dropdowns!$A$2:$B$49,2,FALSE)","v":{"$error":"#N/A"}},null,null,null,{"$f":"VLOOKUP(F815,Dropdowns!$D$2:$E$31,2,FALSE)","v":{"$error":"#N/A"}}]
[null,null,{"$f":"VLOOKUP(B816,Dropdowns!$A$2:$B$49,2,FALSE)","v":{"$error":"#N/A"}},null,null,null,{"$f":"VLOOKUP(F816,Dropdowns!$D$2:$E$31,2,FALSE)","v":{"$error":"#N/A"}}]
[null,null,{"$f":"VLOOKUP(B817,Dropdowns!$A$2:$B$49,2,FALSE)","v":{"$error":"#N/A"}},null,null,null,{"$f":"VLOOKUP(F817,Dropdowns!$D$2:$E$31,2,FALSE)","v":{"$error":"#N/A"}}]
[null,null,{"$f":"VLOOKUP(B818,Dropdowns!$A$2:$B$49,2,FALSE)","v":{"$error":"#N/A"}},null,null,null,{"$f":"VLOOKUP(F818,Dropdowns!$D$2:$E$31,2,FALSE)","v":{"$error":"#N/A"}}]
[null,null,{"$f":"VLOOKUP(B819,Dropdowns!$A$2:$B$49,2,FALSE)","v":{"$error":"#N/A"}},null,null,null,{"$f":"VLOOKUP(F819,Dropdowns!$D$2:$E$31,2,FALSE)","v":{"$error":"#N/A"}}]
[null,null,{"$f":"VLOOKUP(B820,Dropdowns!$A$2:$B$49,2,FALSE)","v":{"$error":"#N/A"}},null,null,null,{"$f":"VLOOKUP(F820,Dropdowns!$D$2:$E$31,2,FALSE)","v":{"$error":"#N/A"}}]
[null,null,{"$f":"VLOOKUP(B821,Dropdowns!$A$2:$B$49,2,FALSE)","v":{"$error":"#N/A"}},null,null,null,{"$f":"VLOOKUP(F821,Dropdowns!$D$2:$E$31,2,FALSE)","v":{"$error":"#N/A"}}]
[null,null,{"$f":"VLOOKUP(B822,Dropdowns!$A$2:$B$49,2,FALSE)","v":{"$error":"#N/A"}},null,null,null,{"$f":"VLOOKUP(F822,Dropdowns!$D$2:$E$31,2,FALSE)","v":{"$error":"#N/A"}}]
[null,null,{"$f":"VLOOKUP(B823,Dropdowns!$A$2:$B$49,2,FALSE)","v":{"$error":"#N/A"}},null,null,null,{"$f":"VLOOKUP(F823,Dropdowns!$D$2:$E$31,2,FALSE)","v":{"$error":"#N/A"}}]
[null,null,{"$f":"VLOOKUP(B824,Dropdowns!$A$2:$B$49,2,FALSE)","v":{"$error":"#N/A"}},null,null,null,{"$f":"VLOOKUP(F824,Dropdowns!$D$2:$E$31,2,FALSE)","v":{"$error":"#N/A"}}]
[null,null,{"$f":"VLOOKUP(B825,Dropdowns!$A$2:$B$49,2,FALSE)","v":{"$error":"#N/A"}},null,null,null,{"$f":"VLOOKUP(F825,Dropdowns!$D$2:$E$31,2,FALSE)","v":{"$error":"#N/A"}}]
[null,null,{"$f":"VLOOKUP(B826,Dropdowns!$A$2:$B$49,2,FALSE)","v":{"$error":"#N/A"}},null,null,null,{"$f":"VLOOKUP(F826,Dropdowns!$D$2:$E$31,2,FALSE)","v":{"$error":"#N/A"}}]
[null,null,{"$f":"VLOOKUP(B827,Dropdowns!$A$2:$B$49,2,FALSE)","v":{"$error":"#N/A"}},null,null,null,{"$f":"VLOOKUP(F827,Dropdowns!$D$2:$E$31,2,FALSE)","v":{"$error":"#N/A"}}]
[null,null,{"$f":"VLOOKUP(B828,Dropdowns!$A$2:$B$49,2,FALSE)","v":{"$error":"#N/A"}},null,null,null,{"$f":"VLOOKUP(F828,Dropdowns!$D$2:$E$31,2,FALSE)","v":{"$error":"#N/A"}}]
[null,null,{"$f":"VLOOKUP(B829,Dropdowns!$A$2:$B$49,2,FALSE)","v":{"$error":"#N/A"}},null,null,null,{"$f":"VLOOKUP(F829,Dropdowns!$D$2:$E$31,2,FALSE)","v":{"$error":"#N/A"}}]
[null,null,{"$f":"VLOOKUP(B830,Dropdowns!$A$2:$B$49,2,FALSE)","v":{"$error":"#N/A"}},null,null,null,{"$f":"VLOOKUP(F830,Dropdowns!$D$2:$E$31,2,FALSE)","v":{"$error":"#N/A"}}]
[null,null,{"$f":"VLOOKUP(B831,Dropdowns!$A$2:$B$49,2,FALSE)","v":{"$error":"#N/A"}},null,null,null,{"$f":"VLOOKUP(F831,Dropdowns!$D$2:$E$31,2,FALSE)","v":{"$error":"#N/A"}}]
[null,null,{"$f":"VLOOKUP(B832,Dropdowns!$A$2:$B$49,2,FALSE)","v":{"$error":"#N/A"}},null,null,null,{"$f":"VLOOKUP(F832,Dropdowns!$D$2:$E$31,2,FALSE)","v":{"$error":"#N/A"}}]
[null,null,{"$f":"VLOOKUP(B833,Dropdowns!$A$2:$B$49,2,FALSE)","v":{"$error":"#N/A"}},null,null,null,{"$f":"VLOOKUP(F833,Dropdowns!$D$2:$E$31,2,FALSE)","v":{"$error":"#N/A"}}]
[null,null,{"$f":"VLOOKUP(B834,Dropdowns!$A$2:$B$49,2,FALSE)","v":{"$error":"#N/A"}},null,null,null,{"$f":"VLOOKUP(F834,Dropdowns!$D$2:$E$31,2,FALSE)","v":{"$error":"#N/A"}}]
[null,null,{"$f":"VLOOKUP(B835,Dropdowns!$A$2:$B$49,2,FALSE)","v":{"$error":"#N/A"}},null,null,null,{"$f":"VLOOKUP(F835,Dropdowns!$D$2:$E$31,2,FALSE)","v":{"$error":"#N/A"}}]
[null,null,{"$f":"VLOOKUP(B836,Dropdowns!$A$2:$B$49,2,FALSE)","v":{"$error":"#N/A"}},null,null,null,{"$f":"VLOOKUP(F836,Dropdowns!$D$2:$E$31,2,FALSE)","v":{"$error":"#N/A"}}]
[null,null,{"$f":"VLOOKUP(B837,Dropdowns!$A$2:$B$49,2,FALSE)","v":{"$error":"#N/A"}},null,null,null,{"$f":"VLOOKUP(F837,Dropdowns!$D$2:$E$31,2,FALSE)","v":{"$error":"#N/A"}}]
[null,null,{"$f":"VLOOKUP(B838,Dropdowns!$A$2:$B$49,2,FALSE)","v":{"$error":"#N/A"}},null,null,null,{"$f":"VLOOKUP(F838,Dropdowns!$D$2:$E$31,2,FALSE)","v":{"$error":"#N/A"}}]
[null,null,{"$f":"VLOOKUP(B839,Dropdowns!$A$2:$B$49,2,FALSE)","v":{"$error":"#N/A"}},null,null,null,{"$f":"VLOOKUP(F839,Dropdowns!$D$2:$E$31,2,FALSE)","v":{"$error":"#N/A"}}]
[null,null,{"$f":"VLOOKUP(B840,Dropdowns!$A$2:$B$49,2,FALSE)","v":{"$error":"#N/A"}},null,null,null,{"$f":"VLOOKUP(F840,Dropdowns!$D$2:$E$31,2,FALSE)","v":{"$error":"#N/A"}}]
[null,null,{"$f":"VLOOKUP(B841,Dropdowns!$A$2:$B$49,2,FALSE)","v":{"$error":"#N/A"}},null,null,null,{"$f":"VLOOKUP(F841,Dropdowns!$D$2:$E$31,2,FALSE)","v":{"$error":"#N/A"}}]
[null,null,{"$f":"VLOOKUP(B842,Dropdowns!$A$2:$B$49,2,FALSE)","v":{"$error":"#N/A"}},null,null,null,{"$f":"VLOOKUP(F842,Dropdowns!$D$2:$E$31,2,FALSE)","v":{"$error":"#N/A"}}]
[null,null,{"$f":"VLOOKUP(B843,Dropdowns!$A$2:$B$49,2,FALSE)","v":{"$error":"#N/A"}},null,null,null,{"$f":"VLOOKUP(F843,Dropdowns!$D$2:$E$31,2,FALSE)","v":{"$error":"#N/A"}}]
[null,null,{"$f":"VLOOKUP(B844,Dropdowns!$A$2:$B$49,2,FALSE)","v":{"$error":"#N/A"}},null,null,null,{"$f":"VLOOKUP(F844,Dropdowns!$D$2:$E$31,2,FALSE)","v":{"$error":"#N/A"}}]
[null,null,{"$f":"VLOOKUP(B845,Dropdowns!$A$2:$B$49,2,FALSE)","v":{"$error":"#N/A"}},null,null,null,{"$f":"VLOOKUP(F845,Dropdowns!$D$2:$E$31,2,FALSE)","v":{"$error":"#N/A"}}]
[null,null,{"$f":"VLOOKUP(B846,Dropdowns!$A$2:$B$49,2,FALSE)","v":{"$error":"#N/A"}},null,null,null,{"$f":"VLOOKUP(F846,Dropdowns!$D$2:$E$31,2,FALSE)","v":{"$error":"#N/A"}}]
[null,null,{"$f":"VLOOKUP(B847,Dropdowns!$A$2:$B$49,2,FALSE)","v":{"$error":"#N/A"}},null,null,null,{"$f":"VLOOKUP(F847,Dropdowns!$D$2:$E$31,2,FALSE)","v":{"$error":"#N/A"}}]
[null,null,{"$f":"VLOOKUP(B848,Dropdowns!$A$2:$B$49,2,FALSE)","v":{"$error":"#N/A"}},null,null,null,{"$f":"VLOOKUP(F848,Dropdowns!$D$2:$E$31,2,FALSE)","v":{"$error":"#N/A"}}]
[null,null,{"$f":"VLOOKUP(B849,Dropdowns!$A$2:$B$49,2,FALSE)","v":{"$error":"#N/A"}},null,null,null,{"$f":"VLOOKUP(F849,Dropdowns!$D$2:$E$31,2,FALSE)","v":{"$error":"#N/A"}}]
[null,null,{"$f":"VLOOKUP(B850,Dropdowns!$A$2:$B$49,2,FALSE)","v":{"$error":"#N/A"}},null,null,null,{"$f":"VLOOKUP(F850,Dropdowns!$D$2:$E$31,2,FALSE)","v":{"$error":"#N/A"}}]
[null,null,{"$f":"VLOOKUP(B851,Dropdowns!$A$2:$B$49,2,FALSE)","v":{"$error":"#N/A"}},null,null,null,{"$f":"VLOOKUP(F851,Dropdowns!$D$2:$E$31,2,FALSE)","v":{"$error":"#N/A"}}]
[null,null,{"$f":"VLOOKUP(B852,Dropdowns!$A$2:$B$49,2,FALSE)","v":{"$error":"#N/A"}},null,null,null,{"$f":"VLOOKUP(F852,Dropdowns!$D$2:$E$31,2,FALSE)","v":{"$error":"#N/A"}}]
[null,null,{"$f":"VLOOKUP(B853,Dropdowns!$A$2:$B$49,2,FALSE)","v":{"$error":"#N/A"}},null,null,null,{"$f":"VLOOKUP(F853,Dropdowns!$D$2:$E$31,2,FALSE)","v":{"$error":"#N/A"}}]
[null,null,{"$f":"VLOOKUP(B854,Dropdowns!$A$2:$B$49,2,FALSE)","v":{"$error":"#N/A"}},null,null,null,{"$f":"VLOOKUP(F854,Dropdowns!$D$2:$E$31,2,FALSE)","v":{"$error":"#N/A"}}]
[null,null,{"$f":"VLOOKUP(B855,Dropdowns!$A$2:$B$49,2,FALSE)","v":{"$error":"#N/A"}},null,null,null,{"$f":"VLOOKUP(F855,Dropdowns!$D$2:$E$31,2,FALSE)","v":{"$error":"#N/A"}}]
[null,null,{"$f":"VLOOKUP(B856,Dropdowns!$A$2:$B$49,2,FALSE)","v":{"$error":"#N/A"}},null,null,null,{"$f":"VLOOKUP(F856,Dropdowns!$D$2:$E$31,2,FALSE)","v":{"$error":"#N/A"}}]
[null,null,{"$f":"VLOOKUP(B857,Dropdowns!$A$2:$B$49,2,FALSE)","v":{"$error":"#N/A"}},null,null,null,{"$f":"VLOOKUP(F857,Dropdowns!$D$2:$E$31,2,FALSE)","v":{"$error":"#N/A"}}]
[null,null,{"$f":"VLOOKUP(B858,Dropdowns!$A$2:$B$49,2,FALSE)","v":{"$error":"#N/A"}},null,null,null,{"$f":"VLOOKUP(F858,Dropdowns!$D$2:$E$31,2,FALSE)","v":{"$error":"#N/A"}}]
[null,null,{"$f":"VLOOKUP(B859,Dropdowns!$A$2:$B$49,2,FALSE)","v":{"$error":"#N/A"}},null,null,null,{"$f":"VLOOKUP(F859,Dropdowns!$D$2:$E$31,2,FALSE)","v":{"$error":"#N/A"}}]
[null,null,{"$f":"VLOOKUP(B860,Dropdowns!$A$2:$B$49,2,FALSE)","v":{"$error":"#N/A"}},null,null,null,{"$f":"VLOOKUP(F860,Dropdowns!$D$2:$E$31,2,FALSE)","v":{"$error":"#N/A"}}]
[null,null,{"$f":"VLOOKUP(B861,Dropdowns!$A$2:$B$49,2,FALSE)","v":{"$error":"#N/A"}},null,null,null,{"$f":"VLOOKUP(F861,Dropdowns!$D$2:$E$31,2,FALSE)","v":{"$error":"#N/A"}}]
[null,null,{"$f":"VLOOKUP(B862,Dropdowns!$A$2:$B$49,2,FALSE)","v":{"$error":"#N/A"}},null,null,null,{"$f":"VLOOKUP(F862,Dropdowns!$D$2:$E$31,2,FALSE)","v":{"$error":"#N/A"}}]
[null,null,{"$f":"VLOOKUP(B863,Dropdowns!$A$2:$B$49,2,FALSE)","v":{"$error":"#N/A"}},null,null,null,{"$f":"VLOOKUP(F863,Dropdowns!$D$2:$E$31,2,FALSE)","v":{"$error":"#N/A"}}]
[null,null,{"$f":"VLOOKUP(B864,Dropdowns!$A$2:$B$49,2,FALSE)","v":{"$error":"#N/A"}},null,null,null,{"$f":"VLOOKUP(F864,Dropdowns!$D$2:$E$31,2,FALSE)","v":{"$error":"#N/A"}}]
[null,null,{"$f":"VLOOKUP(B865,Dropdowns!$A$2:$B$49,2,FALSE)","v":{"$error":"#N/A"}},null,null,null,{"$f":"VLOOKUP(F865,Dropdowns!$D$2:$E$31,2,FALSE)","v":{"$error":"#N/A"}}]
[null,null,{"$f":"VLOOKUP(B866,Dropdowns!$A$2:$B$49,2,FALSE)","v":{"$error":"#N/A"}},null,null,null,{"$f":"VLOOKUP(F866,Dropdowns!$D$2:$E$31,2,FALSE)","v":{"$error":"#N/A"}}]
[null,null,{"$f":"VLOOKUP(B867,Dropdowns!$A$2:$B$49,2,FALSE)","v":{"$error":"#N/A"}},null,null,null,{"$f":"VLOOKUP(F867,Dropdowns!$D$2:$E$31,2,FALSE)","v":{"$error":"#N/A"}}]
[null,null,{"$f":"VLOOKUP(B868,Dropdowns!$A$2:$B$49,2,FALSE)","v":{"$error":"#N/A"}},null,null,null,{"$f":"VLOOKUP(F868,Dropdowns!$D$2:$E$31,2,FALSE)","v":{"$error":"#N/A"}}]
[null,null,{"$f":"VLOOKUP(B869,Dropdowns!$A$2:$B$49,2,FALSE)","v":{"$error":"#N/A"}},null,null,null,{"$f":"VLOOKUP(F869,Dropdowns!$D$2:$E$31,2,FALSE)","v":{"$error":"#N/A"}}]
[null,null,{"$f":"VLOOKUP(B870,Dropdowns!$A$2:$B$49,2,FALSE)","v":{"$error":"#N/A"}},null,null,null,{"$f":"VLOOKUP(F870,Dropdowns!$D$2:$E$31,2,FALSE)","v":{"$error":"#N/A"}}]
[null,null,{"$f":"VLOOKUP(B871,Dropdowns!$A$2:$B$49,2,FALSE)","v":{"$error":"#N/A"}},null,null,null,{"$f":"VLOOKUP(F871,Dropdowns!$D$2:$E$31,2,FALSE)","v":{"$error":"#N/A"}}]
[null,null,{"$f":"VLOOKUP(B872,Dropdowns!$A$2:$B$49,2,FALSE)","v":{"$error":"#N/A"}},null,null,null,{"$f":"VLOOKUP(F872,Dropdowns!$D$2:$E$31,2,FALSE)","v":{"$error":"#N/A"}}]
[null,null,{"$f":"VLOOKUP(B873,Dropdowns!$A$2:$B$49,2,FALSE)","v":{"$error":"#N/A"}},null,null,null,{"$f":"VLOOKUP(F873,Dropdowns!$D$2:$E$31,2,FALSE)","v":{"$error":"#N/A"}}]
[null,null,{"$f":"VLOOKUP(B874,Dropdowns!$A$2:$B$49,2,FALSE)","v":{"$error":"#N/A"}},null,null,null,{"$f":"VLOOKUP(F874,Dropdowns!$D$2:$E$31,2,FALSE)","v":{"$error":"#N/A"}}]
[null,null,{"$f":"VLOOKUP(B875,Dropdowns!$A$2:$B$49,2,FALSE)","v":{"$error":"#N/A"}},null,null,null,{"$f":"VLOOKUP(F875,Dropdowns!$D$2:$E$31,2,FALSE)","v":{"$error":"#N/A"}}]
[null,null,{"$f":"VLOOKUP(B876,Dropdowns!$A$2:$B$49,2,FALSE)","v":{"$error":"#N/A"}},null,null,null,{"$f":"VLOOKUP(F876,Dropdowns!$D$2:$E$31,2,FALSE)","v":{"$error":"#N/A"}}]
[null,null,{"$f":"VLOOKUP(B877,Dropdowns!$A$2:$B$49,2,FALSE)","v":{"$error":"#N/A"}},null,null,null,{"$f":"VLOOKUP(F877,Dropdowns!$D$2:$E$31,2,FALSE)","v":{"$error":"#N/A"}}]
[null,null,{"$f":"VLOOKUP(B878,Dropdowns!$A$2:$B$49,2,FALSE)","v":{"$error":"#N/A"}},null,null,null,{"$f":"VLOOKUP(F878,Dropdowns!$D$2:$E$31,2,FALSE)","v":{"$error":"#N/A"}}]
[null,null,{"$f":"VLOOKUP(B879,Dropdowns!$A$2:$B$49,2,FALSE)","v":{"$error":"#N/A"}},null,null,null,{"$f":"VLOOKUP(F879,Dropdowns!$D$2:$E$31,2,FALSE)","v":{"$error":"#N/A"}}]
[null,null,{"$f":"VLOOKUP(B880,Dropdowns!$A$2:$B$49,2,FALSE)","v":{"$error":"#N/A"}},null,null,null,{"$f":"VLOOKUP(F880,Dropdowns!$D$2:$E$31,2,FALSE)","v":{"$error":"#N/A"}}]
[null,null,{"$f":"VLOOKUP(B881,Dropdowns!$A$2:$B$49,2,FALSE)","v":{"$error":"#N/A"}},null,null,null,{"$f":"VLOOKUP(F881,Dropdowns!$D$2:$E$31,2,FALSE)","v":{"$error":"#N/A"}}]
[null,null,{"$f":"VLOOKUP(B882,Dropdowns!$A$2:$B$49,2,FALSE)","v":{"$error":"#N/A"}},null,null,null,{"$f":"VLOOKUP(F882,Dropdowns!$D$2:$E$31,2,FALSE)","v":{"$error":"#N/A"}}]
[null,null,{"$f":"VLOOKUP(B883,Dropdowns!$A$2:$B$49,2,FALSE)","v":{"$error":"#N/A"}},null,null,null,{"$f":"VLOOKUP(F883,Dropdowns!$D$2:$E$31,2,FALSE)","v":{"$error":"#N/A"}}]
[null,null,{"$f":"VLOOKUP(B884,Dropdowns!$A$2:$B$49,2,FALSE)","v":{"$error":"#N/A"}},null,null,null,{"$f":"VLOOKUP(F884,Dropdowns!$D$2:$E$31,2,FALSE)","v":{"$error":"#N/A"}}]
[null,null,{"$f":"VLOOKUP(B885,Dropdowns!$A$2:$B$49,2,FALSE)","v":{"$error":"#N/A"}},null,null,null,{"$f":"VLOOKUP(F885,Dropdowns!$D$2:$E$31,2,FALSE)","v":{"$error":"#N/A"}}]
[null,null,{"$f":"VLOOKUP(B886,Dropdowns!$A$2:$B$49,2,FALSE)","v":{"$error":"#N/A"}},null,null,null,{"$f":"VLOOKUP(F886,Dropdowns!$D$2:$E$31,2,FALSE)","v":{"$error":"#N/A"}}]
[null,null,{"$f":"VLOOKUP(B887,Dropdowns!$A$2:$B$49,2,FALSE)","v":{"$error":"#N/A"}},null,null,null,{"$f":"VLOOKUP(F887,Dropdowns!$D$2:$E$31,2,FALSE)","v":{"$error":"#N/A"}}]
[null,null,{"$f":"VLOOKUP(B888,Dropdowns!$A$2:$B$49,2,FALSE)","v":{"$error":"#N/A"}},null,null,null,{"$f":"VLOOKUP(F888,Dropdowns!$D$2:$E$31,2,FALSE)","v":{"$error":"#N/A"}}]
[null,null,{"$f":"VLOOKUP(B889,Dropdowns!$A$2:$B$49,2,FALSE)","v":{"$error":"#N/A"}},null,null,null,{"$f":"VLOOKUP(F889,Dropdowns!$D$2:$E$31,2,FALSE)","v":{"$error":"#N/A"}}]
[null,null,{"$f":"VLOOKUP(B890,Dropdowns!$A$2:$B$49,2,FALSE)","v":{"$error":"#N/A"}},null,null,null,{"$f":"VLOOKUP(F890,Dropdowns!$D$2:$E$31,2,FALSE)","v":{"$error":"#N/A"}}]
[null,null,{"$f":"VLOOKUP(B891,Dropdowns!$A$2:$B$49,2,FALSE)","v":{"$error":"#N/A"}},null,null,null,{"$f":"VLOOKUP(F891,Dropdowns!$D$2:$E$31,2,FALSE)","v":{"$error":"#N/A"}}]
[null,null,{"$f":"VLOOKUP(B892,Dropdowns!$A$2:$B$49,2,FALSE)","v":{"$error":"#N/A"}},null,null,null,{"$f":"VLOOKUP(F892,Dropdowns!$D$2:$E$31,2,FALSE)","v":{"$error":"#N/A"}}]
[null,null,{"$f":"VLOOKUP(B893,Dropdowns!$A$2:$B$49,2,FALSE)","v":{"$error":"#N/A"}},null,null,null,{"$f":"VLOOKUP(F893,Dropdowns!$D$2:$E$31,2,FALSE)","v":{"$error":"#N/A"}}]
[null,null,{"$f":"VLOOKUP(B894,Dropdowns!$A$2:$B$49,2,FALSE)","v":{"$error":"#N/A"}},null,null,null,{"$f":"VLOOKUP(F894,Dropdowns!$D$2:$E$31,2,FALSE)","v":{"$error":"#N/A"}}]
[null,null,{"$f":"VLOOKUP(B895,Dropdowns!$A$2:$B$49,2,FALSE)","v":{"$error":"#N/A"}},null,null,null,{"$f":"VLOOKUP(F895,Dropdowns!$D$2:$E$31,2,FALSE)","v":{"$error":"#N/A"}}]
[null,null,{"$f":"VLOOKUP(B896,Dropdowns!$A$2:$B$49,2,FALSE)","v":{"$error":"#N/A"}},null,null,null,{"$f":"VLOOKUP(F896,Dropdowns!$D$2:$E$31,2,FALSE)","v":{"$error":"#N/A"}}]
[null,null,{"$f":"VLOOKUP(B897,Dropdowns!$A$2:$B$49,2,FALSE)","v":{"$error":"#N/A"}},null,null,null,{"$f":"VLOOKUP(F897,Dropdowns!$D$2:$E$31,2,FALSE)","v":{"$error":"#N/A"}}]
[null,null,{"$f":"VLOOKUP(B898,Dropdowns!$A$2:$B$49,2,FALSE)","v":{"$error":"#N/A"}},null,null,null,{"$f":"VLOOKUP(F898,Dropdowns!$D$2:$E$31,2,FALSE)","v":{"$error":"#N/A"}}]
[null,null,{"$f":"VLOOKUP(B899,Dropdowns!$A$2:$B$49,2,FALSE)","v":{"$error":"#N/A"}},null,null,null,{"$f":"VLOOKUP(F899,Dropdowns!$D$2:$E$31,2,FALSE)","v":{"$error":"#N/A"}}]
[null,null,{"$f":"VLOOKUP(B900,Dropdowns!$A$2:$B$49,2,FALSE)","v":{"$error":"#N/A"}},null,null,null,{"$f":"VLOOKUP(F900,Dropdowns!$D$2:$E$31,2,FALSE)","v":{"$error":"#N/A"}}]
[null,null,{"$f":"VLOOKUP(B901,Dropdowns!$A$2:$B$49,2,FALSE)","v":{"$error":"#N/A"}},null,null,null,{"$f":"VLOOKUP(F901,Dropdowns!$D$2:$E$31,2,FALSE)","v":{"$error":"#N/A"}}]
[null,null,{"$f":"VLOOKUP(B902,Dropdowns!$A$2:$B$49,2,FALSE)","v":{"$error":"#N/A"}},null,null,null,{"$f":"VLOOKUP(F902,Dropdowns!$D$2:$E$31,2,FALSE)","v":{"$error":"#N/A"}}]
[null,null,{"$f":"VLOOKUP(B903,Dropdowns!$A$2:$B$49,2,FALSE)","v":{"$error":"#N/A"}},null,null,null,{"$f":"VLOOKUP(F903,Dropdowns!$D$2:$E$31,2,FALSE)","v":{"$error":"#N/A"}}]
[null,null,{"$f":"VLOOKUP(B904,Dropdowns!$A$2:$B$49,2,FALSE)","v":{"$error":"#N/A"}},null,null,null,{"$f":"VLOOKUP(F904,Dropdowns!$D$2:$E$31,2,FALSE)","v":{"$error":"#N/A"}}]
[null,null,{"$f":"VLOOKUP(B905,Dropdowns!$A$2:$B$49,2,FALSE)","v":{"$error":"#N/A"}},null,null,null,{"$f":"VLOOKUP(F905,Dropdowns!$D$2:$E$31,2,FALSE)","v":{"$error":"#N/A"}}]
[null,null,{"$f":"VLOOKUP(B906,Dropdowns!$A$2:$B$49,2,FALSE)","v":{"$error":"#N/A"}},null,null,null,{"$f":"VLOOKUP(F906,Dropdowns!$D$2:$E$31,2,FALSE)","v":{"$error":"#N/A"}}]
[null,null,{"$f":"VLOOKUP(B907,Dropdowns!$A$2:$B$49,2,FALSE)","v":{"$error":"#N/A"}},null,null,null,{"$f":"VLOOKUP(F907,Dropdowns!$D$2:$E$31,2,FALSE)","v":{"$error":"#N/A"}}]
[null,null,{"$f":"VLOOKUP(B908,Dropdowns!$A$2:$B$49,2,FALSE)","v":{"$error":"#N/A"}},null,null,null,{"$f":"VLOOKUP(F908,Dropdowns!$D$2:$E$31,2,FALSE)","v":{"$error":"#N/A"}}]
[null,null,{"$f":"VLOOKUP(B909,Dropdowns!$A$2:$B$49,2,FALSE)","v":{"$error":"#N/A"}},null,null,null,{"$f":"VLOOKUP(F909,Dropdowns!$D$2:$E$31,2,FALSE)","v":{"$error":"#N/A"}}]
[null,null,{"$f":"VLOOKUP(B910,Dropdowns!$A$2:$B$49,2,FALSE)","v":{"$error":"#N/A"}},null,null,null,{"$f":"VLOOKUP(F910,Dropdowns!$D$2:$E$31,2,FALSE)","v":{"$error":"#N/A"}}]
[null,null,{"$f":"VLOOKUP(B911,Dropdowns!$A$2:$B$49,2,FALSE)","v":{"$error":"#N/A"}},null,null,null,{"$f":"VLOOKUP(F911,Dropdowns!$D$2:$E$31,2,FALSE)","v":{"$error":"#N/A"}}]
[null,null,{"$f":"VLOOKUP(B912,Dropdowns!$A$2:$B$49,2,FALSE)","v":{"$error":"#N/A"}},null,null,null,{"$f":"VLOOKUP(F912,Dropdowns!$D$2:$E$31,2,FALSE)","v":{"$error":"#N/A"}}]
[null,null,{"$f":"VLOOKUP(B913,Dropdowns!$A$2:$B$49,2,FALSE)","v":{"$error":"#N/A"}},null,null,null,{"$f":"VLOOKUP(F913,Dropdowns!$D$2:$E$31,2,FALSE)","v":{"$error":"#N/A"}}]
[null,null,{"$f":"VLOOKUP(B914,Dropdowns!$A$2:$B$49,2,FALSE)","v":{"$error":"#N/A"}},null,null,null,{"$f":"VLOOKUP(F914,Dropdowns!$D$2:$E$31,2,FALSE)","v":{"$error":"#N/A"}}]
[null,null,{"$f":"VLOOKUP(B915,Dropdowns!$A$2:$B$49,2,FALSE)","v":{"$error":"#N/A"}},null,null,null,{"$f":"VLOOKUP(F915,Dropdowns!$D$2:$E$31,2,FALSE)","v":{"$error":"#N/A"}}]
[null,null,{"$f":"VLOOKUP(B916,Dropdowns!$A$2:$B$49,2,FALSE)","v":{"$error":"#N/A"}},null,null,null,{"$f":"VLOOKUP(F916,Dropdowns!$D$2:$E$31,2,FALSE)","v":{"$error":"#N/A"}}]
[null,null,{"$f":"VLOOKUP(B917,Dropdowns!$A$2:$B$49,2,FALSE)","v":{"$error":"#N/A"}},null,null,null,{"$f":"VLOOKUP(F917,Dropdowns!$D$2:$E$31,2,FALSE)","v":{"$error":"#N/A"}}]
[null,null,{"$f":"VLOOKUP(B918,Dropdowns!$A$2:$B$49,2,FALSE)","v":{"$error":"#N/A"}},null,null,null,{"$f":"VLOOKUP(F918,Dropdowns!$D$2:$E$31,2,FALSE)","v":{"$error":"#N/A"}}]
[null,null,{"$f":"VLOOKUP(B919,Dropdowns!$A$2:$B$49,2,FALSE)","v":{"$error":"#N/A"}},null,null,null,{"$f":"VLOOKUP(F919,Dropdowns!$D$2:$E$31,2,FALSE)","v":{"$error":"#N/A"}}]
[null,null,{"$f":"VLOOKUP(B920,Dropdowns!$A$2:$B$49,2,FALSE)","v":{"$error":"#N/A"}},null,null,null,{"$f":"VLOOKUP(F920,Dropdowns!$D$2:$E$31,2,FALSE)","v":{"$error":"#N/A"}}]
[null,null,{"$f":"VLOOKUP(B921,Dropdowns!$A$2:$B$49,2,FALSE)","v":{"$error":"#N/A"}},null,null,null,{"$f":"VLOOKUP(F921,Dropdowns!$D$2:$E$31,2,FALSE)","v":{"$error":"#N/A"}}]
[null,null,{"$f":"VLOOKUP(B922,Dropdowns!$A$2:$B$49,2,FALSE)","v":{"$error":"#N/A"}},null,null,null,{"$f":"VLOOKUP(F922,Dropdowns!$D$2:$E$31,2,FALSE)","v":{"$error":"#N/A"}}]
[null,null,{"$f":"VLOOKUP(B923,Dropdowns!$A$2:$B$49,2,FALSE)","v":{"$error":"#N/A"}},null,null,null,{"$f":"VLOOKUP(F923,Dropdowns!$D$2:$E$31,2,FALSE)","v":{"$error":"#N/A"}}]
[null,null,{"$f":"VLOOKUP(B924,Dropdowns!$A$2:$B$49,2,FALSE)","v":{"$error":"#N/A"}},null,null,null,{"$f":"VLOOKUP(F924,Dropdowns!$D$2:$E$31,2,FALSE)","v":{"$error":"#N/A"}}]
[null,null,{"$f":"VLOOKUP(B925,Dropdowns!$A$2:$B$49,2,FALSE)","v":{"$error":"#N/A"}},null,null,null,{"$f":"VLOOKUP(F925,Dropdowns!$D$2:$E$31,2,FALSE)","v":{"$error":"#N/A"}}]
[null,null,{"$f":"VLOOKUP(B926,Dropdowns!$A$2:$B$49,2,FALSE)","v":{"$error":"#N/A"}},null,null,null,{"$f":"VLOOKUP(F926,Dropdowns!$D$2:$E$31,2,FALSE)","v":{"$error":"#N/A"}}]
[null,null,{"$f":"VLOOKUP(B927,Dropdowns!$A$2:$B$49,2,FALSE)","v":{"$error":"#N/A"}},null,null,null,{"$f":"VLOOKUP(F927,Dropdowns!$D$2:$E$31,2,FALSE)","v":{"$error":"#N/A"}}]
[null,null,{"$f":"VLOOKUP(B928,Dropdowns!$A$2:$B$49,2,FALSE)","v":{"$error":"#N/A"}},null,null,null,{"$f":"VLOOKUP(F928,Dropdowns!$D$2:$E$31,2,FALSE)","v":{"$error":"#N/A"}}]
[null,null,{"$f":"VLOOKUP(B929,Dropdowns!$A$2:$B$49,2,FALSE)","v":{"$error":"#N/A"}},null,null,null,{"$f":"VLOOKUP(F929,Dropdowns!$D$2:$E$31,2,FALSE)","v":{"$error":"#N/A"}}]
[null,null,{"$f":"VLOOKUP(B930,Dropdowns!$A$2:$B$49,2,FALSE)","v":{"$error":"#N/A"}},null,null,null,{"$f":"VLOOKUP(F930,Dropdowns!$D$2:$E$31,2,FALSE)","v":{"$error":"#N/A"}}]
[null,null,{"$f":"VLOOKUP(B931,Dropdowns!$A$2:$B$49,2,FALSE)","v":{"$error":"#N/A"}},null,null,null,{"$f":"VLOOKUP(F931,Dropdowns!$D$2:$E$31,2,FALSE)","v":{"$error":"#N/A"}}]
[null,null,{"$f":"VLOOKUP(B932,Dropdowns!$A$2:$B$49,2,FALSE)","v":{"$error":"#N/A"}},null,null,null,{"$f":"VLOOKUP(F932,Dropdowns!$D$2:$E$31,2,FALSE)","v":{"$error":"#N/A"}}]
[null,null,{"$f":"VLOOKUP(B933,Dropdowns!$A$2:$B$49,2,FALSE)","v":{"$error":"#N/A"}},null,null,null,{"$f":"VLOOKUP(F933,Dropdowns!$D$2:$E$31,2,FALSE)","v":{"$error":"#N/A"}}]
[null,null,{"$f":"VLOOKUP(B934,Dropdowns!$A$2:$B$49,2,FALSE)","v":{"$error":"#N/A"}},null,null,null,{"$f":"VLOOKUP(F934,Dropdowns!$D$2:$E$31,2,FALSE)","v":{"$error":"#N/A"}}]
[null,null,{"$f":"VLOOKUP(B935,Dropdowns!$A$2:$B$49,2,FALSE)","v":{"$error":"#N/A"}},null,null,null,{"$f":"VLOOKUP(F935,Dropdowns!$D$2:$E$31,2,FALSE)","v":{"$error":"#N/A"}}]
[null,null,{"$f":"VLOOKUP(B936,Dropdowns!$A$2:$B$49,2,FALSE)","v":{"$error":"#N/A"}},null,null,null,{"$f":"VLOOKUP(F936,Dropdowns!$D$2:$E$31,2,FALSE)","v":{"$error":"#N/A"}}]
[null,null,{"$f":"VLOOKUP(B937,Dropdowns!$A$2:$B$49,2,FALSE)","v":{"$error":"#N/A"}},null,null,null,{"$f":"VLOOKUP(F937,Dropdowns!$D$2:$E$31,2,FALSE)","v":{"$error":"#N/A"}}]
[null,null,{"$f":"VLOOKUP(B938,Dropdowns!$A$2:$B$49,2,FALSE)","v":{"$error":"#N/A"}},null,null,null,{"$f":"VLOOKUP(F938,Dropdowns!$D$2:$E$31,2,FALSE)","v":{"$error":"#N/A"}}]
[null,null,{"$f":"VLOOKUP(B939,Dropdowns!$A$2:$B$49,2,FALSE)","v":{"$error":"#N/A"}},null,null,null,{"$f":"VLOOKUP(F939,Dropdowns!$D$2:$E$31,2,FALSE)","v":{"$error":"#N/A"}}]
[null,null,{"$f":"VLOOKUP(B940,Dropdowns!$A$2:$B$49,2,FALSE)","v":{"$error":"#N/A"}},null,null,null,{"$f":"VLOOKUP(F940,Dropdowns!$D$2:$E$31,2,FALSE)","v":{"$error":"#N/A"}}]
[null,null,{"$f":"VLOOKUP(B941,Dropdowns!$A$2:$B$49,2,FALSE)","v":{"$error":"#N/A"}},null,null,null,{"$f":"VLOOKUP(F941,Dropdowns!$D$2:$E$31,2,FALSE)","v":{"$error":"#N/A"}}]
[null,null,{"$f":"VLOOKUP(B942,Dropdowns!$A$2:$B$49,2,FALSE)","v":{"$error":"#N/A"}},null,null,null,{"$f":"VLOOKUP(F942,Dropdowns!$D$2:$E$31,2,FALSE)","v":{"$error":"#N/A"}}]
[null,null,{"$f":"VLOOKUP(B943,Dropdowns!$A$2:$B$49,2,FALSE)","v":{"$error":"#N/A"}},null,null,null,{"$f":"VLOOKUP(F943,Dropdowns!$D$2:$E$31,2,FALSE)","v":{"$error":"#N/A"}}]
[null,null,{"$f":"VLOOKUP(B944,Dropdowns!$A$2:$B$49,2,FALSE)","v":{"$error":"#N/A"}},null,null,null,{"$f":"VLOOKUP(F944,Dropdowns!$D$2:$E$31,2,FALSE)","v":{"$error":"#N/A"}}]
[null,null,{"$f":"VLOOKUP(B945,Dropdowns!$A$2:$B$49,2,FALSE)","v":{"$error":"#N/A"}},null,null,null,{"$f":"VLOOKUP(F945,Dropdowns!$D$2:$E$31,2,FALSE)","v":{"$error":"#N/A"}}]
[null,null,{"$f":"VLOOKUP(B946,Dropdowns!$A$2:$B$49,2,FALSE)","v":{"$error":"#N/A"}},null,null,null,{"$f":"VLOOKUP(F946,Dropdowns!$D$2:$E$31,2,FALSE)","v":{"$error":"#N/A"}}]
[null,null,{"$f":"VLOOKUP(B947,Dropdowns!$A$2:$B$49,2,FALSE)","v":{"$error":"#N/A"}},null,null,null,{"$f":"VLOOKUP(F947,Dropdowns!$D$2:$E$31,2,FALSE)","v":{"$error":"#N/A"}}]
[null,null,{"$f":"VLOOKUP(B948,Dropdowns!$A$2:$B$49,2,FALSE)","v":{"$error":"#N/A"}},null,null,null,{"$f":"VLOOKUP(F948,Dropdowns!$D$2:$E$31,2,FALSE)","v":{"$error":"#N/A"}}]
[null,null,{"$f":"VLOOKUP(B949,Dropdowns!$A$2:$B$49,2,FALSE)","v":{"$error":"#N/A"}},null,null,null,{"$f":"VLOOKUP(F949,Dropdowns!$D$2:$E$31,2,FALSE)","v":{"$error":"#N/A"}}]
[null,null,{"$f":"VLOOKUP(B950,Dropdowns!$A$2:$B$49,2,FALSE)","v":{"$error":"#N/A"}},null,null,null,{"$f":"VLOOKUP(F950,Dropdowns!$D$2:$E$31,2,FALSE)","v":{"$error":"#N/A"}}]
[null,null,{"$f":"VLOOKUP(B951,Dropdowns!$A$2:$B$49,2,FALSE)","v":{"$error":"#N/A"}},null,null,null,{"$f":"VLOOKUP(F951,Dropdowns!$D$2:$E$31,2,FALSE)","v":{"$error":"#N/A"}}]
[null,null,{"$f":"VLOOKUP(B952,Dropdowns!$A$2:$B$49,2,FALSE)","v":{"$error":"#N/A"}},null,null,null,{"$f":"VLOOKUP(F952,Dropdowns!$D$2:$E$31,2,FALSE)","v":{"$error":"#N/A"}}]
[null,null,{"$f":"VLOOKUP(B953,Dropdowns!$A$2:$B$49,2,FALSE)","v":{"$error":"#N/A"}},null,null,null,{"$f":"VLOOKUP(F953,Dropdowns!$D$2:$E$31,2,FALSE)","v":{"$error":"#N/A"}}]
[null,null,{"$f":"VLOOKUP(B954,Dropdowns!$A$2:$B$49,2,FALSE)","v":{"$error":"#N/A"}},null,null,null,{"$f":"VLOOKUP(F954,Dropdowns!$D$2:$E$31,2,FALSE)","v":{"$error":"#N/A"}}]
[null,null,{"$f":"VLOOKUP(B955,Dropdowns!$A$2:$B$49,2,FALSE)","v":{"$error":"#N/A"}},null,null,null,{"$f":"VLOOKUP(F955,Dropdowns!$D$2:$E$31,2,FALSE)","v":{"$error":"#N/A"}}]
[null,null,{"$f":"VLOOKUP(B956,Dropdowns!$A$2:$B$49,2,FALSE)","v":{"$error":"#N/A"}},null,null,null,{"$f":"VLOOKUP(F956,Dropdowns!$D$2:$E$31,2,FALSE)","v":{"$error":"#N/A"}}]
[null,null,{"$f":"VLOOKUP(B957,Dropdowns!$A$2:$B$49,2,FALSE)","v":{"$error":"#N/A"}},null,null,null,{"$f":"VLOOKUP(F957,Dropdowns!$D$2:$E$31,2,FALSE)","v":{"$error":"#N/A"}}]
[null,null,{"$f":"VLOOKUP(B958,Dropdowns!$A$2:$B$49,2,FALSE)","v":{"$error":"#N/A"}},null,null,null,{"$f":"VLOOKUP(F958,Dropdowns!$D$2:$E$31,2,FALSE)","v":{"$error":"#N/A"}}]
[null,null,{"$f":"VLOOKUP(B959,Dropdowns!$A$2:$B$49,2,FALSE)","v":{"$error":"#N/A"}},null,null,null,{"$f":"VLOOKUP(F959,Dropdowns!$D$2:$E$31,2,FALSE)","v":{"$error":"#N/A"}}]
[null,null,{"$f":"VLOOKUP(B960,Dropdowns!$A$2:$B$49,2,FALSE)","v":{"$error":"#N/A"}},null,null,null,{"$f":"VLOOKUP(F960,Dropdowns!$D$2:$E$31,2,FALSE)","v":{"$error":"#N/A"}}]
[null,null,{"$f":"VLOOKUP(B961,Dropdowns!$A$2:$B$49,2,FALSE)","v":{"$error":"#N/A"}},null,null,null,{"$f":"VLOOKUP(F961,Dropdowns!$D$2:$E$31,2,FALSE)","v":{"$error":"#N/A"}}]
[null,null,{"$f":"VLOOKUP(B962,Dropdowns!$A$2:$B$49,2,FALSE)","v":{"$error":"#N/A"}},null,null,null,{"$f":"VLOOKUP(F962,Dropdowns!$D$2:$E$31,2,FALSE)","v":{"$error":"#N/A"}}]
[null,null,{"$f":"VLOOKUP(B963,Dropdowns!$A$2:$B$49,2,FALSE)","v":{"$error":"#N/A"}},null,null,null,{"$f":"VLOOKUP(F963,Dropdowns!$D$2:$E$31,2,FALSE)","v":{"$error":"#N/A"}}]
[null,null,{"$f":"VLOOKUP(B964,Dropdowns!$A$2:$B$49,2,FALSE)","v":{"$error":"#N/A"}},null,null,null,{"$f":"VLOOKUP(F964,Dropdowns!$D$2:$E$31,2,FALSE)","v":{"$error":"#N/A"}}]
[null,null,{"$f":"VLOOKUP(B965,Dropdowns!$A$2:$B$49,2,FALSE)","v":{"$error":"#N/A"}},null,null,null,{"$f":"VLOOKUP(F965,Dropdowns!$D$2:$E$31,2,FALSE)","v":{"$error":"#N/A"}}]
[null,null,{"$f":"VLOOKUP(B966,Dropdowns!$A$2:$B$49,2,FALSE)","v":{"$error":"#N/A"}},null,null,null,{"$f":"VLOOKUP(F966,Dropdowns!$D$2:$E$31,2,FALSE)","v":{"$error":"#N/A"}}]
[null,null,{"$f":"VLOOKUP(B967,Dropdowns!$A$2:$B$49,2,FALSE)","v":{"$error":"#N/A"}},null,null,null,{"$f":"VLOOKUP(F967,Dropdowns!$D$2:$E$31,2,FALSE)","v":{"$error":"#N/A"}}]
[null,null,{"$f":"VLOOKUP(B968,Dropdowns!$A$2:$B$49,2,FALSE)","v":{"$error":"#N/A"}},null,null,null,{"$f":"VLOOKUP(F968,Dropdowns!$D$2:$E$31,2,FALSE)","v":{"$error":"#N/A"}}]
[null,null,{"$f":"VLOOKUP(B969,Dropdowns!$A$2:$B$49,2,FALSE)","v":{"$error":"#N/A"}},null,null,null,{"$f":"VLOOKUP(F969,Dropdowns!$D$2:$E$31,2,FALSE)","v":{"$error":"#N/A"}}]
[null,null,{"$f":"VLOOKUP(B970,Dropdowns!$A$2:$B$49,2,FALSE)","v":{"$error":"#N/A"}},null,null,null,{"$f":"VLOOKUP(F970,Dropdowns!$D$2:$E$31,2,FALSE)","v":{"$error":"#N/A"}}]
[null,null,{"$f":"VLOOKUP(B971,Dropdowns!$A$2:$B$49,2,FALSE)","v":{"$error":"#N/A"}},null,null,null,{"$f":"VLOOKUP(F971,Dropdowns!$D$2:$E$31,2,FALSE)","v":{"$error":"#N/A"}}]
[null,null,{"$f":"VLOOKUP(B972,Dropdowns!$A$2:$B$49,2,FALSE)","v":{"$error":"#N/A"}},null,null,null,{"$f":"VLOOKUP(F972,Dropdowns!$D$2:$E$31,2,FALSE)","v":{"$error":"#N/A"}}]
[null,null,{"$f":"VLOOKUP(B973,Dropdowns!$A$2:$B$49,2,FALSE)","v":{"$error":"#N/A"}},null,null,null,{"$f":"VLOOKUP(F973,Dropdowns!$D$2:$E$31,2,FALSE)","v":{"$error":"#N/A"}}]
[null,null,{"$f":"VLOOKUP(B974,Dropdowns!$A$2:$B$49,2,FALSE)","v":{"$error":"#N/A"}},null,null,null,{"$f":"VLOOKUP(F974,Dropdowns!$D$2:$E$31,2,FALSE)","v":{"$error":"#N/A"}}]
[null,null,{"$f":"VLOOKUP(B975,Dropdowns!$A$2:$B$49,2,FALSE)","v":{"$error":"#N/A"}},null,null,null,{"$f":"VLOOKUP(F975,Dropdowns!$D$2:$E$31,2,FALSE)","v":{"$error":"#N/A"}}]
[null,null,{"$f":"VLOOKUP(B976,Dropdowns!$A$2:$B$49,2,FALSE)","v":{"$error":"#N/A"}},null,null,null,{"$f":"VLOOKUP(F976,Dropdowns!$D$2:$E$31,2,FALSE)","v":{"$error":"#N/A"}}]
[null,null,{"$f":"VLOOKUP(B977,Dropdowns!$A$2:$B$49,2,FALSE)","v":{"$error":"#N/A"}},null,null,null,{"$f":"VLOOKUP(F977,Dropdowns!$D$2:$E$31,2,FALSE)","v":{"$error":"#N/A"}}]
[null,null,{"$f":"VLOOKUP(B978,Dropdowns!$A$2:$B$49,2,FALSE)","v":{"$error":"#N/A"}},null,null,null,{"$f":"VLOOKUP(F978,Dropdowns!$D$2:$E$31,2,FALSE)","v":{"$error":"#N/A"}}]
[null,null,{"$f":"VLOOKUP(B979,Dropdowns!$A$2:$B$49,2,FALSE)","v":{"$error":"#N/A"}},null,null,null,{"$f":"VLOOKUP(F979,Dropdowns!$D$2:$E$31,2,FALSE)","v":{"$error":"#N/A"}}]
[null,null,{"$f":"VLOOKUP(B980,Dropdowns!$A$2:$B$49,2,FALSE)","v":{"$error":"#N/A"}},null,null,null,{"$f":"VLOOKUP(F980,Dropdowns!$D$2:$E$31,2,FALSE)","v":{"$error":"#N/A"}}]
[null,null,{"$f":"VLOOKUP(B981,Dropdowns!$A$2:$B$49,2,FALSE)","v":{"$error":"#N/A"}},null,null,null,{"$f":"VLOOKUP(F981,Dropdowns!$D$2:$E$31,2,FALSE)","v":{"$error":"#N/A"}}]
[null,null,{"$f":"VLOOKUP(B982,Dropdowns!$A$2:$B$49,2,FALSE)","v":{"$error":"#N/A"}},null,null,null,{"$f":"VLOOKUP(F982,Dropdowns!$D$2:$E$31,2,FALSE)","v":{"$error":"#N/A"}}]
[null,null,{"$f":"VLOOKUP(B983,Dropdowns!$A$2:$B$49,2,FALSE)","v":{"$error":"#N/A"}},null,null,null,{"$f":"VLOOKUP(F983,Dropdowns!$D$2:$E$31,2,FALSE)","v":{"$error":"#N/A"}}]
[null,null,{"$f":"VLOOKUP(B984,Dropdowns!$A$2:$B$49,2,FALSE)","v":{"$error":"#N/A"}},null,null,null,{"$f":"VLOOKUP(F984,Dropdowns!$D$2:$E$31,2,FALSE)","v":{"$error":"#N/A"}}]
[null,null,{"$f":"VLOOKUP(B985,Dropdowns!$A$2:$B$49,2,FALSE)","v":{"$error":"#N/A"}},null,null,null,{"$f":"VLOOKUP(F985,Dropdowns!$D$2:$E$31,2,FALSE)","v":{"$error":"#N/A"}}]
[null,null,{"$f":"VLOOKUP(B986,Dropdowns!$A$2:$B$49,2,FALSE)","v":{"$error":"#N/A"}},null,null,null,{"$f":"VLOOKUP(F986,Dropdowns!$D$2:$E$31,2,FALSE)","v":{"$error":"#N/A"}}]
[null,null,{"$f":"VLOOKUP(B987,Dropdowns!$A$2:$B$49,2,FALSE)","v":{"$error":"#N/A"}},null,null,null,{"$f":"VLOOKUP(F987,Dropdowns!$D$2:$E$31,2,FALSE)","v":{"$error":"#N/A"}}]
[null,null,{"$f":"VLOOKUP(B988,Dropdowns!$A$2:$B$49,2,FALSE)","v":{"$error":"#N/A"}},null,null,null,{"$f":"VLOOKUP(F988,Dropdowns!$D$2:$E$31,2,FALSE)","v":{"$error":"#N/A"}}]
[null,null,{"$f":"VLOOKUP(B989,Dropdowns!$A$2:$B$49,2,FALSE)","v":{"$error":"#N/A"}},null,null,null,{"$f":"VLOOKUP(F989,Dropdowns!$D$2:$E$31,2,FALSE)","v":{"$error":"#N/A"}}]
[null,null,{"$f":"VLOOKUP(B990,Dropdowns!$A$2:$B$49,2,FALSE)","v":{"$error":"#N/A"}},null,null,null,{"$f":"VLOOKUP(F990,Dropdowns!$D$2:$E$31,2,FALSE)","v":{"$error":"#N/A"}}]
[null,null,{"$f":"VLOOKUP(B991,Dropdowns!$A$2:$B$49,2,FALSE)","v":{"$error":"#N/A"}},null,null,null,{"$f":"VLOOKUP(F991,Dropdowns!$D$2:$E$31,2,FALSE)","v":{"$error":"#N/A"}}]
[null,null,{"$f":"VLOOKUP(B992,Dropdowns!$A$2:$B$49,2,FALSE)","v":{"$error":"#N/A"}},null,null,null,{"$f":"VLOOKUP(F992,Dropdowns!$D$2:$E$31,2,FALSE)","v":{"$error":"#N/A"}}]
[null,null,{"$f":"VLOOKUP(B993,Dropdowns!$A$2:$B$49,2,FALSE)","v":{"$error":"#N/A"}},null,null,null,{"$f":"VLOOKUP(F993,Dropdowns!$D$2:$E$31,2,FALSE)","v":{"$error":"#N/A"}}]
[null,null,{"$f":"VLOOKUP(B994,Dropdowns!$A$2:$B$49,2,FALSE)","v":{"$error":"#N/A"}},null,null,null,{"$f":"VLOOKUP(F994,Dropdowns!$D$2:$E$31,2,FALSE)","v":{"$error":"#N/A"}}]
[null,null,{"$f":"VLOOKUP(B995,Dropdowns!$A$2:$B$49,2,FALSE)","v":{"$error":"#N/A"}},null,null,null,{"$f":"VLOOKUP(F995,Dropdowns!$D$2:$E$31,2,FALSE)","v":{"$error":"#N/A"}}]
[null,null,{"$f":"VLOOKUP(B996,Dropdowns!$A$2:$B$49,2,FALSE)","v":{"$error":"#N/A"}},null,null,null,{"$f":"VLOOKUP(F996,Dropdowns!$D$2:$E$31,2,FALSE)","v":{"$error":"#N/A"}}]
[null,null,{"$f":"VLOOKUP(B997,Dropdowns!$A$2:$B$49,2,FALSE)","v":{"$error":"#N/A"}},null,null,null,{"$f":"VLOOKUP(F997,Dropdowns!$D$2:$E$31,2,FALSE)","v":{"$error":"#N/A"}}]
[null,null,{"$f":"VLOOKUP(B998,Dropdowns!$A$2:$B$49,2,FALSE)","v":{"$error":"#N/A"}},null,null,null,{"$f":"VLOOKUP(F998,Dropdowns!$D$2:$E$31,2,FALSE)","v":{"$error":"#N/A"}}]
[null,null,{"$f":"VLOOKUP(B999,Dropdowns!$A$2:$B$49,2,FALSE)","v":{"$error":"#N/A"}},null,null,null,{"$f":"VLOOKUP(F999,Dropdowns!$D$2:$E$31,2,FALSE)","v":{"$error":"#N/A"}}]
[null,null,{"$f":"VLOOKUP(B1000,Dropdowns!$A$2:$B$49,2,FALSE)","v":{"$error":"#N/A"}},null,null,null,{"$f":"VLOOKUP(F1000,Dropdowns!$D$2:$E$31,2,FALSE)","v":{"$error":"#N/A"}}]

{"sheet":"Dropdowns","index":6,"n_rows":58,"n_cols":14,"rows_kept":58,"cut":false,"hidden":true,"merged":[]}
["AOC Description","AOC_Code","Contaminated","AOC Status","Status Code","Contaminated Media","Contents","Contaminants Above Applicable Remediation Standards","Applicable Remediation Standards","RA Type","Exposure Route","Yes or No","Exclude from Billing","Order of Magnitude"]
["Storage tank and appurtenance - Above ground storage tank","ASAG","Yes","PA",79,"Soil",null,"VO","AOC Specific ARS","Absorbent materials","Ground Water","Yes","Yes","N/A"]
["Storage tank and appurtenance - State or Federal Regulated underground storage tank","ASUF","No","SI",80,"Ground Water",null,"BN","AOC Specific ARS and Remediation Standards","Aerated floor system","Ground Water & Surface Water","No",null,"Yes"]
["Storage tank and appurtenance - Unregulated underground storage tank","ASUU","Undetermined","PA/SI",81,"Surface Water",null,"Metals","Remediation  Standards","Air Sparging","Inhalation",null,null,"No"]
["Storage tank and appurtenance - Silo","ASSI","No Sampling Trigger","RI",82,"Mixed Media",null,"Pesticides","Soil Cleanup Criteria (see instructions for appropriate use)","Air sparging/soil vapor extraction (AS/SVE)","Ingestion/Dermal"]
["Storage tank and appurtenance - Rail car","ASRC",null,"RAW",83,"Sediment",null,"PCBs",null,"Attainment","Overland Flow"]
["Storage tank and appurtenance - Piping, above/below ground pump station, sump/pit","ASPS",null,"RA",84,"Indoor Air",null,"PAHs",null,"Bank Stabilization","Overland Flow & Surface Water"]
["Storage tank and appurtenance - Loading and unloading area","ASLU",null,"RIP Waiver",86,null,null,"EPH",null,"Bioremediation","Sediment"]
["Storage and staging area - Storage pad and area","ATSP",null,"UST Waiver",87,null,null,"EPH + PAHs",null,"Bioslurping/enhanced fluid recovery (EFR)","Sediment & Surface Water"]
["Storage and staging area - Surface impoundment and lagoon","ATSL",null,"RAO-AOC (Unrestricted Use)",61,null,null,"EPH + BN",null,"Block wall depressurization system","Surface Water"]
["Storage and staging area - Dumpster","ATSD",null,"RAO-AOC (Limited Restricted Use)",63,null,null,"TPHC",null,"Capping"]
["Storage and staging area - Chemical storage cabinet or closet","ATSC",null,"RAO-AOC (Restricted Use)",62,null,null,"Dioxin",null,"Capping of Sediments"]
["Discharge and disposal area - Area of discharge pursuant to N.J.A.C. 7:1E","AA71",null,"RAO-Child Care Facility (Unrestricted Use).","AB",null,null,"VO + BN",null,"Chemical Injection"]
["Discharge and disposal area - Historic fill material area/other fill area","AAHF",null,"RAO-Child Care Facility (Limited Restricted Use)","AC",null,null,"VO+ Metals",null,"Chemical Oxidation"]
["Discharge and disposal area - Incinerator","AAIN",null,"RAO-Child Care Facility (Restricted Use)","AD",null,null,"VO + Pesticides",null,"Chemical Reduction"]
["Discharge and disposal area - Landfarm","AALR",null,"RAO-Entire Site (Unrestricted Use)",58,null,null,"VO + PCBs",null,"Containment"]
["Discharge and disposal area - Landfill","AALF",null,"RAO-Entire Site  (Limited Restricted Use)",60,null,null,"VO + PAHs",null,"Cosolvent flushing"]
["Discharge and disposal area - Sprayfield","AASF",null,"RAO-Entire Site (Restricted Use)",59,null,null,"VO + EPH",null,"Drain tile depressurization system"]
["Discharge and disposal area - Waste pile as defined by N.J.A.C. 7:26","AA72",null,"RAO-ISRA Entire Site (Unrestricted Use)","AH",null,null,"BN + Metals",null,"Dual phase extraction"]
["Discharge and disposal area - Waste water treatment systems/septic/seepage pit/dry well","AAWW",null,"RAO-ISRA Entire Site (Limited Restricted Use)","AI",null,null,"BN + Pesticides",null,"Dual-pump liquid extraction (DPLE)"]
["Drainage system and area - Building floor drain and piping","ADSF",null,"RAO-ISRA Entire Site (Restricted Use)","AJ",null,null,"BN + PCBs",null,"Ecological Risk Assessment"]
["Drainage system and area - Building sump and pit","ADSP",null,"RAO-ISRA Leasehold (Unrestricted Use)","AE",null,null,"BN + PAHs",null,"Excavation"]
["Drainage system and area - Building trench/piping from sink-rec'd process waste","ADBT",null,"RAO-ISRA Leasehold (Limited Restricted Use)","AF",null,null,"Metals + Pesticides",null,"Heat recovery ventilator"]
["Drainage system and area - Drainage swale and culvert","ADDS",null,"RAO-ISRA Leasehold (Restricted Use)","AG",null,null,"Metals + PCBs",null,"Hot spot removal"]
["Drainage system and area - Dry well and sump","ADDW",null,"NFA-AOC DEP Issued (Unrestricted Use)",36,null,null,"Metals + PAHs",null,"In situ chemical oxidation (ISCO)"]
["Drainage system and area - Leach field","ADLF",null,"NFA-AOC DEP Issued (Limited Restricted Use)",37,null,null,"Metals + EPH",null,"In situ soil mixing (stabilization)"]
["Drainage system and area - Roof leader (process operations vent to roof)","ADRL",null,"NFA-AOC DEP Issued (Restricted Use)",38,null,null,"Pesticides + PCBs",null,"Injection of surfactants"]
["Drainage system and area - Storm sewer collection system","ADSS",null,"NFA-Entire Site DEP Issued (Unrestricted Use)",39,null,null,"Pesticides + PAHs",null,"In-situ-injection"]
["Drainage system and area - Storm water detention pond and fire pond","ADST",null,"NFA-Entire Site DEP Issued (Limited Restricted Use)",40,null,null,"Pesticides + EPH",null,"Institutional Control"]
["Drainage system and area - Surface water body","ADSW",null,"NFA-Entire Site DEP Issued (Restricted Use)",41,null,null,"Other",null,"LNAPL skimming"]
["Environmental media - Media Air","AEAR",null,"ISRA Limited Conveyance","AA",null,null,null,null,"Monitored Natural Attenuation"]
["Environmental media - Media Ground water","AEGW",null,null,null,null,null,null,null,"Multiphase extraction (MPE) (single pump)"]
["Environmental media - Media Sediment","AESD",null,null,null,null,null,null,null,"Multiphase extraction (MPE)(dual pump)"]
["Environmental media - Media Soil, including soil vapor pore spaces","AESV",null,null,null,null,null,null,null,"Other (specify in Activity column)"]
["Environmental media - Media Surface water","AESW",null,null,null,null,null,null,null,"Oxygen Diffusion"]
["Other areas of concern - Any area suspected of containing contaminants","AOCC",null,null,null,null,null,null,null,"Ozone injection"]
["Other areas of concern - Area received floodwater/stormwater from AOC","AOFW",null,null,null,null,null,null,null,"Ozone Sparging"]
["Other areas of concern - Area with stressed vegetation","AOSV",null,null,null,null,null,null,null,"Passive subsurface depressurization system"]
["Other areas of concern - Compressor vent discharge","AOCV",null,null,null,null,null,null,null,"Permeable barrier wall"]
["Other areas of concern - Discolored area or spill area","AODA",null,null,null,null,null,null,null,"Physical or hydraulic containment"]
["Other areas of concern - Electrical transformer and capacitor","AOTR",null,null,null,null,null,null,null,"Pump & haul"]
["Other areas of concern - Hazardous substance storage or handling area","AOHS",null,null,null,null,null,null,null,"Pump & Treat"]
["Other areas of concern - Non contact cooling water discharge","ANCC",null,null,null,null,null,null,null,"Radio-frequency heating"]
["Other areas of concern - Open area away from production operations","AOOA",null,null,null,null,null,null,null,"Remedial Action Not Required"]
["Other areas of concern - Other discharge area","AOOD",null,null,null,null,null,null,null,"Risk Management Decision"]
["Other areas of concern - Underground piping including industrial process sewer","AOPS",null,null,null,null,null,null,null,"Soil blending"]
["Other areas of concern - Waste treatment area","AOWT",null,null,null,null,null,null,null,"Soil Vapor Extraction"]
[null,null,null,null,null,null,null,null,null,"Stabilization"]
[null,null,null,null,null,null,null,null,null,"Steam/hot-air injection"]
[null,null,null,null,null,null,null,null,null,"Sub-membrane depressurization system"]
[null,null,null,null,null,null,null,null,null,"Sub-slab depressurization system"]
[null,null,null,null,null,null,null,null,null,"Sub-slab ventilation system"]
[null,null,null,null,null,null,null,null,null,"Sub-surface pressurization"]
[null,null,null,null,null,null,null,null,null,"Surfactant- enhanced subsurface remediation"]
[null,null,null,null,null,null,null,null,null,"Thermal"]
[null,null,null,null,null,null,null,null,null,"Three and six-phase electrical resistance heating"]
[null,null,null,null,null,null,null,null,null,"Total fluids extraction"]
[null,null,null,null,null,null,null,null,null,"Water flooding (including hot water flooding)"]

{"sheet":"For CGI-migration help","index":7,"n_rows":3,"n_cols":22,"rows_kept":3,"cut":false,"hidden":true,"merged":[]}
[]
["AOC ID","AOC Type","AOC Code","Additional AOC Details as needed (eg, size of UST, AGST, location of floor drain if multiples exist)","Contaminated","AOC Status","AOC Status Code","Status Date","Incident # (or NA)","DEP AOC Number","Contaminated Media","Contaminants of Concern","Additional Contaminants Above Applicable Remediation Standards","Additional Contaminants Above Applicable Remediation Standards","Applicable Remediation Standard","Exposure Route","Exposure Route","RA Type","RA Type","RA Type","Was an Order of Magnitude Evaluation Conducted?","Activity"]
["Migrates to SI designation","SI Type desc, will save si type code in background","Code populates from AOC Type Choice.  Migrates to subject_item,si_type_code","Migrates to SI desc ","Dropdown:  Y,N, undetermined (migrates to  Confirmed Contamination field at AOC SI","dropdown-saves code in background, ","Code populates from AOC Status Choice, migrates to subj_item_srp_case_status_hist and subject_item.status_code","date value subject_item.status_date","string of delimited com center numbers free entered see specs for migration","SI ID-used optionally for matching","choose from dropdown","choose from dropdown","choose from dropdown","choose from dropdown","choose from dropdown","choose from dropdown","choose from dropdown","choose from dropdown","choose from dropdown","choose from dropdown","Yes/No/NA"]

{"sheet":"CID Validations","index":8,"n_rows":24,"n_cols":2,"rows_kept":24,"cut":false,"hidden":true,"merged":[]}
[null,"CID Validation Tests"]
[]
[null,"When the CID is uploaded to NJDEP, the Online Service performs 13 validation tests. The tests are listed below by the error messages they produce."]
[]
[null,"1.       Duplicate AOC ID"]
[null,"2.       AOC ID is Required "]
[null,"3.       AOC ID > 100 Characters"]
[null,"4.       AOC Type is Required"]
[null,"5.       AOC Description/Details > 500 Characters"]
[null,"6.       AOC Description is Required"]
[null,"7.       AOC Status is Required"]
[null,"8.       AOC Status Code is Required"]
[null,"9.       Invalid NJDEP ID# - Is not numeric"]
[null,"10.   Invalid NJDEP ID# - Is not found in the case"]
[null,"11.   Invalid status Date – Invalid or NULL()"]
[null,"12.   Confirmed Contamination is Required"]
[null,"13.   Tank related CIDs must have Registered tanks"]
[]
[null,"Note: Submissions with CIDs that contain more than 90 AOCs will not be successful."]
[]
[null,"This version of the CID can now handle "]
[null,"1.       Special Characters"]
[null,"2.       Ampersands and apostrophes"]
[null,"3.       A with Hat (Ā)"]